{"text_format":"1","workbook":"xlsx","n_sheets":6,"sheets":["Accueil","Entités du département","Dispositifs du département","Financement du département","Annexes","Listes déroulantes"],"not_rendered":{"charts":0,"images":1,"macros":1,"external_links":0,"defined_names":11,"comments":0,"pivot_tables":0},"unopened":[],"bounds":{"document_bytes":16777216,"sheet_cells":100000,"rows_first":2000,"rows_last":500,"rows_between":2000,"halvings":0,"cell_chars":16384,"cell_head_chars":4096},"cells_cut":0,"cells_raw":0,"read":"whole","date_system":"1900"}

{"sheet":"Accueil","index":0,"n_rows":16,"n_cols":6,"rows_kept":16,"cut":false,"hidden":false,"merged":[[11,1,11,5],[15,1,15,5],[1,1,1,5]]}
["   ACCUEIL"]
[null,"Un document guide de remplissage vous a été transmis et contient des informations importantes pour vous faciliter le remplissage de ce fichier. Nous vous en recommandons la lecture en entier avant de procéder au recensement des données dans l'excel. "]
[null,"CONSTRUCTION DU FICHIER EXCEL"]
[]
[null,"Le tableau se compose de 3 onglets, à remplir dans l'ordre suivant : "]
[]
[null,"Onglet Entités du département",null,"Onglet Dispositifs du département",null,"Onglet Financement du département"]
[null,"1. Saisir dans cet onglet les entités du département, ainsi que les données associées à l'entité",null,"2. Saisir dans cet onglet les dispositifs du département, les rattacher à une entité préalablement créée dans l'onglet précédent, et compléter les données associées au dispositif",null,"3. Saisir dans cet onglet les financements du département, les rattacher à un dispositif ayant été créé dans l'onglet précédent, et compléter les données associées au financement"]
[]
[null,"CONSIGNES DE REMPLISSAGE"]
[]
[null,"1. Respecter l'ordre de remplissage : s'assurer que l'entité a bien été créée avant de créer un dispositif et vérifier que le dispositif a bien été créé avant de saisir le financement\n\n2. Ne pas laisser de lignes vides : ne pas laisser de lignes entre les entités, dispositifs ou financement\n\n3. Ne pas toucher à la structure du fichier : ne pas ajouter ou supprimer de colonnes, etc\n\n4. Ne pas créer de doublons d'entités ou de dispositifs : les éventuels doublons apparaitront en surbrillance jaune\n\n5. Sélection multiple : pour certains champs, vous aurez la possibilité de saisir plusieurs données dans la même cellule (ces champs sont mentionnés comme étant à sélection multiple). Pour ce faire, il vous suffit de sélectionner les différentes valeurs à saisir les unes après les autres, dans la même cellule (veillez également à bien accepter les macros au moment de l'ouverture du fichier)\n\n6. Données obligatoires : les données obligatoires sont suivies d'un *\nA l'inverse, les champs grisés ne doivent pas être remplis.\nDes mises en forme conditionnelles peuvent s'appliquer selon les données saisies, des cases grisées peuvent devenir blanches ou jaunes et peuvent dans ces cas là être remplies."]
[]
[null,"CAS PARTICULIER DE LA GESTION HÔTELIERE "]
[]
[null,"1.  Les hôtels doivent être renseignés comme dispositifs rattachés à une entité gestionnaire. \n\n2. L'entité gestionnaire à identifier est : \n        - En Île-de-France : saisir DELTA\n        - Hors IDF, le dispositif Hôtel doit être rattaché à l’entité gestionnaire qui porte le SIAO. Il faut donc créer et associer l’entité gestionnaire portant le SIAO comme entité à laquelle est rattachée le dispositif Hôtel. Les administrateurs du SIAO auront accès à l’entité et pourront gérer les places du dispositif Hôtel, sauf exception dans laquelle une autre entité gestionnaire gère le parc hôtelier. \n\n3. Sur le financement, après avoir renseigné les différentes lignes de financement, il est facultatif de remplir le nombre de places dans places financées.\n\n4. Une V2 du Module Offre traitera de la gestion hôtelière, notamment sur les spécificités associées à l'hôtel hors Île-de-France : volatilité de l'offre, gestionnaires des places. "]

{"sheet":"Entités du département","index":1,"n_rows":8,"n_cols":12,"rows_kept":8,"cut":false,"hidden":false,"merged":[[2,4,2,11],[4,4,4,11],[5,12,6,12],[5,0,6,0],[5,1,6,1],[5,2,6,2],[5,3,6,3],[5,6,5,11],[5,4,5,5],[4,0,4,1],[4,2,4,3],[2,1,2,3]]}
["   ENTITES DU DEPARTEMENT"]
[]
["Guide de remplissage : \n","1. Saisir pour chaque entité de votre département le nom de l'entité, ainsi que son code SIREN associé. En cas de doublon, la cellule apparaitra en surligné jaune, cela signifie que l'entité a déjà été ajoutée : merci de ne pas la recréer. \n2. Via le code SIREN, un certain nombre de données seront récupérées, vous pouvez retrouver la liste de ces informations dans l'onglet Annexes.\n",null,null,"3. Saisir les informations juridiques de l'entité : \n     - Conventions collectives : sélection du type de convention collective, et si Autre a été sélectionné, saisir le n°IDCC dans la colonne suivante\n     - Agréments : cocher si l'entité dispose d'un agrément MOI et/ou ISFT et/ou ILGLS, et pour chaque agrément coché Oui, sélectionner le territoire couvert par l'agrément\n        --> A noter que pour les départements, vous pouvez saisir autant de départements que vous souhaitez dans une même cellule : pour cela, sélectionnez les départements les uns après les autres dans une même cellule"]
["Les données obligatoires sont suivies d'une *"]
["Répertoire SIRENE",null,"Contact",null,"Juridique"]
["Nom de l'entité*","Code SIREN*","Téléphone","Adresse courriel","Conventions collectives",null,"Agréments"]
[null,null,null,null,"Type de convention collective","N°IDCC\n(Autres)","MOI\n(Maîtrise d’Ouvrage Insertion)","MOI\n- Territoire couvert","ISFT\n(Ingénierie, Sociale, Financière et Technique)","ISFT\n- Territoire couvert","ILGLS\n(Intermédiation Locative et Gestion Locative Sociale)","ILGLS\n- Territoire couvert"]
["Nom de l'entité, unique sur le département\n(en cas de doublon, l'entité apparaitra en jaune, merci de ne pas la créer)\nExemple : Association solidaire du 78\nNE PAS LAISSER DE LIGNES VIDES","N° SIREN de l'entité\n(9 chiffres, uniques au niveau national)\nExemple : 123456789","Contact téléphone principal de l'entité \nExemple : 0000000000 ou 00 00 00 00 00","Contact courriel principal de l'entité\nExemple : contact@asso.fr","Sélection du type de convention collective de l'entité sur le département","Saisie manuelle du n°IDCC si le type de convention collective \"Autre\" a été sélectionné dans la colonne précédente","Choix : \nOui / Non","Sélection multiple des départements couverts par le MOI, seulement si oui coché dans la colonne précédente (sélectionnez les territoires l'un après l'autre dans la même cellule)","Choix : \nOui / Non","Sélection multiple des départements couverts par le ISFT, seulement si oui coché dans la colonne précédente (sélectionnez les territoires l'un après l'autre dans la même cellule)","Choix : \nOui / Non","Sélection multiple des départements couverts par le ILGLS, seulement si oui coché dans la colonne précédente (sélectionnez les territoires l'un après l'autre dans la même cellule)"]

{"sheet":"Dispositifs du département","index":2,"n_rows":8,"n_cols":85,"rows_kept":8,"cut":false,"hidden":false,"merged":[[2,60,2,63],[2,64,2,65],[2,66,2,84],[4,64,4,65],[4,38,4,41],[2,51,2,59],[4,66,4,84],[4,43,4,50],[4,51,4,63],[2,35,2,37],[2,38,2,41],[2,43,2,49],[2,1,2,3],[2,4,2,5],[2,6,2,8],[2,9,2,28],[2,29,2,33],[5,64,6,64],[7,66,7,80],[5,81,5,82],[5,83,5,84],[7,81,7,82],[7,83,7,84],[5,66,5,80],[5,65,6,65],[4,0,4,1],[4,4,4,5],[4,6,4,8],[5,1,6,1],[5,2,6,2],[5,3,6,3],[5,4,6,4],[5,5,6,5],[5,6,6,6],[5,7,6,7],[5,8,6,8],[5,0,6,0],[7,20,7,28],[4,2,4,3],[5,30,6,30],[5,31,6,31],[5,9,5,19],[7,9,7,19],[5,20,5,28],[4,29,4,33],[5,29,6,29],[5,33,6,33],[5,32,6,32],[4,35,4,37],[5,39,6,39],[4,9,4,28],[5,34,6,34],[5,51,5,53],[5,40,5,41],[5,42,6,42],[5,50,6,50],[7,60,7,63],[5,43,5,49],[7,35,7,37],[5,35,5,37],[5,60,5,63],[5,38,6,38],[7,43,7,49],[7,51,7,53],[5,54,5,59]]}
["   DISPOSITIFS DU DEPARTEMENT"]
[]
["Guide de remplissage","1. Saisir pour chaque dispositif de votre département le nom du dispositif. En cas de doublon, la cellule apparaitra en surligné jaune, cela signifie que le dispositif a déjà été ajouté : merci de ne pas la recréer. \n2. Saisir la nature du dispositif parmi IML, Résidence sociale, Hébergement, Veille sociale, Mesures d'accompagnement, Premier accueil.\n3. Saisir le type du dispositif, selon la nature qui aura été sélectionnée dans la colonne précédente.\nPour plus de détails, voir l'Annexe dédiée en cliquant ici",null,null,"1. Saisir le code SIRET du dispositif.\n2. Saisir obligatoirement le code FINESS si le dispositif est un CHRS (optionnel pour les autres).",null,"Identifier le Responsable de dispositif principal. Renseigner les contacts du dispositif,\nà savoir le numéro de téléphone et l’adresse courriel principal de l’entité.",null,null,"1. Sélectionner les compositions familiales acceptées par le dispositif.\nA noter que si vous cochez Accueil tout public, alors il n'est pas nécessaire de cocher les compositions familiales suivantes (qui apparaitront grisées).\n2. Sélectionner les éventuels publics spécifiques du dispositif.\nSi aucun public n'est sélectionné, dans ce cas le dispositif sera considéré comme n'accueillant pas de publics spécifiques.",null,null,null,null,null,null,null,null,null,null,null,null,null,null,null,null,null,null,null,"Saisir les informations de localisation du dispositif.",null,null,null,null,"Saisir le service de l'Etat à l'origine du financement du dispositif.","Sélectionner le ou les SIAO pouvant orienter vers ce dispositif (au minimum un).",null,null,"1. Sélectionner la configuration physique du dispositif : Regroupé, Diffus et regroupé ou Diffus.\n2. Pour l'IML, sélectionner la configuration du parc.\n3. Selon la configuration physique sélectionnée, si vous avez choisi Regroupé, remplir les données liées au DPE.",null,null,null,"Renseigner si le dispositif dispose d'une couverture CPOM.","1. Cocher les éventuelles modalités d'accompagnement proposées par le dispositif.\nA noter que : \n- Pour les CHRS, toutes les catégories sont sélectionnées par défaut, ne pas les renseigner ; \n- Si au minimum un Travailleur social est affecté au dispositif, alors au moins une des trois premières catégories doit être cochée.",null,null,null,null,null,null,"2. Saisir si le dispositif dispose d'un protocole de réduction des risques.","1. Sélectionner les éventuels repas proposés par le dispositif.\n2. Saisir si le dispositif fournit des repas ou une aide alimentaire.\nSi cela est le cas, renseignez les informations apparaissant en surligné jaune.",null,null,null,null,null,null,null,null,"2. Cocher les services proposés par le dispositif.",null,null,null,"1. Sélectionner dans une même cellule tous les équipements proposés par le dispositif (sélection des équipements les uns après les autres dans une même cellule).\n2. Renseigner si le dispositif a des partenariats conventionnés.",null,"1. Saisir les horaires d'ouverture du dispositif (format 00h00).\nSi la première case Ouverture 24h/24 est cochée, il n'est pas nécessaire de remplir les colonnes suivantes.\n2. Saisir les horaires de présentation du dispositif s'il y en a (format 00h00).\n3. Saisir les horaires de permanence de nuit s'il y en a (format 00h00)."]
["Les données obligatoires sont suivies d'une *"]
["Entité de rattachement",null,"Nomenclature du dispositif",null,"Identification",null,"Contact",null,null,"Public accepté",null,null,null,null,null,null,null,null,null,null,null,null,null,null,null,null,null,null,null,"Localisation",null,null,null,null,"Offre de places","Paramétrages orientation",null,null,"Paramétrages du dispositif",null,null,null,"Juridique","Offre d'accompagnement",null,null,null,null,null,null,null,"Prestations",null,null,null,null,null,null,null,null,null,null,null,null,"Offre du dispositif",null,"Horaires "]
["Entité*","Nom du dispositif*","Nature du dispositif*","Type de dispositif*","Code SIRET*","Code FINESS","Contact du responsable de dispositif","Téléphone","Adresse courriel du dispositif","Compositions familiales*",null,null,null,null,null,null,null,null,null,null,"Publics spécifiques*",null,null,null,null,null,null,null,null,"Adresse*","Complément d'adresse","Ville*","Code postal*","Code INSEE","Service de l'Etat à l'origine du financement*","SIAO pouvant orienter vers ce dispositif",null,null,"Configuration physique*","Configuration du parc*","DPE",null,"Couverture CPOM*","Modalités d'accompagnement",null,null,null,null,null,null,"Protocole Réduction des risques","Repas proposés",null,null,"Fourniture de repas ou aide alimentaire",null,null,null,null,null,"Services proposés",null,null,null,"Equipements","Partenariats conventionnés","Horaires d'ouverture",null,null,null,null,null,null,null,null,null,null,null,null,null,null,"Horaires de présentation",null,"Surveillance de nuit"]
[null,null,null,null,null,null,null,null,null,"Accueil tout public","Homme seul","Femme seule","Enfant / Mineur isolé","Homme seul avec enfant(s)","Femme seule avec enfant(s)","Couple avec enfants","Couple sans enfants","Groupe avec enfant(s)","Groupe d'adultres sans enfant","Groupe d'enfants / mineurs","Femmes victimes de violence","Femmes sortants de maternité","Auteurs de violence","Réfugiés","Jeunes","Personnes LGBTQIA+","Victimes de traite humaine","Personnes placées sous main de justice","Personnes en grande marginalité",null,null,null,null,null,null,"SIAO orienteur n°1*","SIAO orienteur n°2","SIAO orienteur n°3",null,null,"Etiquette DPE","Performance énergétique",null,"Accès au logement","Maintien dans le logement","Diagnostics et évaluations approfondies","Accès aux droits et libertés et à la participation","Vers l'emploi","Vers la santé et l'estime","Vie sociale et citoyenneté",null,"Petit-déjeuner","Déjeuner","Dîner","Au moins un service de repas par jour dans un restaurant collectif","Au moins un ticket restaurant par jour et par usager","Denrées, tickets repas, chèques alimentation ou colis équivalent à au moins un repas par jour","Repas assurés par ","Part de gratuité des denrées alimentaires utilisées pour les repas","Part des denrées alimentaires achetées via Banque alimentaire","Animaux acceptés","Laverie","Dépôt de bagages","Parking gratuit",null,null,"Ouverture 24h/24","Lundi\n- Heure début","Lundi \n- Heure de fin","Mardi\n- Heure de début","Mardi\n- Heure de fin","Mercredi\n- Heure de début","Mercredi\n- Heure de fin","Jeudi\n- Heure de début","Jeudi\n- Heure de fin","Vendredi \n- Heure de début","Vendredi\n- Heure de fin","Samedi\n- Heure de début","Samedi\n- Heure de fin","Dimanche\n- Heure de début","Dimanche \n- Heure de fin","Présentation \n- Heure de début","Présentation \n- Heure de fin","Surveillance nuit\n- Horaire de début","Surveillance nuit\n- Horaire de fin"]
["Sélection de l'entité du dispositif parmi les entités créées dans l'onglet précédent\nSi vous ne trouvez pas l'entité, vérifiez que celle-ci a bien été créée\nNE PAS LAISSER DE LIGNES VIDES","Nom du dispositif, unique sur le département\n(en cas de doublon, le dispositif apparaitra en jaune, merci de modifier/compléter le nom afin de ne pas créer de doublons)\nExemple : L'oiseau du bonheur\nNE PAS LAISSER DE LIGNES VIDES","Sélection de la nature du dispositif parmi : IML, Résidence sociale, Hébergement, Veille sociale, Mesures accompagnement, Premier accueil\nPour plus d'informations sur les natures de dispositif, veuillez consulter l'onglet Annexes","Sélection du type de dispositif selon la nature sélectionnée dans la colonne précédente\nPour plus d'informations sur les types de dispositif, veuillez consulter l'onglet Annexes","N° SIRET du dispositif (14 chiffres, composés des 9 chiffres du code SIREN de l'entité + 5 chiffres code NIC du dispositif)\nObligatoire pour tous les types de dispositifs sauf Mesures d'accompagnement et Autres hébergement\nPour les CHRS, ce SIRET doit être unique","N° FINESS du dispositif\n(9 chiffres, obligatoires pour les CHRS)\nExemple : 123456789","Contact courriel du Responsable de dispositif du dispositif sur le département\nCas particulier où le SIAO est rattaché à une association étant entité gestionnaire : il sera possible de saisir l'adresse mail d'un administrateur SIAO ou opérateur SIAO\nExemple : contact@asso.fr","Contact téléphone principal du dispositif \nExemple : 0000000000 ou 00 00 00 00 00","Contact courriel principal du dispositif\nExemple : contact@asso.fr","Sélection des compositions familiales acceptées par le dispositif\nSi vous cochez Oui à Accueil tout public, alors il n'est pas nécessaire de cocher le reste des colonnes\nChoix pour chaque composition familiale : Oui / Non",null,null,null,null,null,null,null,null,null,null,"Sélection des publics spécifiques pour lesquels le dispositif propose des places dédiées, parmi : FVV, FSM, Auteurs de violence, Réfugiés, Jeunes, Victimes de traite humaine, Personnes placées sous main de justice, Personnes en grande marginalité\nChoix pour chaque publics spécifiques : Oui / Non",null,null,null,null,null,null,null,null,"Saisie de l'adresse postale du dispositif\nExemple : 12 Rue des Oliviers","Saisie d'un éventuel complément d'adresse du dispositif\nExemple : Etages 3 à 5","Saisie de la ville du dispositif\nExemple : Vannes","Saisie du Code postal (5 chiffres) \nExemple : 45600 \nou 67 800","Saisie du Code INSEE (5 chiffres)\nExemple : 45600 \nou 67 800","Sélection du service de l'Etat à l'origine du financement : le détail des financements du dispositif sera à saisir dans l'onglet Financement du département\nPour plus d'informations sur les départements du dispositif, veuillez consulter l'onglet Annexes","Sélection des SIAO orienteurs parmi la liste des SIAO (au minimum un)",null,null,"Sélection de la configuration physique du dispositif : Regroupé, Diffus, Diffus & Regroupé","Sélection de la configuration du parc, seulement pour l'IML : Parc privé ou Parc social","Sélection de l'étiquette DPE du dispositif, seulement si la configuration physique est \"Regroupé\" : A à G","Saisie de la performance énergétique du dispositif (kWH/m²/an), seulement si la configuration physique est \"Regroupé\"","Le dispositif dispose d'une couverture CPOM\nChoix : Oui / Non","Sélection des catégories d'accompagnement proposées par le dispositif : cocher les cases seulement si le dispositif met en oeuvre des actions spécifiques, organisées, sur la base de ressources identifiées pour ces actions\nA noter que si au minimum un Travailleur social est affecté au dispositif, alors au moins une des trois premières catégories doit être cochée\nPour les CHRS, toutes les modalités d'accompagnement sont cochées par défaut (ne pas remplir)\nPour plus d'informations sur les modalités d'accompagnement, veuillez consulter l'onglet Annexes",null,null,null,null,null,null,"Le dispositif offre-t-il un protocole de réduction des risques ?\nChoix : Oui / Non","Le dispositif propose-t-il des repas aux usagers ? \nChoix : Oui / Non",null,null,"Le dispositif propose-t-il au moins un service de repas par jour dans un restaurant collectif ? \nChoix : Oui / Non","Le dispositif propose-t-il au moins un ticket restaurant par jour et par usager ? \nChoix : Oui / Non","Le dispositif propose-t-il des denrées, tickets repas, etc, équivalent à au moins un repas /j ? \nChoix : Oui / Non","Par qui le service de repas est-il assuré ?\nSi vous avez coché Oui dans la colonne BC","Si le dispositif a des parts de gratuité des denrées alimentaires, quelle part propose-t-il ?","Si le dispositif a des denrées alimentaires achetées via Banque alimentaire, quelle part représentent-elles ?","Sélection des éventuels services proposés par le dispositif parmi les suivants : animaux acceptés, laverie, dépôt de bagages, parking gratuit",null,null,null,"Sélection multiple des équipements proposés par le dispositif (sélectionnez les équipements l'un après l'autre dans la même cellule). Cette information est facultative et pourra être renseignée par le gestionnaire ultérieurement.","Le dispositif dispose-t-il de partenariats conventionnés \nChoix : Oui / Non","Saisie des horaires d'ouverture du dispositif (format 00h00)\nSi vous cochez Oui à Ouverture 24h/24, alors il n'est pas nécessaire de remplir les colonnes suivantes ",null,null,null,null,null,null,null,null,null,null,null,null,null,null,"Saisie des horaires de présentation s'il y en a \n(format 00h00)",null,"Saisie des horaires de surveillance de nuit s'il y en a (format 00h00)"]

{"sheet":"Financement du département","index":3,"n_rows":2000,"n_cols":20,"rows_kept":2000,"cut":false,"hidden":false,"merged":[[4,0,5,1],[4,2,5,4],[4,5,5,8],[4,9,5,19],[2,5,2,8],[2,9,2,19],[2,2,2,4]]}
["   FINANCEMENT DU DEPARTEMENT","   FINANCEMENT DU DEPARTEMENT"]
[]
["Guide de remplissage : ","Sélectionner l'entité et le dispositif bénéficiant du financement parmi ceux ayant été créés dans les onglets précédents.","1. Sélectionner si le financement est un financement P177 ou un financement Autre.\n2. S'il s'agit d'un financement P177, sélectionner le type de financement P177.\nToutes les places co-financées sont à inclure dans le financement P177\n3. Pour les cas particuliers des dispositifs 100% financés hors 177, préciser Autres, et le nom du financement (exemples : LAM ; collectivités ; contingent à disposition d'un réservataire)",null,null,"Saisir le nombre de places financées par modalité d'orientation : nombre de places orientées via le 115, nombre de places orientées via commission SIAO, nombre de places hors orientation SIAO.\nAttention : veuillez ne pas toucher à la colonne Total : celle-ci a pour unique but de vous permettre de visualiser le total des places financées saisies pour chaque ligne de financement.",null,null,null,"Saisir le nombre de places financées par type de public spécifique : nombre de places dédiées à des Femmes victimes de violence, Femmes sortants de maternité, Auteurs de violence, Réfugiés, Jeunes, Personnes LGBTQIA+, Victimes de traite humaine, Personnes placées sous main de justice, Personnes en grande marginalité.\nAttention : veuillez ne pas toucher aux colonnes Places généralistes et Total : celles-ci ont pour unique but de vous permettre de visualiser le total des places dédiées à des publics spécifiques saisies pour chaque ligne de financement."]
["Les données obligatoires sont suivies d'une *","Les données obligatoires sont suivies d'une *"]
["Financement du dispositif",null,"Typologie de financement",null,null,"Nombre de places financées par modalité d'orientation",null,null,null,"Nombre de places dédiées à des publics spécifiques"]
[]
["Entité*","Dispositif*","Type de financement*","Type de financement P177*","Nom du financement Autre*","Orientées via le 115","Orientées via commission SIAO","Autre régulateur","Total","Femmes victimes de violence","Femmes sortants de maternité","Auteurs de violence","Réfugiés","Jeunes","Personnes LGBTQIA+","Victimes de traite humaine","Personnes placées sous main de justice","Personnes en grande marginalité","Places généralistes","Total"]
["Sélection de l'entité du dispositif parmi les entités créées dans l'onglet Entités\nSi vous ne trouvez pas l'entité, vérifiez que celle-ci a bien été créée\nNE PAS LAISSER DE LIGNES VIDES","Sélection du dispositif parmi les dispositifs créés dans l'onglet Dispositifs\nSi vous ne trouvez pas le dispositif, vérifiez que celui-ci a bien été créé\nNE PAS LAISSER DE LIGNES VIDES","Sélection du type de financement \nToutes les places co-financées sont à inclure dans le financement P177\nChoix : P177 ou Autre","Sélection du type de financement P177, seulement si le type P177 a été coché dans la colonne précédente ","Saisie du nom du financement pour les cas particuliers des dispositifs 100% financés hors 177, seulement si le type de financement Autre a été coché\nExemple : LAM ; Collectivités ; Contingent à disposition d'un réservataire","Saisie du nombre de places du financement qui sont orientées via le 115\nNotamment si le dispositif est de type Hôtel ou Gymnase","Saisie du nombre de places du financement qui sont orientées via commission SIAO","Saisie du nombre de places du financement gérées par un autre régulateur, mais qui demeurent toutefois encadrées","Ne rien saisir ici : cette colonne vous permet de visualiser le total des places financées saisies ","Saisie du nombre de places du financement qui sont dédiées Femmes victimes de violence","Saisie du nombre de places du financement qui sont dédiées Femmes sortants de maternité","Saisie du nombre de places du financement qui sont dédiées Auteurs de violence","Saisie du nombre de places du financement qui sont dédiées Réfugiés","Saisie du nombre de places du financement qui sont dédiées Jeunes","Saisie du nombre de places du financement qui sont dédiées aux Personnes LGBTQIA+","Saisie du nombre de places du financement qui sont dédiées Victimes de traite humaine","Saisie du nombre de places du financement qui sont dédiées Personnes placées sous main de justice","Saisie du nombre de places du financement qui sont dédiées Personnes en grande marginalité","Ne rien saisir ici : cette colonne vous permet de visualiser le total des places généralistes (non dédiées à des publics spécifiques)","Ne rien saisir ici : cette colonne vous permet de visualiser le total des places dédiées saisies (publics spécifiques + places généralistes)"]
[null,null,null,null,null,null,null,null,{"$f":"SUM(F9:H9)","v":0},null,null,null,null,null,null,null,null,null,5,{"$f":"SUM(J9:S9)","v":5}]
[null,null,null,null,null,null,null,null,{"$f":"SUM(F10:H10)","v":0},null,null,null,null,null,null,null,null,null,{"$f":"I10-SUM(J10:R10)","v":0},{"$f":"SUM(J10:S10)","v":0}]
[null,null,null,null,null,null,null,null,0,null,null,null,null,null,null,null,null,null,0,0]
[null,null,null,null,null,null,null,null,0,null,null,null,null,null,null,null,null,null,0,0]
[null,null,null,null,null,null,null,null,0,null,null,null,null,null,null,null,null,null,0,0]
[null,null,null,null,null,null,null,null,0,null,null,null,null,null,null,null,null,null,0,0]
[null,null,null,null,null,null,null,null,0,null,null,null,null,null,null,null,null,null,0,0]
[null,null,null,null,null,null,null,null,0,null,null,null,null,null,null,null,null,null,0,0]
[null,null,null,null,null,null,null,null,0,null,null,null,null,null,null,null,null,null,0,0]
[null,null,null,null,null,null,null,null,{"$f":"SUM(F18:H18)","v":0},null,null,null,null,null,null,null,null,null,0,0]
[null,null,null,null,null,null,null,null,{"$f":"SUM(F19:H19)","v":0},null,null,null,null,null,null,null,null,null,0,0]
[null,null,null,null,null,null,null,null,0,null,null,null,null,null,null,null,null,null,0,0]
[null,null,null,null,null,null,null,null,0,null,null,null,null,null,null,null,null,null,0,0]
[null,null,null,null,null,null,null,null,0,null,null,null,null,null,null,null,null,null,0,0]
[null,null,null,null,null,null,null,null,0,null,null,null,null,null,null,null,null,null,0,0]
[null,null,null,null,null,null,null,null,0,null,null,null,null,null,null,null,null,null,0,0]
[null,null,null,null,null,null,null,null,0,null,null,null,null,null,null,null,null,null,0,0]
[null,null,null,null,null,null,null,null,0,null,null,null,null,null,null,null,null,null,0,0]
[null,null,null,null,null,null,null,null,0,null,null,null,null,null,null,null,null,null,0,0]
[null,null,null,null,null,null,null,null,0,null,null,null,null,null,null,null,null,null,0,0]
[null,null,null,null,null,null,null,null,0,null,null,null,null,null,null,null,null,null,0,0]
[null,null,null,null,null,null,null,null,0,null,null,null,null,null,null,null,null,null,0,0]
[null,null,null,null,null,null,null,null,0,null,null,null,null,null,null,null,null,null,0,0]
[null,null,null,null,null,null,null,null,0,null,null,null,null,null,null,null,null,null,0,0]
[null,null,null,null,null,null,null,null,0,null,null,null,null,null,null,null,null,null,0,0]
[null,null,null,null,null,null,null,null,0,null,null,null,null,null,null,null,null,null,0,0]
[null,null,null,null,null,null,null,null,0,null,null,null,null,null,null,null,null,null,0,0]
[null,null,null,null,null,null,null,null,0,null,null,null,null,null,null,null,null,null,0,0]
[null,null,null,null,null,null,null,null,0,null,null,null,null,null,null,null,null,null,0,0]
[null,null,null,null,null,null,null,null,0,null,null,null,null,null,null,null,null,null,0,0]
[null,null,null,null,null,null,null,null,0,null,null,null,null,null,null,null,null,null,0,0]
[null,null,null,null,null,null,null,null,0,null,null,null,null,null,null,null,null,null,0,0]
[null,null,null,null,null,null,null,null,0,null,null,null,null,null,null,null,null,null,0,0]
[null,null,null,null,null,null,null,null,0,null,null,null,null,null,null,null,null,null,0,0]
[null,null,null,null,null,null,null,null,0,null,null,null,null,null,null,null,null,null,0,0]
[null,null,null,null,null,null,null,null,0,null,null,null,null,null,null,null,null,null,0,0]
[null,null,null,null,null,null,null,null,0,null,null,null,null,null,null,null,null,null,0,0]
[null,null,null,null,null,null,null,null,0,null,null,null,null,null,null,null,null,null,0,0]
[null,null,null,null,null,null,null,null,0,null,null,null,null,null,null,null,null,null,0,0]
[null,null,null,null,null,null,null,null,0,null,null,null,null,null,null,null,null,null,0,0]
[null,null,null,null,null,null,null,null,0,null,null,null,null,null,null,null,null,null,0,0]
[null,null,null,null,null,null,null,null,0,null,null,null,null,null,null,null,null,null,0,0]
[null,null,null,null,null,null,null,null,0,null,null,null,null,null,null,null,null,null,0,0]
[null,null,null,null,null,null,null,null,0,null,null,null,null,null,null,null,null,null,0,0]
[null,null,null,null,null,null,null,null,0,null,null,null,null,null,null,null,null,null,0,0]
[null,null,null,null,null,null,null,null,0,null,null,null,null,null,null,null,null,null,0,0]
[null,null,null,null,null,null,null,null,0,null,null,null,null,null,null,null,null,null,0,0]
[null,null,null,null,null,null,null,null,0,null,null,null,null,null,null,null,null,null,0,0]
[null,null,null,null,null,null,null,null,0,null,null,null,null,null,null,null,null,null,0,0]
[null,null,null,null,null,null,null,null,0,null,null,null,null,null,null,null,null,null,0,0]
[null,null,null,null,null,null,null,null,0,null,null,null,null,null,null,null,null,null,0,0]
[null,null,null,null,null,null,null,null,0,null,null,null,null,null,null,null,null,null,0,0]
[null,null,null,null,null,null,null,null,0,null,null,null,null,null,null,null,null,null,0,0]
[null,null,null,null,null,null,null,null,0,null,null,null,null,null,null,null,null,null,0,0]
[null,null,null,null,null,null,null,null,0,null,null,null,null,null,null,null,null,null,0,0]
[null,null,null,null,null,null,null,null,0,null,null,null,null,null,null,null,null,null,0,0]
[null,null,null,null,null,null,null,null,0,null,null,null,null,null,null,null,null,null,0,0]
[null,null,null,null,null,null,null,null,0,null,null,null,null,null,null,null,null,null,0,0]
[null,null,null,null,null,null,null,null,0,null,null,null,null,null,null,null,null,null,0,0]
[null,null,null,null,null,null,null,null,0,null,null,null,null,null,null,null,null,null,0,0]
[null,null,null,null,null,null,null,null,0,null,null,null,null,null,null,null,null,null,0,0]
[null,null,null,null,null,null,null,null,0,null,null,null,null,null,null,null,null,null,0,0]
[null,null,null,null,null,null,null,null,0,null,null,null,null,null,null,null,null,null,0,0]
[null,null,null,null,null,null,null,null,0,null,null,null,null,null,null,null,null,null,0,0]
[null,null,null,null,null,null,null,null,0,null,null,null,null,null,null,null,null,null,0,0]
[null,null,null,null,null,null,null,null,0,null,null,null,null,null,null,null,null,null,{"$f":"I74-SUM(J74:R74)","v":0},{"$f":"SUM(J74:S74)","v":0}]
[null,null,null,null,null,null,null,null,0,null,null,null,null,null,null,null,null,null,0,0]
[null,null,null,null,null,null,null,null,0,null,null,null,null,null,null,null,null,null,0,0]
[null,null,null,null,null,null,null,null,0,null,null,null,null,null,null,null,null,null,0,0]
[null,null,null,null,null,null,null,null,0,null,null,null,null,null,null,null,null,null,0,0]
[null,null,null,null,null,null,null,null,0,null,null,null,null,null,null,null,null,null,0,0]
[null,null,null,null,null,null,null,null,0,null,null,null,null,null,null,null,null,null,0,0]
[null,null,null,null,null,null,null,null,0,null,null,null,null,null,null,null,null,null,0,0]
[null,null,null,null,null,null,null,null,0,null,null,null,null,null,null,null,null,null,0,0]
[null,null,null,null,null,null,null,null,{"$f":"SUM(F83:H83)","v":0},null,null,null,null,null,null,null,null,null,0,0]
[null,null,null,null,null,null,null,null,0,null,null,null,null,null,null,null,null,null,0,0]
[null,null,null,null,null,null,null,null,0,null,null,null,null,null,null,null,null,null,0,0]
[null,null,null,null,null,null,null,null,0,null,null,null,null,null,null,null,null,null,0,0]
[null,null,null,null,null,null,null,null,0,null,null,null,null,null,null,null,null,null,0,0]
[null,null,null,null,null,null,null,null,0,null,null,null,null,null,null,null,null,null,0,0]
[null,null,null,null,null,null,null,null,0,null,null,null,null,null,null,null,null,null,0,0]
[null,null,null,null,null,null,null,null,0,null,null,null,null,null,null,null,null,null,0,0]
[null,null,null,null,null,null,null,null,0,null,null,null,null,null,null,null,null,null,0,0]
[null,null,null,null,null,null,null,null,0,null,null,null,null,null,null,null,null,null,0,0]
[null,null,null,null,null,null,null,null,0,null,null,null,null,null,null,null,null,null,0,0]
[null,null,null,null,null,null,null,null,0,null,null,null,null,null,null,null,null,null,0,0]
[null,null,null,null,null,null,null,null,0,null,null,null,null,null,null,null,null,null,0,0]
[null,null,null,null,null,null,null,null,0,null,null,null,null,null,null,null,null,null,0,0]
[null,null,null,null,null,null,null,null,0,null,null,null,null,null,null,null,null,null,0,0]
[null,null,null,null,null,null,null,null,0,null,null,null,null,null,null,null,null,null,0,0]
[null,null,null,null,null,null,null,null,0,null,null,null,null,null,null,null,null,null,0,0]
[null,null,null,null,null,null,null,null,0,null,null,null,null,null,null,null,null,null,0,0]
[null,null,null,null,null,null,null,null,0,null,null,null,null,null,null,null,null,null,0,0]
[null,null,null,null,null,null,null,null,0,null,null,null,null,null,null,null,null,null,0,0]
[null,null,null,null,null,null,null,null,0,null,null,null,null,null,null,null,null,null,0,0]
[null,null,null,null,null,null,null,null,0,null,null,null,null,null,null,null,null,null,0,0]
[null,null,null,null,null,null,null,null,0,null,null,null,null,null,null,null,null,null,0,0]
[null,null,null,null,null,null,null,null,0,null,null,null,null,null,null,null,null,null,0,0]
[null,null,null,null,null,null,null,null,0,null,null,null,null,null,null,null,null,null,0,0]
[null,null,null,null,null,null,null,null,0,null,null,null,null,null,null,null,null,null,0,0]
[null,null,null,null,null,null,null,null,0,null,null,null,null,null,null,null,null,null,0,0]
[null,null,null,null,null,null,null,null,0,null,null,null,null,null,null,null,null,null,0,0]
[null,null,null,null,null,null,null,null,0,null,null,null,null,null,null,null,null,null,0,0]
[null,null,null,null,null,null,null,null,0,null,null,null,null,null,null,null,null,null,0,0]
[null,null,null,null,null,null,null,null,0,null,null,null,null,null,null,null,null,null,0,0]
[null,null,null,null,null,null,null,null,0,null,null,null,null,null,null,null,null,null,0,0]
[null,null,null,null,null,null,null,null,0,null,null,null,null,null,null,null,null,null,0,0]
[null,null,null,null,null,null,null,null,0,null,null,null,null,null,null,null,null,null,0,0]
[null,null,null,null,null,null,null,null,0,null,null,null,null,null,null,null,null,null,0,0]
[null,null,null,null,null,null,null,null,0,null,null,null,null,null,null,null,null,null,0,0]
[null,null,null,null,null,null,null,null,0,null,null,null,null,null,null,null,null,null,0,0]
[null,null,null,null,null,null,null,null,0,null,null,null,null,null,null,null,null,null,0,0]
[null,null,null,null,null,null,null,null,0,null,null,null,null,null,null,null,null,null,0,0]
[null,null,null,null,null,null,null,null,0,null,null,null,null,null,null,null,null,null,0,0]
[null,null,null,null,null,null,null,null,0,null,null,null,null,null,null,null,null,null,0,0]
[null,null,null,null,null,null,null,null,0,null,null,null,null,null,null,null,null,null,0,0]
[null,null,null,null,null,null,null,null,0,null,null,null,null,null,null,null,null,null,0,0]
[null,null,null,null,null,null,null,null,0,null,null,null,null,null,null,null,null,null,0,0]
[null,null,null,null,null,null,null,null,0,null,null,null,null,null,null,null,null,null,0,0]
[null,null,null,null,null,null,null,null,0,null,null,null,null,null,null,null,null,null,0,0]
[null,null,null,null,null,null,null,null,0,null,null,null,null,null,null,null,null,null,0,0]
[null,null,null,null,null,null,null,null,0,null,null,null,null,null,null,null,null,null,0,0]
[null,null,null,null,null,null,null,null,0,null,null,null,null,null,null,null,null,null,0,0]
[null,null,null,null,null,null,null,null,0,null,null,null,null,null,null,null,null,null,0,0]
[null,null,null,null,null,null,null,null,0,null,null,null,null,null,null,null,null,null,0,0]
[null,null,null,null,null,null,null,null,0,null,null,null,null,null,null,null,null,null,0,0]
[null,null,null,null,null,null,null,null,0,null,null,null,null,null,null,null,null,null,0,0]
[null,null,null,null,null,null,null,null,0,null,null,null,null,null,null,null,null,null,0,0]
[null,null,null,null,null,null,null,null,0,null,null,null,null,null,null,null,null,null,0,0]
[null,null,null,null,null,null,null,null,0,null,null,null,null,null,null,null,null,null,{"$f":"I138-SUM(J138:R138)","v":0},{"$f":"SUM(J138:S138)","v":0}]
[null,null,null,null,null,null,null,null,0,null,null,null,null,null,null,null,null,null,0,0]
[null,null,null,null,null,null,null,null,0,null,null,null,null,null,null,null,null,null,0,0]
[null,null,null,null,null,null,null,null,0,null,null,null,null,null,null,null,null,null,0,0]
[null,null,null,null,null,null,null,null,0,null,null,null,null,null,null,null,null,null,0,0]
[null,null,null,null,null,null,null,null,0,null,null,null,null,null,null,null,null,null,0,0]
[null,null,null,null,null,null,null,null,0,null,null,null,null,null,null,null,null,null,0,0]
[null,null,null,null,null,null,null,null,0,null,null,null,null,null,null,null,null,null,0,0]
[null,null,null,null,null,null,null,null,0,null,null,null,null,null,null,null,null,null,0,0]
[null,null,null,null,null,null,null,null,{"$f":"SUM(F147:H147)","v":0},null,null,null,null,null,null,null,null,null,0,0]
[null,null,null,null,null,null,null,null,0,null,null,null,null,null,null,null,null,null,0,0]
[null,null,null,null,null,null,null,null,0,null,null,null,null,null,null,null,null,null,0,0]
[null,null,null,null,null,null,null,null,0,null,null,null,null,null,null,null,null,null,0,0]
[null,null,null,null,null,null,null,null,0,null,null,null,null,null,null,null,null,null,0,0]
[null,null,null,null,null,null,null,null,0,null,null,null,null,null,null,null,null,null,0,0]
[null,null,null,null,null,null,null,null,0,null,null,null,null,null,null,null,null,null,0,0]
[null,null,null,null,null,null,null,null,0,null,null,null,null,null,null,null,null,null,0,0]
[null,null,null,null,null,null,null,null,0,null,null,null,null,null,null,null,null,null,0,0]
[null,null,null,null,null,null,null,null,0,null,null,null,null,null,null,null,null,null,0,0]
[null,null,null,null,null,null,null,null,0,null,null,null,null,null,null,null,null,null,0,0]
[null,null,null,null,null,null,null,null,0,null,null,null,null,null,null,null,null,null,0,0]
[null,null,null,null,null,null,null,null,0,null,null,null,null,null,null,null,null,null,0,0]
[null,null,null,null,null,null,null,null,0,null,null,null,null,null,null,null,null,null,0,0]
[null,null,null,null,null,null,null,null,0,null,null,null,null,null,null,null,null,null,0,0]
[null,null,null,null,null,null,null,null,0,null,null,null,null,null,null,null,null,null,0,0]
[null,null,null,null,null,null,null,null,0,null,null,null,null,null,null,null,null,null,0,0]
[null,null,null,null,null,null,null,null,0,null,null,null,null,null,null,null,null,null,0,0]
[null,null,null,null,null,null,null,null,0,null,null,null,null,null,null,null,null,null,0,0]
[null,null,null,null,null,null,null,null,0,null,null,null,null,null,null,null,null,null,0,0]
[null,null,null,null,null,null,null,null,0,null,null,null,null,null,null,null,null,null,0,0]
[null,null,null,null,null,null,null,null,0,null,null,null,null,null,null,null,null,null,0,0]
[null,null,null,null,null,null,null,null,0,null,null,null,null,null,null,null,null,null,0,0]
[null,null,null,null,null,null,null,null,0,null,null,null,null,null,null,null,null,null,0,0]
[null,null,null,null,null,null,null,null,0,null,null,null,null,null,null,null,null,null,0,0]
[null,null,null,null,null,null,null,null,0,null,null,null,null,null,null,null,null,null,0,0]
[null,null,null,null,null,null,null,null,0,null,null,null,null,null,null,null,null,null,0,0]
[null,null,null,null,null,null,null,null,0,null,null,null,null,null,null,null,null,null,0,0]
[null,null,null,null,null,null,null,null,0,null,null,null,null,null,null,null,null,null,0,0]
[null,null,null,null,null,null,null,null,0,null,null,null,null,null,null,null,null,null,0,0]
[null,null,null,null,null,null,null,null,0,null,null,null,null,null,null,null,null,null,0,0]
[null,null,null,null,null,null,null,null,0,null,null,null,null,null,null,null,null,null,0,0]
[null,null,null,null,null,null,null,null,0,null,null,null,null,null,null,null,null,null,0,0]
[null,null,null,null,null,null,null,null,0,null,null,null,null,null,null,null,null,null,0,0]
[null,null,null,null,null,null,null,null,0,null,null,null,null,null,null,null,null,null,0,0]
[null,null,null,null,null,null,null,null,0,null,null,null,null,null,null,null,null,null,0,0]
[null,null,null,null,null,null,null,null,0,null,null,null,null,null,null,null,null,null,0,0]
[null,null,null,null,null,null,null,null,0,null,null,null,null,null,null,null,null,null,0,0]
[null,null,null,null,null,null,null,null,0,null,null,null,null,null,null,null,null,null,0,0]
[null,null,null,null,null,null,null,null,0,null,null,null,null,null,null,null,null,null,0,0]
[null,null,null,null,null,null,null,null,0,null,null,null,null,null,null,null,null,null,0,0]
[null,null,null,null,null,null,null,null,0,null,null,null,null,null,null,null,null,null,0,0]
[null,null,null,null,null,null,null,null,0,null,null,null,null,null,null,null,null,null,0,0]
[null,null,null,null,null,null,null,null,0,null,null,null,null,null,null,null,null,null,0,0]
[null,null,null,null,null,null,null,null,0,null,null,null,null,null,null,null,null,null,0,0]
[null,null,null,null,null,null,null,null,0,null,null,null,null,null,null,null,null,null,0,0]
[null,null,null,null,null,null,null,null,0,null,null,null,null,null,null,null,null,null,0,0]
[null,null,null,null,null,null,null,null,0,null,null,null,null,null,null,null,null,null,0,0]
[null,null,null,null,null,null,null,null,0,null,null,null,null,null,null,null,null,null,0,0]
[null,null,null,null,null,null,null,null,0,null,null,null,null,null,null,null,null,null,0,0]
[null,null,null,null,null,null,null,null,0,null,null,null,null,null,null,null,null,null,0,0]
[null,null,null,null,null,null,null,null,0,null,null,null,null,null,null,null,null,null,0,0]
[null,null,null,null,null,null,null,null,0,null,null,null,null,null,null,null,null,null,0,0]
[null,null,null,null,null,null,null,null,0,null,null,null,null,null,null,null,null,null,0,0]
[null,null,null,null,null,null,null,null,0,null,null,null,null,null,null,null,null,null,0,0]
[null,null,null,null,null,null,null,null,0,null,null,null,null,null,null,null,null,null,{"$f":"I202-SUM(J202:R202)","v":0},{"$f":"SUM(J202:S202)","v":0}]
[null,null,null,null,null,null,null,null,0,null,null,null,null,null,null,null,null,null,0,0]
[null,null,null,null,null,null,null,null,0,null,null,null,null,null,null,null,null,null,0,0]
[null,null,null,null,null,null,null,null,0,null,null,null,null,null,null,null,null,null,0,0]
[null,null,null,null,null,null,null,null,0,null,null,null,null,null,null,null,null,null,0,0]
[null,null,null,null,null,null,null,null,0,null,null,null,null,null,null,null,null,null,0,0]
[null,null,null,null,null,null,null,null,0,null,null,null,null,null,null,null,null,null,0,0]
[null,null,null,null,null,null,null,null,0,null,null,null,null,null,null,null,null,null,0,0]
[null,null,null,null,null,null,null,null,0,null,null,null,null,null,null,null,null,null,0,0]
[null,null,null,null,null,null,null,null,{"$f":"SUM(F211:H211)","v":0},null,null,null,null,null,null,null,null,null,0,0]
[null,null,null,null,null,null,null,null,0,null,null,null,null,null,null,null,null,null,0,0]
[null,null,null,null,null,null,null,null,0,null,null,null,null,null,null,null,null,null,0,0]
[null,null,null,null,null,null,null,null,0,null,null,null,null,null,null,null,null,null,0,0]
[null,null,null,null,null,null,null,null,0,null,null,null,null,null,null,null,null,null,0,0]
[null,null,null,null,null,null,null,null,0,null,null,null,null,null,null,null,null,null,0,0]
[null,null,null,null,null,null,null,null,0,null,null,null,null,null,null,null,null,null,0,0]
[null,null,null,null,null,null,null,null,0,null,null,null,null,null,null,null,null,null,0,0]
[null,null,null,null,null,null,null,null,0,null,null,null,null,null,null,null,null,null,0,0]
[null,null,null,null,null,null,null,null,0,null,null,null,null,null,null,null,null,null,0,0]
[null,null,null,null,null,null,null,null,0,null,null,null,null,null,null,null,null,null,0,0]
[null,null,null,null,null,null,null,null,0,null,null,null,null,null,null,null,null,null,0,0]
[null,null,null,null,null,null,null,null,0,null,null,null,null,null,null,null,null,null,0,0]
[null,null,null,null,null,null,null,null,0,null,null,null,null,null,null,null,null,null,0,0]
[null,null,null,null,null,null,null,null,0,null,null,null,null,null,null,null,null,null,0,0]
[null,null,null,null,null,null,null,null,0,null,null,null,null,null,null,null,null,null,0,0]
[null,null,null,null,null,null,null,null,0,null,null,null,null,null,null,null,null,null,0,0]
[null,null,null,null,null,null,null,null,0,null,null,null,null,null,null,null,null,null,0,0]
[null,null,null,null,null,null,null,null,0,null,null,null,null,null,null,null,null,null,0,0]
[null,null,null,null,null,null,null,null,0,null,null,null,null,null,null,null,null,null,0,0]
[null,null,null,null,null,null,null,null,0,null,null,null,null,null,null,null,null,null,0,0]
[null,null,null,null,null,null,null,null,0,null,null,null,null,null,null,null,null,null,0,0]
[null,null,null,null,null,null,null,null,0,null,null,null,null,null,null,null,null,null,0,0]
[null,null,null,null,null,null,null,null,0,null,null,null,null,null,null,null,null,null,0,0]
[null,null,null,null,null,null,null,null,0,null,null,null,null,null,null,null,null,null,0,0]
[null,null,null,null,null,null,null,null,0,null,null,null,null,null,null,null,null,null,0,0]
[null,null,null,null,null,null,null,null,0,null,null,null,null,null,null,null,null,null,0,0]
[null,null,null,null,null,null,null,null,0,null,null,null,null,null,null,null,null,null,0,0]
[null,null,null,null,null,null,null,null,0,null,null,null,null,null,null,null,null,null,0,0]
[null,null,null,null,null,null,null,null,0,null,null,null,null,null,null,null,null,null,0,0]
[null,null,null,null,null,null,null,null,0,null,null,null,null,null,null,null,null,null,0,0]
[null,null,null,null,null,null,null,null,0,null,null,null,null,null,null,null,null,null,0,0]
[null,null,null,null,null,null,null,null,0,null,null,null,null,null,null,null,null,null,0,0]
[null,null,null,null,null,null,null,null,0,null,null,null,null,null,null,null,null,null,0,0]
[null,null,null,null,null,null,null,null,0,null,null,null,null,null,null,null,null,null,0,0]
[null,null,null,null,null,null,null,null,0,null,null,null,null,null,null,null,null,null,0,0]
[null,null,null,null,null,null,null,null,0,null,null,null,null,null,null,null,null,null,0,0]
[null,null,null,null,null,null,null,null,0,null,null,null,null,null,null,null,null,null,0,0]
[null,null,null,null,null,null,null,null,0,null,null,null,null,null,null,null,null,null,0,0]
[null,null,null,null,null,null,null,null,0,null,null,null,null,null,null,null,null,null,0,0]
[null,null,null,null,null,null,null,null,0,null,null,null,null,null,null,null,null,null,0,0]
[null,null,null,null,null,null,null,null,0,null,null,null,null,null,null,null,null,null,0,0]
[null,null,null,null,null,null,null,null,0,null,null,null,null,null,null,null,null,null,0,0]
[null,null,null,null,null,null,null,null,0,null,null,null,null,null,null,null,null,null,0,0]
[null,null,null,null,null,null,null,null,0,null,null,null,null,null,null,null,null,null,0,0]
[null,null,null,null,null,null,null,null,0,null,null,null,null,null,null,null,null,null,0,0]
[null,null,null,null,null,null,null,null,0,null,null,null,null,null,null,null,null,null,0,0]
[null,null,null,null,null,null,null,null,0,null,null,null,null,null,null,null,null,null,0,0]
[null,null,null,null,null,null,null,null,0,null,null,null,null,null,null,null,null,null,0,0]
[null,null,null,null,null,null,null,null,0,null,null,null,null,null,null,null,null,null,0,0]
[null,null,null,null,null,null,null,null,0,null,null,null,null,null,null,null,null,null,0,0]
[null,null,null,null,null,null,null,null,0,null,null,null,null,null,null,null,null,null,0,0]
[null,null,null,null,null,null,null,null,0,null,null,null,null,null,null,null,null,null,0,0]
[null,null,null,null,null,null,null,null,0,null,null,null,null,null,null,null,null,null,0,0]
[null,null,null,null,null,null,null,null,0,null,null,null,null,null,null,null,null,null,0,0]
[null,null,null,null,null,null,null,null,0,null,null,null,null,null,null,null,null,null,{"$f":"I266-SUM(J266:R266)","v":0},{"$f":"SUM(J266:S266)","v":0}]
[null,null,null,null,null,null,null,null,0,null,null,null,null,null,null,null,null,null,0,0]
[null,null,null,null,null,null,null,null,0,null,null,null,null,null,null,null,null,null,0,0]
[null,null,null,null,null,null,null,null,0,null,null,null,null,null,null,null,null,null,0,0]
[null,null,null,null,null,null,null,null,0,null,null,null,null,null,null,null,null,null,0,0]
[null,null,null,null,null,null,null,null,0,null,null,null,null,null,null,null,null,null,0,0]
[null,null,null,null,null,null,null,null,0,null,null,null,null,null,null,null,null,null,0,0]
[null,null,null,null,null,null,null,null,0,null,null,null,null,null,null,null,null,null,0,0]
[null,null,null,null,null,null,null,null,0,null,null,null,null,null,null,null,null,null,0,0]
[null,null,null,null,null,null,null,null,{"$f":"SUM(F275:H275)","v":0},null,null,null,null,null,null,null,null,null,0,0]
[null,null,null,null,null,null,null,null,0,null,null,null,null,null,null,null,null,null,0,0]
[null,null,null,null,null,null,null,null,0,null,null,null,null,null,null,null,null,null,0,0]
[null,null,null,null,null,null,null,null,0,null,null,null,null,null,null,null,null,null,0,0]
[null,null,null,null,null,null,null,null,0,null,null,null,null,null,null,null,null,null,0,0]
[null,null,null,null,null,null,null,null,0,null,null,null,null,null,null,null,null,null,0,0]
[null,null,null,null,null,null,null,null,0,null,null,null,null,null,null,null,null,null,0,0]
[null,null,null,null,null,null,null,null,0,null,null,null,null,null,null,null,null,null,0,0]
[null,null,null,null,null,null,null,null,0,null,null,null,null,null,null,null,null,null,0,0]
[null,null,null,null,null,null,null,null,0,null,null,null,null,null,null,null,null,null,0,0]
[null,null,null,null,null,null,null,null,0,null,null,null,null,null,null,null,null,null,0,0]
[null,null,null,null,null,null,null,null,0,null,null,null,null,null,null,null,null,null,0,0]
[null,null,null,null,null,null,null,null,0,null,null,null,null,null,null,null,null,null,0,0]
[null,null,null,null,null,null,null,null,0,null,null,null,null,null,null,null,null,null,0,0]
[null,null,null,null,null,null,null,null,0,null,null,null,null,null,null,null,null,null,0,0]
[null,null,null,null,null,null,null,null,0,null,null,null,null,null,null,null,null,null,0,0]
[null,null,null,null,null,null,null,null,0,null,null,null,null,null,null,null,null,null,0,0]
[null,null,null,null,null,null,null,null,0,null,null,null,null,null,null,null,null,null,0,0]
[null,null,null,null,null,null,null,null,0,null,null,null,null,null,null,null,null,null,0,0]
[null,null,null,null,null,null,null,null,0,null,null,null,null,null,null,null,null,null,0,0]
[null,null,null,null,null,null,null,null,0,null,null,null,null,null,null,null,null,null,0,0]
[null,null,null,null,null,null,null,null,0,null,null,null,null,null,null,null,null,null,0,0]
[null,null,null,null,null,null,null,null,0,null,null,null,null,null,null,null,null,null,0,0]
[null,null,null,null,null,null,null,null,0,null,null,null,null,null,null,null,null,null,0,0]
[null,null,null,null,null,null,null,null,0,null,null,null,null,null,null,null,null,null,0,0]
[null,null,null,null,null,null,null,null,0,null,null,null,null,null,null,null,null,null,0,0]
[null,null,null,null,null,null,null,null,0,null,null,null,null,null,null,null,null,null,0,0]
[null,null,null,null,null,null,null,null,0,null,null,null,null,null,null,null,null,null,0,0]
[null,null,null,null,null,null,null,null,0,null,null,null,null,null,null,null,null,null,0,0]
[null,null,null,null,null,null,null,null,0,null,null,null,null,null,null,null,null,null,0,0]
[null,null,null,null,null,null,null,null,0,null,null,null,null,null,null,null,null,null,0,0]
[null,null,null,null,null,null,null,null,0,null,null,null,null,null,null,null,null,null,0,0]
[null,null,null,null,null,null,null,null,0,null,null,null,null,null,null,null,null,null,0,0]
[null,null,null,null,null,null,null,null,0,null,null,null,null,null,null,null,null,null,0,0]
[null,null,null,null,null,null,null,null,0,null,null,null,null,null,null,null,null,null,0,0]
[null,null,null,null,null,null,null,null,0,null,null,null,null,null,null,null,null,null,0,0]
[null,null,null,null,null,null,null,null,0,null,null,null,null,null,null,null,null,null,0,0]
[null,null,null,null,null,null,null,null,0,null,null,null,null,null,null,null,null,null,0,0]
[null,null,null,null,null,null,null,null,0,null,null,null,null,null,null,null,null,null,0,0]
[null,null,null,null,null,null,null,null,0,null,null,null,null,null,null,null,null,null,0,0]
[null,null,null,null,null,null,null,null,0,null,null,null,null,null,null,null,null,null,0,0]
[null,null,null,null,null,null,null,null,0,null,null,null,null,null,null,null,null,null,0,0]
[null,null,null,null,null,null,null,null,0,null,null,null,null,null,null,null,null,null,0,0]
[null,null,null,null,null,null,null,null,0,null,null,null,null,null,null,null,null,null,0,0]
[null,null,null,null,null,null,null,null,0,null,null,null,null,null,null,null,null,null,0,0]
[null,null,null,null,null,null,null,null,0,null,null,null,null,null,null,null,null,null,0,0]
[null,null,null,null,null,null,null,null,0,null,null,null,null,null,null,null,null,null,0,0]
[null,null,null,null,null,null,null,null,0,null,null,null,null,null,null,null,null,null,0,0]
[null,null,null,null,null,null,null,null,0,null,null,null,null,null,null,null,null,null,0,0]
[null,null,null,null,null,null,null,null,0,null,null,null,null,null,null,null,null,null,0,0]
[null,null,null,null,null,null,null,null,0,null,null,null,null,null,null,null,null,null,0,0]
[null,null,null,null,null,null,null,null,0,null,null,null,null,null,null,null,null,null,0,0]
[null,null,null,null,null,null,null,null,0,null,null,null,null,null,null,null,null,null,0,0]
[null,null,null,null,null,null,null,null,0,null,null,null,null,null,null,null,null,null,0,0]
[null,null,null,null,null,null,null,null,0,null,null,null,null,null,null,null,null,null,0,0]
[null,null,null,null,null,null,null,null,0,null,null,null,null,null,null,null,null,null,{"$f":"I330-SUM(J330:R330)","v":0},{"$f":"SUM(J330:S330)","v":0}]
[null,null,null,null,null,null,null,null,0,null,null,null,null,null,null,null,null,null,0,0]
[null,null,null,null,null,null,null,null,0,null,null,null,null,null,null,null,null,null,0,0]
[null,null,null,null,null,null,null,null,0,null,null,null,null,null,null,null,null,null,0,0]
[null,null,null,null,null,null,null,null,0,null,null,null,null,null,null,null,null,null,0,0]
[null,null,null,null,null,null,null,null,0,null,null,null,null,null,null,null,null,null,0,0]
[null,null,null,null,null,null,null,null,0,null,null,null,null,null,null,null,null,null,0,0]
[null,null,null,null,null,null,null,null,0,null,null,null,null,null,null,null,null,null,0,0]
[null,null,null,null,null,null,null,null,0,null,null,null,null,null,null,null,null,null,0,0]
[null,null,null,null,null,null,null,null,{"$f":"SUM(F339:H339)","v":0},null,null,null,null,null,null,null,null,null,0,0]
[null,null,null,null,null,null,null,null,0,null,null,null,null,null,null,null,null,null,0,0]
[null,null,null,null,null,null,null,null,0,null,null,null,null,null,null,null,null,null,0,0]
[null,null,null,null,null,null,null,null,0,null,null,null,null,null,null,null,null,null,0,0]
[null,null,null,null,null,null,null,null,0,null,null,null,null,null,null,null,null,null,0,0]
[null,null,null,null,null,null,null,null,0,null,null,null,null,null,null,null,null,null,0,0]
[null,null,null,null,null,null,null,null,0,null,null,null,null,null,null,null,null,null,0,0]
[null,null,null,null,null,null,null,null,0,null,null,null,null,null,null,null,null,null,0,0]
[null,null,null,null,null,null,null,null,0,null,null,null,null,null,null,null,null,null,0,0]
[null,null,null,null,null,null,null,null,0,null,null,null,null,null,null,null,null,null,0,0]
[null,null,null,null,null,null,null,null,0,null,null,null,null,null,null,null,null,null,0,0]
[null,null,null,null,null,null,null,null,0,null,null,null,null,null,null,null,null,null,0,0]
[null,null,null,null,null,null,null,null,0,null,null,null,null,null,null,null,null,null,0,0]
[null,null,null,null,null,null,null,null,0,null,null,null,null,null,null,null,null,null,0,0]
[null,null,null,null,null,null,null,null,0,null,null,null,null,null,null,null,null,null,0,0]
[null,null,null,null,null,null,null,null,0,null,null,null,null,null,null,null,null,null,0,0]
[null,null,null,null,null,null,null,null,0,null,null,null,null,null,null,null,null,null,0,0]
[null,null,null,null,null,null,null,null,0,null,null,null,null,null,null,null,null,null,0,0]
[null,null,null,null,null,null,null,null,0,null,null,null,null,null,null,null,null,null,0,0]
[null,null,null,null,null,null,null,null,0,null,null,null,null,null,null,null,null,null,0,0]
[null,null,null,null,null,null,null,null,0,null,null,null,null,null,null,null,null,null,0,0]
[null,null,null,null,null,null,null,null,0,null,null,null,null,null,null,null,null,null,0,0]
[null,null,null,null,null,null,null,null,0,null,null,null,null,null,null,null,null,null,0,0]
[null,null,null,null,null,null,null,null,0,null,null,null,null,null,null,null,null,null,0,0]
[null,null,null,null,null,null,null,null,0,null,null,null,null,null,null,null,null,null,0,0]
[null,null,null,null,null,null,null,null,0,null,null,null,null,null,null,null,null,null,0,0]
[null,null,null,null,null,null,null,null,0,null,null,null,null,null,null,null,null,null,0,0]
[null,null,null,null,null,null,null,null,0,null,null,null,null,null,null,null,null,null,0,0]
[null,null,null,null,null,null,null,null,0,null,null,null,null,null,null,null,null,null,0,0]
[null,null,null,null,null,null,null,null,0,null,null,null,null,null,null,null,null,null,0,0]
[null,null,null,null,null,null,null,null,0,null,null,null,null,null,null,null,null,null,0,0]
[null,null,null,null,null,null,null,null,0,null,null,null,null,null,null,null,null,null,0,0]
[null,null,null,null,null,null,null,null,0,null,null,null,null,null,null,null,null,null,0,0]
[null,null,null,null,null,null,null,null,0,null,null,null,null,null,null,null,null,null,0,0]
[null,null,null,null,null,null,null,null,0,null,null,null,null,null,null,null,null,null,0,0]
[null,null,null,null,null,null,null,null,0,null,null,null,null,null,null,null,null,null,0,0]
[null,null,null,null,null,null,null,null,0,null,null,null,null,null,null,null,null,null,0,0]
[null,null,null,null,null,null,null,null,0,null,null,null,null,null,null,null,null,null,0,0]
[null,null,null,null,null,null,null,null,0,null,null,null,null,null,null,null,null,null,0,0]
[null,null,null,null,null,null,null,null,0,null,null,null,null,null,null,null,null,null,0,0]
[null,null,null,null,null,null,null,null,0,null,null,null,null,null,null,null,null,null,0,0]
[null,null,null,null,null,null,null,null,0,null,null,null,null,null,null,null,null,null,0,0]
[null,null,null,null,null,null,null,null,0,null,null,null,null,null,null,null,null,null,0,0]
[null,null,null,null,null,null,null,null,0,null,null,null,null,null,null,null,null,null,0,0]
[null,null,null,null,null,null,null,null,0,null,null,null,null,null,null,null,null,null,0,0]
[null,null,null,null,null,null,null,null,0,null,null,null,null,null,null,null,null,null,0,0]
[null,null,null,null,null,null,null,null,0,null,null,null,null,null,null,null,null,null,0,0]
[null,null,null,null,null,null,null,null,0,null,null,null,null,null,null,null,null,null,0,0]
[null,null,null,null,null,null,null,null,0,null,null,null,null,null,null,null,null,null,0,0]
[null,null,null,null,null,null,null,null,0,null,null,null,null,null,null,null,null,null,0,0]
[null,null,null,null,null,null,null,null,0,null,null,null,null,null,null,null,null,null,0,0]
[null,null,null,null,null,null,null,null,0,null,null,null,null,null,null,null,null,null,0,0]
[null,null,null,null,null,null,null,null,0,null,null,null,null,null,null,null,null,null,0,0]
[null,null,null,null,null,null,null,null,0,null,null,null,null,null,null,null,null,null,0,0]
[null,null,null,null,null,null,null,null,0,null,null,null,null,null,null,null,null,null,0,0]
[null,null,null,null,null,null,null,null,0,null,null,null,null,null,null,null,null,null,{"$f":"I394-SUM(J394:R394)","v":0},{"$f":"SUM(J394:S394)","v":0}]
[null,null,null,null,null,null,null,null,0,null,null,null,null,null,null,null,null,null,0,0]
[null,null,null,null,null,null,null,null,0,null,null,null,null,null,null,null,null,null,0,0]
[null,null,null,null,null,null,null,null,0,null,null,null,null,null,null,null,null,null,0,0]
[null,null,null,null,null,null,null,null,0,null,null,null,null,null,null,null,null,null,0,0]
[null,null,null,null,null,null,null,null,0,null,null,null,null,null,null,null,null,null,0,0]
[null,null,null,null,null,null,null,null,0,null,null,null,null,null,null,null,null,null,0,0]
[null,null,null,null,null,null,null,null,0,null,null,null,null,null,null,null,null,null,0,0]
[null,null,null,null,null,null,null,null,0,null,null,null,null,null,null,null,null,null,0,0]
[null,null,null,null,null,null,null,null,{"$f":"SUM(F403:H403)","v":0},null,null,null,null,null,null,null,null,null,0,0]
[null,null,null,null,null,null,null,null,0,null,null,null,null,null,null,null,null,null,0,0]
[null,null,null,null,null,null,null,null,0,null,null,null,null,null,null,null,null,null,0,0]
[null,null,null,null,null,null,null,null,0,null,null,null,null,null,null,null,null,null,0,0]
[null,null,null,null,null,null,null,null,0,null,null,null,null,null,null,null,null,null,0,0]
[null,null,null,null,null,null,null,null,0,null,null,null,null,null,null,null,null,null,0,0]
[null,null,null,null,null,null,null,null,0,null,null,null,null,null,null,null,null,null,0,0]
[null,null,null,null,null,null,null,null,0,null,null,null,null,null,null,null,null,null,0,0]
[null,null,null,null,null,null,null,null,0,null,null,null,null,null,null,null,null,null,0,0]
[null,null,null,null,null,null,null,null,0,null,null,null,null,null,null,null,null,null,0,0]
[null,null,null,null,null,null,null,null,0,null,null,null,null,null,null,null,null,null,0,0]
[null,null,null,null,null,null,null,null,0,null,null,null,null,null,null,null,null,null,0,0]
[null,null,null,null,null,null,null,null,0,null,null,null,null,null,null,null,null,null,0,0]
[null,null,null,null,null,null,null,null,0,null,null,null,null,null,null,null,null,null,0,0]
[null,null,null,null,null,null,null,null,0,null,null,null,null,null,null,null,null,null,0,0]
[null,null,null,null,null,null,null,null,0,null,null,null,null,null,null,null,null,null,0,0]
[null,null,null,null,null,null,null,null,0,null,null,null,null,null,null,null,null,null,0,0]
[null,null,null,null,null,null,null,null,0,null,null,null,null,null,null,null,null,null,0,0]
[null,null,null,null,null,null,null,null,0,null,null,null,null,null,null,null,null,null,0,0]
[null,null,null,null,null,null,null,null,0,null,null,null,null,null,null,null,null,null,0,0]
[null,null,null,null,null,null,null,null,0,null,null,null,null,null,null,null,null,null,0,0]
[null,null,null,null,null,null,null,null,0,null,null,null,null,null,null,null,null,null,0,0]
[null,null,null,null,null,null,null,null,0,null,null,null,null,null,null,null,null,null,0,0]
[null,null,null,null,null,null,null,null,0,null,null,null,null,null,null,null,null,null,0,0]
[null,null,null,null,null,null,null,null,0,null,null,null,null,null,null,null,null,null,0,0]
[null,null,null,null,null,null,null,null,0,null,null,null,null,null,null,null,null,null,0,0]
[null,null,null,null,null,null,null,null,0,null,null,null,null,null,null,null,null,null,0,0]
[null,null,null,null,null,null,null,null,0,null,null,null,null,null,null,null,null,null,0,0]
[null,null,null,null,null,null,null,null,0,null,null,null,null,null,null,null,null,null,0,0]
[null,null,null,null,null,null,null,null,0,null,null,null,null,null,null,null,null,null,0,0]
[null,null,null,null,null,null,null,null,0,null,null,null,null,null,null,null,null,null,0,0]
[null,null,null,null,null,null,null,null,0,null,null,null,null,null,null,null,null,null,0,0]
[null,null,null,null,null,null,null,null,0,null,null,null,null,null,null,null,null,null,0,0]
[null,null,null,null,null,null,null,null,0,null,null,null,null,null,null,null,null,null,0,0]
[null,null,null,null,null,null,null,null,0,null,null,null,null,null,null,null,null,null,0,0]
[null,null,null,null,null,null,null,null,0,null,null,null,null,null,null,null,null,null,0,0]
[null,null,null,null,null,null,null,null,0,null,null,null,null,null,null,null,null,null,0,0]
[null,null,null,null,null,null,null,null,0,null,null,null,null,null,null,null,null,null,0,0]
[null,null,null,null,null,null,null,null,0,null,null,null,null,null,null,null,null,null,0,0]
[null,null,null,null,null,null,null,null,0,null,null,null,null,null,null,null,null,null,0,0]
[null,null,null,null,null,null,null,null,0,null,null,null,null,null,null,null,null,null,0,0]
[null,null,null,null,null,null,null,null,0,null,null,null,null,null,null,null,null,null,0,0]
[null,null,null,null,null,null,null,null,0,null,null,null,null,null,null,null,null,null,0,0]
[null,null,null,null,null,null,null,null,0,null,null,null,null,null,null,null,null,null,0,0]
[null,null,null,null,null,null,null,null,0,null,null,null,null,null,null,null,null,null,0,0]
[null,null,null,null,null,null,null,null,0,null,null,null,null,null,null,null,null,null,0,0]
[null,null,null,null,null,null,null,null,0,null,null,null,null,null,null,null,null,null,0,0]
[null,null,null,null,null,null,null,null,0,null,null,null,null,null,null,null,null,null,0,0]
[null,null,null,null,null,null,null,null,0,null,null,null,null,null,null,null,null,null,0,0]
[null,null,null,null,null,null,null,null,0,null,null,null,null,null,null,null,null,null,0,0]
[null,null,null,null,null,null,null,null,0,null,null,null,null,null,null,null,null,null,0,0]
[null,null,null,null,null,null,null,null,0,null,null,null,null,null,null,null,null,null,0,0]
[null,null,null,null,null,null,null,null,0,null,null,null,null,null,null,null,null,null,0,0]
[null,null,null,null,null,null,null,null,0,null,null,null,null,null,null,null,null,null,0,0]
[null,null,null,null,null,null,null,null,0,null,null,null,null,null,null,null,null,null,0,0]
[null,null,null,null,null,null,null,null,0,null,null,null,null,null,null,null,null,null,{"$f":"I458-SUM(J458:R458)","v":0},{"$f":"SUM(J458:S458)","v":0}]
[null,null,null,null,null,null,null,null,0,null,null,null,null,null,null,null,null,null,0,0]
[null,null,null,null,null,null,null,null,0,null,null,null,null,null,null,null,null,null,0,0]
[null,null,null,null,null,null,null,null,0,null,null,null,null,null,null,null,null,null,0,0]
[null,null,null,null,null,null,null,null,0,null,null,null,null,null,null,null,null,null,0,0]
[null,null,null,null,null,null,null,null,0,null,null,null,null,null,null,null,null,null,0,0]
[null,null,null,null,null,null,null,null,0,null,null,null,null,null,null,null,null,null,0,0]
[null,null,null,null,null,null,null,null,0,null,null,null,null,null,null,null,null,null,0,0]
[null,null,null,null,null,null,null,null,0,null,null,null,null,null,null,null,null,null,0,0]
[null,null,null,null,null,null,null,null,{"$f":"SUM(F467:H467)","v":0},null,null,null,null,null,null,null,null,null,0,0]
[null,null,null,null,null,null,null,null,0,null,null,null,null,null,null,null,null,null,0,0]
[null,null,null,null,null,null,null,null,0,null,null,null,null,null,null,null,null,null,0,0]
[null,null,null,null,null,null,null,null,0,null,null,null,null,null,null,null,null,null,0,0]
[null,null,null,null,null,null,null,null,0,null,null,null,null,null,null,null,null,null,0,0]
[null,null,null,null,null,null,null,null,0,null,null,null,null,null,null,null,null,null,0,0]
[null,null,null,null,null,null,null,null,0,null,null,null,null,null,null,null,null,null,0,0]
[null,null,null,null,null,null,null,null,0,null,null,null,null,null,null,null,null,null,0,0]
[null,null,null,null,null,null,null,null,0,null,null,null,null,null,null,null,null,null,0,0]
[null,null,null,null,null,null,null,null,0,null,null,null,null,null,null,null,null,null,0,0]
[null,null,null,null,null,null,null,null,0,null,null,null,null,null,null,null,null,null,0,0]
[null,null,null,null,null,null,null,null,0,null,null,null,null,null,null,null,null,null,0,0]
[null,null,null,null,null,null,null,null,0,null,null,null,null,null,null,null,null,null,0,0]
[null,null,null,null,null,null,null,null,0,null,null,null,null,null,null,null,null,null,0,0]
[null,null,null,null,null,null,null,null,0,null,null,null,null,null,null,null,null,null,0,0]
[null,null,null,null,null,null,null,null,0,null,null,null,null,null,null,null,null,null,0,0]
[null,null,null,null,null,null,null,null,0,null,null,null,null,null,null,null,null,null,0,0]
[null,null,null,null,null,null,null,null,0,null,null,null,null,null,null,null,null,null,0,0]
[null,null,null,null,null,null,null,null,0,null,null,null,null,null,null,null,null,null,0,0]
[null,null,null,null,null,null,null,null,0,null,null,null,null,null,null,null,null,null,0,0]
[null,null,null,null,null,null,null,null,0,null,null,null,null,null,null,null,null,null,0,0]
[null,null,null,null,null,null,null,null,0,null,null,null,null,null,null,null,null,null,0,0]
[null,null,null,null,null,null,null,null,0,null,null,null,null,null,null,null,null,null,0,0]
[null,null,null,null,null,null,null,null,0,null,null,null,null,null,null,null,null,null,0,0]
[null,null,null,null,null,null,null,null,0,null,null,null,null,null,null,null,null,null,0,0]
[null,null,null,null,null,null,null,null,0,null,null,null,null,null,null,null,null,null,0,0]
[null,null,null,null,null,null,null,null,0,null,null,null,null,null,null,null,null,null,0,0]
[null,null,null,null,null,null,null,null,0,null,null,null,null,null,null,null,null,null,0,0]
[null,null,null,null,null,null,null,null,0,null,null,null,null,null,null,null,null,null,0,0]
[null,null,null,null,null,null,null,null,0,null,null,null,null,null,null,null,null,null,0,0]
[null,null,null,null,null,null,null,null,0,null,null,null,null,null,null,null,null,null,0,0]
[null,null,null,null,null,null,null,null,0,null,null,null,null,null,null,null,null,null,0,0]
[null,null,null,null,null,null,null,null,0,null,null,null,null,null,null,null,null,null,0,0]
[null,null,null,null,null,null,null,null,0,null,null,null,null,null,null,null,null,null,0,0]
[null,null,null,null,null,null,null,null,0,null,null,null,null,null,null,null,null,null,0,0]
[null,null,null,null,null,null,null,null,0,null,null,null,null,null,null,null,null,null,0,0]
[null,null,null,null,null,null,null,null,0,null,null,null,null,null,null,null,null,null,0,0]
[null,null,null,null,null,null,null,null,0,null,null,null,null,null,null,null,null,null,0,0]
[null,null,null,null,null,null,null,null,0,null,null,null,null,null,null,null,null,null,0,0]
[null,null,null,null,null,null,null,null,0,null,null,null,null,null,null,null,null,null,0,0]
[null,null,null,null,null,null,null,null,0,null,null,null,null,null,null,null,null,null,0,0]
[null,null,null,null,null,null,null,null,0,null,null,null,null,null,null,null,null,null,0,0]
[null,null,null,null,null,null,null,null,0,null,null,null,null,null,null,null,null,null,0,0]
[null,null,null,null,null,null,null,null,0,null,null,null,null,null,null,null,null,null,0,0]
[null,null,null,null,null,null,null,null,0,null,null,null,null,null,null,null,null,null,0,0]
[null,null,null,null,null,null,null,null,0,null,null,null,null,null,null,null,null,null,0,0]
[null,null,null,null,null,null,null,null,0,null,null,null,null,null,null,null,null,null,0,0]
[null,null,null,null,null,null,null,null,0,null,null,null,null,null,null,null,null,null,0,0]
[null,null,null,null,null,null,null,null,0,null,null,null,null,null,null,null,null,null,0,0]
[null,null,null,null,null,null,null,null,0,null,null,null,null,null,null,null,null,null,0,0]
[null,null,null,null,null,null,null,null,0,null,null,null,null,null,null,null,null,null,0,0]
[null,null,null,null,null,null,null,null,0,null,null,null,null,null,null,null,null,null,0,0]
[null,null,null,null,null,null,null,null,0,null,null,null,null,null,null,null,null,null,0,0]
[null,null,null,null,null,null,null,null,0,null,null,null,null,null,null,null,null,null,0,0]
[null,null,null,null,null,null,null,null,0,null,null,null,null,null,null,null,null,null,0,0]
[null,null,null,null,null,null,null,null,0,null,null,null,null,null,null,null,null,null,{"$f":"I522-SUM(J522:R522)","v":0},{"$f":"SUM(J522:S522)","v":0}]
[null,null,null,null,null,null,null,null,0,null,null,null,null,null,null,null,null,null,0,0]
[null,null,null,null,null,null,null,null,0,null,null,null,null,null,null,null,null,null,0,0]
[null,null,null,null,null,null,null,null,0,null,null,null,null,null,null,null,null,null,0,0]
[null,null,null,null,null,null,null,null,0,null,null,null,null,null,null,null,null,null,0,0]
[null,null,null,null,null,null,null,null,0,null,null,null,null,null,null,null,null,null,0,0]
[null,null,null,null,null,null,null,null,0,null,null,null,null,null,null,null,null,null,0,0]
[null,null,null,null,null,null,null,null,0,null,null,null,null,null,null,null,null,null,0,0]
[null,null,null,null,null,null,null,null,0,null,null,null,null,null,null,null,null,null,0,0]
[null,null,null,null,null,null,null,null,{"$f":"SUM(F531:H531)","v":0},null,null,null,null,null,null,null,null,null,0,0]
[null,null,null,null,null,null,null,null,0,null,null,null,null,null,null,null,null,null,0,0]
[null,null,null,null,null,null,null,null,0,null,null,null,null,null,null,null,null,null,0,0]
[null,null,null,null,null,null,null,null,0,null,null,null,null,null,null,null,null,null,0,0]
[null,null,null,null,null,null,null,null,0,null,null,null,null,null,null,null,null,null,0,0]
[null,null,null,null,null,null,null,null,0,null,null,null,null,null,null,null,null,null,0,0]
[null,null,null,null,null,null,null,null,0,null,null,null,null,null,null,null,null,null,0,0]
[null,null,null,null,null,null,null,null,0,null,null,null,null,null,null,null,null,null,0,0]
[null,null,null,null,null,null,null,null,0,null,null,null,null,null,null,null,null,null,0,0]
[null,null,null,null,null,null,null,null,0,null,null,null,null,null,null,null,null,null,0,0]
[null,null,null,null,null,null,null,null,0,null,null,null,null,null,null,null,null,null,0,0]
[null,null,null,null,null,null,null,null,0,null,null,null,null,null,null,null,null,null,0,0]
[null,null,null,null,null,null,null,null,0,null,null,null,null,null,null,null,null,null,0,0]
[null,null,null,null,null,null,null,null,0,null,null,null,null,null,null,null,null,null,0,0]
[null,null,null,null,null,null,null,null,0,null,null,null,null,null,null,null,null,null,0,0]
[null,null,null,null,null,null,null,null,0,null,null,null,null,null,null,null,null,null,0,0]
[null,null,null,null,null,null,null,null,0,null,null,null,null,null,null,null,null,null,0,0]
[null,null,null,null,null,null,null,null,0,null,null,null,null,null,null,null,null,null,0,0]
[null,null,null,null,null,null,null,null,0,null,null,null,null,null,null,null,null,null,0,0]
[null,null,null,null,null,null,null,null,0,null,null,null,null,null,null,null,null,null,0,0]
[null,null,null,null,null,null,null,null,0,null,null,null,null,null,null,null,null,null,0,0]
[null,null,null,null,null,null,null,null,0,null,null,null,null,null,null,null,null,null,0,0]
[null,null,null,null,null,null,null,null,0,null,null,null,null,null,null,null,null,null,0,0]
[null,null,null,null,null,null,null,null,0,null,null,null,null,null,null,null,null,null,0,0]
[null,null,null,null,null,null,null,null,0,null,null,null,null,null,null,null,null,null,0,0]
[null,null,null,null,null,null,null,null,0,null,null,null,null,null,null,null,null,null,0,0]
[null,null,null,null,null,null,null,null,0,null,null,null,null,null,null,null,null,null,0,0]
[null,null,null,null,null,null,null,null,0,null,null,null,null,null,null,null,null,null,0,0]
[null,null,null,null,null,null,null,null,0,null,null,null,null,null,null,null,null,null,0,0]
[null,null,null,null,null,null,null,null,0,null,null,null,null,null,null,null,null,null,0,0]
[null,null,null,null,null,null,null,null,0,null,null,null,null,null,null,null,null,null,0,0]
[null,null,null,null,null,null,null,null,0,null,null,null,null,null,null,null,null,null,0,0]
[null,null,null,null,null,null,null,null,0,null,null,null,null,null,null,null,null,null,0,0]
[null,null,null,null,null,null,null,null,0,null,null,null,null,null,null,null,null,null,0,0]
[null,null,null,null,null,null,null,null,0,null,null,null,null,null,null,null,null,null,0,0]
[null,null,null,null,null,null,null,null,0,null,null,null,null,null,null,null,null,null,0,0]
[null,null,null,null,null,null,null,null,0,null,null,null,null,null,null,null,null,null,0,0]
[null,null,null,null,null,null,null,null,0,null,null,null,null,null,null,null,null,null,0,0]
[null,null,null,null,null,null,null,null,0,null,null,null,null,null,null,null,null,null,0,0]
[null,null,null,null,null,null,null,null,0,null,null,null,null,null,null,null,null,null,0,0]
[null,null,null,null,null,null,null,null,0,null,null,null,null,null,null,null,null,null,0,0]
[null,null,null,null,null,null,null,null,0,null,null,null,null,null,null,null,null,null,0,0]
[null,null,null,null,null,null,null,null,0,null,null,null,null,null,null,null,null,null,0,0]
[null,null,null,null,null,null,null,null,0,null,null,null,null,null,null,null,null,null,0,0]
[null,null,null,null,null,null,null,null,0,null,null,null,null,null,null,null,null,null,0,0]
[null,null,null,null,null,null,null,null,0,null,null,null,null,null,null,null,null,null,0,0]
[null,null,null,null,null,null,null,null,0,null,null,null,null,null,null,null,null,null,0,0]
[null,null,null,null,null,null,null,null,0,null,null,null,null,null,null,null,null,null,0,0]
[null,null,null,null,null,null,null,null,0,null,null,null,null,null,null,null,null,null,0,0]
[null,null,null,null,null,null,null,null,0,null,null,null,null,null,null,null,null,null,0,0]
[null,null,null,null,null,null,null,null,0,null,null,null,null,null,null,null,null,null,0,0]
[null,null,null,null,null,null,null,null,0,null,null,null,null,null,null,null,null,null,0,0]
[null,null,null,null,null,null,null,null,0,null,null,null,null,null,null,null,null,null,0,0]
[null,null,null,null,null,null,null,null,0,null,null,null,null,null,null,null,null,null,0,0]
[null,null,null,null,null,null,null,null,0,null,null,null,null,null,null,null,null,null,0,0]
[null,null,null,null,null,null,null,null,0,null,null,null,null,null,null,null,null,null,{"$f":"I586-SUM(J586:R586)","v":0},{"$f":"SUM(J586:S586)","v":0}]
[null,null,null,null,null,null,null,null,0,null,null,null,null,null,null,null,null,null,0,0]
[null,null,null,null,null,null,null,null,0,null,null,null,null,null,null,null,null,null,0,0]
[null,null,null,null,null,null,null,null,0,null,null,null,null,null,null,null,null,null,0,0]
[null,null,null,null,null,null,null,null,0,null,null,null,null,null,null,null,null,null,0,0]
[null,null,null,null,null,null,null,null,0,null,null,null,null,null,null,null,null,null,0,0]
[null,null,null,null,null,null,null,null,0,null,null,null,null,null,null,null,null,null,0,0]
[null,null,null,null,null,null,null,null,0,null,null,null,null,null,null,null,null,null,0,0]
[null,null,null,null,null,null,null,null,0,null,null,null,null,null,null,null,null,null,0,0]
[null,null,null,null,null,null,null,null,{"$f":"SUM(F595:H595)","v":0},null,null,null,null,null,null,null,null,null,0,0]
[null,null,null,null,null,null,null,null,0,null,null,null,null,null,null,null,null,null,0,0]
[null,null,null,null,null,null,null,null,0,null,null,null,null,null,null,null,null,null,0,0]
[null,null,null,null,null,null,null,null,0,null,null,null,null,null,null,null,null,null,0,0]
[null,null,null,null,null,null,null,null,0,null,null,null,null,null,null,null,null,null,0,0]
[null,null,null,null,null,null,null,null,0,null,null,null,null,null,null,null,null,null,0,0]
[null,null,null,null,null,null,null,null,0,null,null,null,null,null,null,null,null,null,0,0]
[null,null,null,null,null,null,null,null,0,null,null,null,null,null,null,null,null,null,0,0]
[null,null,null,null,null,null,null,null,0,null,null,null,null,null,null,null,null,null,0,0]
[null,null,null,null,null,null,null,null,0,null,null,null,null,null,null,null,null,null,0,0]
[null,null,null,null,null,null,null,null,0,null,null,null,null,null,null,null,null,null,0,0]
[null,null,null,null,null,null,null,null,0,null,null,null,null,null,null,null,null,null,0,0]
[null,null,null,null,null,null,null,null,0,null,null,null,null,null,null,null,null,null,0,0]
[null,null,null,null,null,null,null,null,0,null,null,null,null,null,null,null,null,null,0,0]
[null,null,null,null,null,null,null,null,0,null,null,null,null,null,null,null,null,null,0,0]
[null,null,null,null,null,null,null,null,0,null,null,null,null,null,null,null,null,null,0,0]
[null,null,null,null,null,null,null,null,0,null,null,null,null,null,null,null,null,null,0,0]
[null,null,null,null,null,null,null,null,0,null,null,null,null,null,null,null,null,null,0,0]
[null,null,null,null,null,null,null,null,0,null,null,null,null,null,null,null,null,null,0,0]
[null,null,null,null,null,null,null,null,0,null,null,null,null,null,null,null,null,null,0,0]
[null,null,null,null,null,null,null,null,0,null,null,null,null,null,null,null,null,null,0,0]
[null,null,null,null,null,null,null,null,0,null,null,null,null,null,null,null,null,null,0,0]
[null,null,null,null,null,null,null,null,0,null,null,null,null,null,null,null,null,null,0,0]
[null,null,null,null,null,null,null,null,0,null,null,null,null,null,null,null,null,null,0,0]
[null,null,null,null,null,null,null,null,0,null,null,null,null,null,null,null,null,null,0,0]
[null,null,null,null,null,null,null,null,0,null,null,null,null,null,null,null,null,null,0,0]
[null,null,null,null,null,null,null,null,0,null,null,null,null,null,null,null,null,null,0,0]
[null,null,null,null,null,null,null,null,0,null,null,null,null,null,null,null,null,null,0,0]
[null,null,null,null,null,null,null,null,0,null,null,null,null,null,null,null,null,null,0,0]
[null,null,null,null,null,null,null,null,0,null,null,null,null,null,null,null,null,null,0,0]
[null,null,null,null,null,null,null,null,0,null,null,null,null,null,null,null,null,null,0,0]
[null,null,null,null,null,null,null,null,0,null,null,null,null,null,null,null,null,null,0,0]
[null,null,null,null,null,null,null,null,0,null,null,null,null,null,null,null,null,null,0,0]
[null,null,null,null,null,null,null,null,0,null,null,null,null,null,null,null,null,null,0,0]
[null,null,null,null,null,null,null,null,0,null,null,null,null,null,null,null,null,null,0,0]
[null,null,null,null,null,null,null,null,0,null,null,null,null,null,null,null,null,null,0,0]
[null,null,null,null,null,null,null,null,0,null,null,null,null,null,null,null,null,null,0,0]
[null,null,null,null,null,null,null,null,0,null,null,null,null,null,null,null,null,null,0,0]
[null,null,null,null,null,null,null,null,0,null,null,null,null,null,null,null,null,null,0,0]
[null,null,null,null,null,null,null,null,0,null,null,null,null,null,null,null,null,null,0,0]
[null,null,null,null,null,null,null,null,0,null,null,null,null,null,null,null,null,null,0,0]
[null,null,null,null,null,null,null,null,0,null,null,null,null,null,null,null,null,null,0,0]
[null,null,null,null,null,null,null,null,0,null,null,null,null,null,null,null,null,null,0,0]
[null,null,null,null,null,null,null,null,0,null,null,null,null,null,null,null,null,null,0,0]
[null,null,null,null,null,null,null,null,0,null,null,null,null,null,null,null,null,null,0,0]
[null,null,null,null,null,null,null,null,0,null,null,null,null,null,null,null,null,null,0,0]
[null,null,null,null,null,null,null,null,0,null,null,null,null,null,null,null,null,null,0,0]
[null,null,null,null,null,null,null,null,0,null,null,null,null,null,null,null,null,null,0,0]
[null,null,null,null,null,null,null,null,0,null,null,null,null,null,null,null,null,null,0,0]
[null,null,null,null,null,null,null,null,0,null,null,null,null,null,null,null,null,null,0,0]
[null,null,null,null,null,null,null,null,0,null,null,null,null,null,null,null,null,null,0,0]
[null,null,null,null,null,null,null,null,0,null,null,null,null,null,null,null,null,null,0,0]
[null,null,null,null,null,null,null,null,0,null,null,null,null,null,null,null,null,null,0,0]
[null,null,null,null,null,null,null,null,0,null,null,null,null,null,null,null,null,null,0,0]
[null,null,null,null,null,null,null,null,0,null,null,null,null,null,null,null,null,null,0,0]
[null,null,null,null,null,null,null,null,0,null,null,null,null,null,null,null,null,null,{"$f":"I650-SUM(J650:R650)","v":0},{"$f":"SUM(J650:S650)","v":0}]
[null,null,null,null,null,null,null,null,0,null,null,null,null,null,null,null,null,null,0,0]
[null,null,null,null,null,null,null,null,0,null,null,null,null,null,null,null,null,null,0,0]
[null,null,null,null,null,null,null,null,0,null,null,null,null,null,null,null,null,null,0,0]
[null,null,null,null,null,null,null,null,0,null,null,null,null,null,null,null,null,null,0,0]
[null,null,null,null,null,null,null,null,0,null,null,null,null,null,null,null,null,null,0,0]
[null,null,null,null,null,null,null,null,0,null,null,null,null,null,null,null,null,null,0,0]
[null,null,null,null,null,null,null,null,0,null,null,null,null,null,null,null,null,null,0,0]
[null,null,null,null,null,null,null,null,0,null,null,null,null,null,null,null,null,null,0,0]
[null,null,null,null,null,null,null,null,{"$f":"SUM(F659:H659)","v":0},null,null,null,null,null,null,null,null,null,0,0]
[null,null,null,null,null,null,null,null,0,null,null,null,null,null,null,null,null,null,0,0]
[null,null,null,null,null,null,null,null,0,null,null,null,null,null,null,null,null,null,0,0]
[null,null,null,null,null,null,null,null,0,null,null,null,null,null,null,null,null,null,0,0]
[null,null,null,null,null,null,null,null,0,null,null,null,null,null,null,null,null,null,0,0]
[null,null,null,null,null,null,null,null,0,null,null,null,null,null,null,null,null,null,0,0]
[null,null,null,null,null,null,null,null,0,null,null,null,null,null,null,null,null,null,0,0]
[null,null,null,null,null,null,null,null,0,null,null,null,null,null,null,null,null,null,0,0]
[null,null,null,null,null,null,null,null,0,null,null,null,null,null,null,null,null,null,0,0]
[null,null,null,null,null,null,null,null,0,null,null,null,null,null,null,null,null,null,0,0]
[null,null,null,null,null,null,null,null,0,null,null,null,null,null,null,null,null,null,0,0]
[null,null,null,null,null,null,null,null,0,null,null,null,null,null,null,null,null,null,0,0]
[null,null,null,null,null,null,null,null,0,null,null,null,null,null,null,null,null,null,0,0]
[null,null,null,null,null,null,null,null,0,null,null,null,null,null,null,null,null,null,0,0]
[null,null,null,null,null,null,null,null,0,null,null,null,null,null,null,null,null,null,0,0]
[null,null,null,null,null,null,null,null,0,null,null,null,null,null,null,null,null,null,0,0]
[null,null,null,null,null,null,null,null,0,null,null,null,null,null,null,null,null,null,0,0]
[null,null,null,null,null,null,null,null,0,null,null,null,null,null,null,null,null,null,0,0]
[null,null,null,null,null,null,null,null,0,null,null,null,null,null,null,null,null,null,0,0]
[null,null,null,null,null,null,null,null,0,null,null,null,null,null,null,null,null,null,0,0]
[null,null,null,null,null,null,null,null,0,null,null,null,null,null,null,null,null,null,0,0]
[null,null,null,null,null,null,null,null,0,null,null,null,null,null,null,null,null,null,0,0]
[null,null,null,null,null,null,null,null,0,null,null,null,null,null,null,null,null,null,0,0]
[null,null,null,null,null,null,null,null,0,null,null,null,null,null,null,null,null,null,0,0]
[null,null,null,null,null,null,null,null,0,null,null,null,null,null,null,null,null,null,0,0]
[null,null,null,null,null,null,null,null,0,null,null,null,null,null,null,null,null,null,0,0]
[null,null,null,null,null,null,null,null,0,null,null,null,null,null,null,null,null,null,0,0]
[null,null,null,null,null,null,null,null,0,null,null,null,null,null,null,null,null,null,0,0]
[null,null,null,null,null,null,null,null,0,null,null,null,null,null,null,null,null,null,0,0]
[null,null,null,null,null,null,null,null,0,null,null,null,null,null,null,null,null,null,0,0]
[null,null,null,null,null,null,null,null,0,null,null,null,null,null,null,null,null,null,0,0]
[null,null,null,null,null,null,null,null,0,null,null,null,null,null,null,null,null,null,0,0]
[null,null,null,null,null,null,null,null,0,null,null,null,null,null,null,null,null,null,0,0]
[null,null,null,null,null,null,null,null,0,null,null,null,null,null,null,null,null,null,0,0]
[null,null,null,null,null,null,null,null,0,null,null,null,null,null,null,null,null,null,0,0]
[null,null,null,null,null,null,null,null,0,null,null,null,null,null,null,null,null,null,0,0]
[null,null,null,null,null,null,null,null,0,null,null,null,null,null,null,null,null,null,0,0]
[null,null,null,null,null,null,null,null,0,null,null,null,null,null,null,null,null,null,0,0]
[null,null,null,null,null,null,null,null,0,null,null,null,null,null,null,null,null,null,0,0]
[null,null,null,null,null,null,null,null,0,null,null,null,null,null,null,null,null,null,0,0]
[null,null,null,null,null,null,null,null,0,null,null,null,null,null,null,null,null,null,0,0]
[null,null,null,null,null,null,null,null,0,null,null,null,null,null,null,null,null,null,0,0]
[null,null,null,null,null,null,null,null,0,null,null,null,null,null,null,null,null,null,0,0]
[null,null,null,null,null,null,null,null,0,null,null,null,null,null,null,null,null,null,0,0]
[null,null,null,null,null,null,null,null,0,null,null,null,null,null,null,null,null,null,0,0]
[null,null,null,null,null,null,null,null,0,null,null,null,null,null,null,null,null,null,0,0]
[null,null,null,null,null,null,null,null,0,null,null,null,null,null,null,null,null,null,0,0]
[null,null,null,null,null,null,null,null,0,null,null,null,null,null,null,null,null,null,0,0]
[null,null,null,null,null,null,null,null,0,null,null,null,null,null,null,null,null,null,0,0]
[null,null,null,null,null,null,null,null,0,null,null,null,null,null,null,null,null,null,0,0]
[null,null,null,null,null,null,null,null,0,null,null,null,null,null,null,null,null,null,0,0]
[null,null,null,null,null,null,null,null,0,null,null,null,null,null,null,null,null,null,0,0]
[null,null,null,null,null,null,null,null,0,null,null,null,null,null,null,null,null,null,0,0]
[null,null,null,null,null,null,null,null,0,null,null,null,null,null,null,null,null,null,0,0]
[null,null,null,null,null,null,null,null,0,null,null,null,null,null,null,null,null,null,0,0]
[null,null,null,null,null,null,null,null,0,null,null,null,null,null,null,null,null,null,{"$f":"I714-SUM(J714:R714)","v":0},{"$f":"SUM(J714:S714)","v":0}]
[null,null,null,null,null,null,null,null,0,null,null,null,null,null,null,null,null,null,0,0]
[null,null,null,null,null,null,null,null,0,null,null,null,null,null,null,null,null,null,0,0]
[null,null,null,null,null,null,null,null,0,null,null,null,null,null,null,null,null,null,0,0]
[null,null,null,null,null,null,null,null,0,null,null,null,null,null,null,null,null,null,0,0]
[null,null,null,null,null,null,null,null,0,null,null,null,null,null,null,null,null,null,0,0]
[null,null,null,null,null,null,null,null,0,null,null,null,null,null,null,null,null,null,0,0]
[null,null,null,null,null,null,null,null,0,null,null,null,null,null,null,null,null,null,0,0]
[null,null,null,null,null,null,null,null,0,null,null,null,null,null,null,null,null,null,0,0]
[null,null,null,null,null,null,null,null,{"$f":"SUM(F723:H723)","v":0},null,null,null,null,null,null,null,null,null,0,0]
[null,null,null,null,null,null,null,null,0,null,null,null,null,null,null,null,null,null,0,0]
[null,null,null,null,null,null,null,null,0,null,null,null,null,null,null,null,null,null,0,0]
[null,null,null,null,null,null,null,null,0,null,null,null,null,null,null,null,null,null,0,0]
[null,null,null,null,null,null,null,null,0,null,null,null,null,null,null,null,null,null,0,0]
[null,null,null,null,null,null,null,null,0,null,null,null,null,null,null,null,null,null,0,0]
[null,null,null,null,null,null,null,null,0,null,null,null,null,null,null,null,null,null,0,0]
[null,null,null,null,null,null,null,null,0,null,null,null,null,null,null,null,null,null,0,0]
[null,null,null,null,null,null,null,null,0,null,null,null,null,null,null,null,null,null,0,0]
[null,null,null,null,null,null,null,null,0,null,null,null,null,null,null,null,null,null,0,0]
[null,null,null,null,null,null,null,null,0,null,null,null,null,null,null,null,null,null,0,0]
[null,null,null,null,null,null,null,null,0,null,null,null,null,null,null,null,null,null,0,0]
[null,null,null,null,null,null,null,null,0,null,null,null,null,null,null,null,null,null,0,0]
[null,null,null,null,null,null,null,null,0,null,null,null,null,null,null,null,null,null,0,0]
[null,null,null,null,null,null,null,null,0,null,null,null,null,null,null,null,null,null,0,0]
[null,null,null,null,null,null,null,null,0,null,null,null,null,null,null,null,null,null,0,0]
[null,null,null,null,null,null,null,null,0,null,null,null,null,null,null,null,null,null,0,0]
[null,null,null,null,null,null,null,null,0,null,null,null,null,null,null,null,null,null,0,0]
[null,null,null,null,null,null,null,null,0,null,null,null,null,null,null,null,null,null,0,0]
[null,null,null,null,null,null,null,null,0,null,null,null,null,null,null,null,null,null,0,0]
[null,null,null,null,null,null,null,null,0,null,null,null,null,null,null,null,null,null,0,0]
[null,null,null,null,null,null,null,null,0,null,null,null,null,null,null,null,null,null,0,0]
[null,null,null,null,null,null,null,null,0,null,null,null,null,null,null,null,null,null,0,0]
[null,null,null,null,null,null,null,null,0,null,null,null,null,null,null,null,null,null,0,0]
[null,null,null,null,null,null,null,null,0,null,null,null,null,null,null,null,null,null,0,0]
[null,null,null,null,null,null,null,null,0,null,null,null,null,null,null,null,null,null,0,0]
[null,null,null,null,null,null,null,null,0,null,null,null,null,null,null,null,null,null,0,0]
[null,null,null,null,null,null,null,null,0,null,null,null,null,null,null,null,null,null,0,0]
[null,null,null,null,null,null,null,null,0,null,null,null,null,null,null,null,null,null,0,0]
[null,null,null,null,null,null,null,null,0,null,null,null,null,null,null,null,null,null,0,0]
[null,null,null,null,null,null,null,null,0,null,null,null,null,null,null,null,null,null,0,0]
[null,null,null,null,null,null,null,null,0,null,null,null,null,null,null,null,null,null,0,0]
[null,null,null,null,null,null,null,null,0,null,null,null,null,null,null,null,null,null,0,0]
[null,null,null,null,null,null,null,null,0,null,null,null,null,null,null,null,null,null,0,0]
[null,null,null,null,null,null,null,null,0,null,null,null,null,null,null,null,null,null,0,0]
[null,null,null,null,null,null,null,null,0,null,null,null,null,null,null,null,null,null,0,0]
[null,null,null,null,null,null,null,null,0,null,null,null,null,null,null,null,null,null,0,0]
[null,null,null,null,null,null,null,null,0,null,null,null,null,null,null,null,null,null,0,0]
[null,null,null,null,null,null,null,null,0,null,null,null,null,null,null,null,null,null,0,0]
[null,null,null,null,null,null,null,null,0,null,null,null,null,null,null,null,null,null,0,0]
[null,null,null,null,null,null,null,null,0,null,null,null,null,null,null,null,null,null,0,0]
[null,null,null,null,null,null,null,null,0,null,null,null,null,null,null,null,null,null,0,0]
[null,null,null,null,null,null,null,null,0,null,null,null,null,null,null,null,null,null,0,0]
[null,null,null,null,null,null,null,null,0,null,null,null,null,null,null,null,null,null,0,0]
[null,null,null,null,null,null,null,null,0,null,null,null,null,null,null,null,null,null,0,0]
[null,null,null,null,null,null,null,null,0,null,null,null,null,null,null,null,null,null,0,0]
[null,null,null,null,null,null,null,null,0,null,null,null,null,null,null,null,null,null,0,0]
[null,null,null,null,null,null,null,null,0,null,null,null,null,null,null,null,null,null,0,0]
[null,null,null,null,null,null,null,null,0,null,null,null,null,null,null,null,null,null,0,0]
[null,null,null,null,null,null,null,null,0,null,null,null,null,null,null,null,null,null,0,0]
[null,null,null,null,null,null,null,null,0,null,null,null,null,null,null,null,null,null,0,0]
[null,null,null,null,null,null,null,null,0,null,null,null,null,null,null,null,null,null,0,0]
[null,null,null,null,null,null,null,null,0,null,null,null,null,null,null,null,null,null,0,0]
[null,null,null,null,null,null,null,null,0,null,null,null,null,null,null,null,null,null,0,0]
[null,null,null,null,null,null,null,null,0,null,null,null,null,null,null,null,null,null,0,0]
[null,null,null,null,null,null,null,null,0,null,null,null,null,null,null,null,null,null,{"$f":"I778-SUM(J778:R778)","v":0},{"$f":"SUM(J778:S778)","v":0}]
[null,null,null,null,null,null,null,null,0,null,null,null,null,null,null,null,null,null,0,0]
[null,null,null,null,null,null,null,null,0,null,null,null,null,null,null,null,null,null,0,0]
[null,null,null,null,null,null,null,null,0,null,null,null,null,null,null,null,null,null,0,0]
[null,null,null,null,null,null,null,null,0,null,null,null,null,null,null,null,null,null,0,0]
[null,null,null,null,null,null,null,null,0,null,null,null,null,null,null,null,null,null,0,0]
[null,null,null,null,null,null,null,null,0,null,null,null,null,null,null,null,null,null,0,0]
[null,null,null,null,null,null,null,null,0,null,null,null,null,null,null,null,null,null,0,0]
[null,null,null,null,null,null,null,null,0,null,null,null,null,null,null,null,null,null,0,0]
[null,null,null,null,null,null,null,null,{"$f":"SUM(F787:H787)","v":0},null,null,null,null,null,null,null,null,null,0,0]
[null,null,null,null,null,null,null,null,0,null,null,null,null,null,null,null,null,null,0,0]
[null,null,null,null,null,null,null,null,0,null,null,null,null,null,null,null,null,null,0,0]
[null,null,null,null,null,null,null,null,0,null,null,null,null,null,null,null,null,null,0,0]
[null,null,null,null,null,null,null,null,0,null,null,null,null,null,null,null,null,null,0,0]
[null,null,null,null,null,null,null,null,0,null,null,null,null,null,null,null,null,null,0,0]
[null,null,null,null,null,null,null,null,0,null,null,null,null,null,null,null,null,null,0,0]
[null,null,null,null,null,null,null,null,0,null,null,null,null,null,null,null,null,null,0,0]
[null,null,null,null,null,null,null,null,0,null,null,null,null,null,null,null,null,null,0,0]
[null,null,null,null,null,null,null,null,0,null,null,null,null,null,null,null,null,null,0,0]
[null,null,null,null,null,null,null,null,0,null,null,null,null,null,null,null,null,null,0,0]
[null,null,null,null,null,null,null,null,0,null,null,null,null,null,null,null,null,null,0,0]
[null,null,null,null,null,null,null,null,0,null,null,null,null,null,null,null,null,null,0,0]
[null,null,null,null,null,null,null,null,0,null,null,null,null,null,null,null,null,null,0,0]
[null,null,null,null,null,null,null,null,0,null,null,null,null,null,null,null,null,null,0,0]
[null,null,null,null,null,null,null,null,0,null,null,null,null,null,null,null,null,null,0,0]
[null,null,null,null,null,null,null,null,0,null,null,null,null,null,null,null,null,null,0,0]
[null,null,null,null,null,null,null,null,0,null,null,null,null,null,null,null,null,null,0,0]
[null,null,null,null,null,null,null,null,0,null,null,null,null,null,null,null,null,null,0,0]
[null,null,null,null,null,null,null,null,0,null,null,null,null,null,null,null,null,null,0,0]
[null,null,null,null,null,null,null,null,0,null,null,null,null,null,null,null,null,null,0,0]
[null,null,null,null,null,null,null,null,0,null,null,null,null,null,null,null,null,null,0,0]
[null,null,null,null,null,null,null,null,0,null,null,null,null,null,null,null,null,null,0,0]
[null,null,null,null,null,null,null,null,0,null,null,null,null,null,null,null,null,null,0,0]
[null,null,null,null,null,null,null,null,0,null,null,null,null,null,null,null,null,null,0,0]
[null,null,null,null,null,null,null,null,0,null,null,null,null,null,null,null,null,null,0,0]
[null,null,null,null,null,null,null,null,0,null,null,null,null,null,null,null,null,null,0,0]
[null,null,null,null,null,null,null,null,0,null,null,null,null,null,null,null,null,null,0,0]
[null,null,null,null,null,null,null,null,0,null,null,null,null,null,null,null,null,null,0,0]
[null,null,null,null,null,null,null,null,0,null,null,null,null,null,null,null,null,null,0,0]
[null,null,null,null,null,null,null,null,0,null,null,null,null,null,null,null,null,null,0,0]
[null,null,null,null,null,null,null,null,0,null,null,null,null,null,null,null,null,null,0,0]
[null,null,null,null,null,null,null,null,0,null,null,null,null,null,null,null,null,null,0,0]
[null,null,null,null,null,null,null,null,0,null,null,null,null,null,null,null,null,null,0,0]
[null,null,null,null,null,null,null,null,0,null,null,null,null,null,null,null,null,null,0,0]
[null,null,null,null,null,null,null,null,0,null,null,null,null,null,null,null,null,null,0,0]
[null,null,null,null,null,null,null,null,0,null,null,null,null,null,null,null,null,null,0,0]
[null,null,null,null,null,null,null,null,0,null,null,null,null,null,null,null,null,null,0,0]
[null,null,null,null,null,null,null,null,0,null,null,null,null,null,null,null,null,null,0,0]
[null,null,null,null,null,null,null,null,0,null,null,null,null,null,null,null,null,null,0,0]
[null,null,null,null,null,null,null,null,0,null,null,null,null,null,null,null,null,null,0,0]
[null,null,null,null,null,null,null,null,0,null,null,null,null,null,null,null,null,null,0,0]
[null,null,null,null,null,null,null,null,0,null,null,null,null,null,null,null,null,null,0,0]
[null,null,null,null,null,null,null,null,0,null,null,null,null,null,null,null,null,null,0,0]
[null,null,null,null,null,null,null,null,0,null,null,null,null,null,null,null,null,null,0,0]
[null,null,null,null,null,null,null,null,0,null,null,null,null,null,null,null,null,null,0,0]
[null,null,null,null,null,null,null,null,0,null,null,null,null,null,null,null,null,null,0,0]
[null,null,null,null,null,null,null,null,0,null,null,null,null,null,null,null,null,null,0,0]
[null,null,null,null,null,null,null,null,0,null,null,null,null,null,null,null,null,null,0,0]
[null,null,null,null,null,null,null,null,0,null,null,null,null,null,null,null,null,null,0,0]
[null,null,null,null,null,null,null,null,0,null,null,null,null,null,null,null,null,null,0,0]
[null,null,null,null,null,null,null,null,0,null,null,null,null,null,null,null,null,null,0,0]
[null,null,null,null,null,null,null,null,0,null,null,null,null,null,null,null,null,null,0,0]
[null,null,null,null,null,null,null,null,0,null,null,null,null,null,null,null,null,null,0,0]
[null,null,null,null,null,null,null,null,0,null,null,null,null,null,null,null,null,null,0,0]
[null,null,null,null,null,null,null,null,0,null,null,null,null,null,null,null,null,null,{"$f":"I842-SUM(J842:R842)","v":0},{"$f":"SUM(J842:S842)","v":0}]
[null,null,null,null,null,null,null,null,0,null,null,null,null,null,null,null,null,null,0,0]
[null,null,null,null,null,null,null,null,0,null,null,null,null,null,null,null,null,null,0,0]
[null,null,null,null,null,null,null,null,0,null,null,null,null,null,null,null,null,null,0,0]
[null,null,null,null,null,null,null,null,0,null,null,null,null,null,null,null,null,null,0,0]
[null,null,null,null,null,null,null,null,0,null,null,null,null,null,null,null,null,null,0,0]
[null,null,null,null,null,null,null,null,0,null,null,null,null,null,null,null,null,null,0,0]
[null,null,null,null,null,null,null,null,0,null,null,null,null,null,null,null,null,null,0,0]
[null,null,null,null,null,null,null,null,0,null,null,null,null,null,null,null,null,null,0,0]
[null,null,null,null,null,null,null,null,{"$f":"SUM(F851:H851)","v":0},null,null,null,null,null,null,null,null,null,0,0]
[null,null,null,null,null,null,null,null,0,null,null,null,null,null,null,null,null,null,0,0]
[null,null,null,null,null,null,null,null,0,null,null,null,null,null,null,null,null,null,0,0]
[null,null,null,null,null,null,null,null,0,null,null,null,null,null,null,null,null,null,0,0]
[null,null,null,null,null,null,null,null,0,null,null,null,null,null,null,null,null,null,0,0]
[null,null,null,null,null,null,null,null,0,null,null,null,null,null,null,null,null,null,0,0]
[null,null,null,null,null,null,null,null,0,null,null,null,null,null,null,null,null,null,0,0]
[null,null,null,null,null,null,null,null,0,null,null,null,null,null,null,null,null,null,0,0]
[null,null,null,null,null,null,null,null,0,null,null,null,null,null,null,null,null,null,0,0]
[null,null,null,null,null,null,null,null,0,null,null,null,null,null,null,null,null,null,0,0]
[null,null,null,null,null,null,null,null,0,null,null,null,null,null,null,null,null,null,0,0]
[null,null,null,null,null,null,null,null,0,null,null,null,null,null,null,null,null,null,0,0]
[null,null,null,null,null,null,null,null,0,null,null,null,null,null,null,null,null,null,0,0]
[null,null,null,null,null,null,null,null,0,null,null,null,null,null,null,null,null,null,0,0]
[null,null,null,null,null,null,null,null,0,null,null,null,null,null,null,null,null,null,0,0]
[null,null,null,null,null,null,null,null,0,null,null,null,null,null,null,null,null,null,0,0]
[null,null,null,null,null,null,null,null,0,null,null,null,null,null,null,null,null,null,0,0]
[null,null,null,null,null,null,null,null,0,null,null,null,null,null,null,null,null,null,0,0]
[null,null,null,null,null,null,null,null,0,null,null,null,null,null,null,null,null,null,0,0]
[null,null,null,null,null,null,null,null,0,null,null,null,null,null,null,null,null,null,0,0]
[null,null,null,null,null,null,null,null,0,null,null,null,null,null,null,null,null,null,0,0]
[null,null,null,null,null,null,null,null,0,null,null,null,null,null,null,null,null,null,0,0]
[null,null,null,null,null,null,null,null,0,null,null,null,null,null,null,null,null,null,0,0]
[null,null,null,null,null,null,null,null,0,null,null,null,null,null,null,null,null,null,0,0]
[null,null,null,null,null,null,null,null,0,null,null,null,null,null,null,null,null,null,0,0]
[null,null,null,null,null,null,null,null,0,null,null,null,null,null,null,null,null,null,0,0]
[null,null,null,null,null,null,null,null,0,null,null,null,null,null,null,null,null,null,0,0]
[null,null,null,null,null,null,null,null,0,null,null,null,null,null,null,null,null,null,0,0]
[null,null,null,null,null,null,null,null,0,null,null,null,null,null,null,null,null,null,0,0]
[null,null,null,null,null,null,null,null,0,null,null,null,null,null,null,null,null,null,0,0]
[null,null,null,null,null,null,null,null,0,null,null,null,null,null,null,null,null,null,0,0]
[null,null,null,null,null,null,null,null,0,null,null,null,null,null,null,null,null,null,0,0]
[null,null,null,null,null,null,null,null,0,null,null,null,null,null,null,null,null,null,0,0]
[null,null,null,null,null,null,null,null,0,null,null,null,null,null,null,null,null,null,0,0]
[null,null,null,null,null,null,null,null,0,null,null,null,null,null,null,null,null,null,0,0]
[null,null,null,null,null,null,null,null,0,null,null,null,null,null,null,null,null,null,0,0]
[null,null,null,null,null,null,null,null,0,null,null,null,null,null,null,null,null,null,0,0]
[null,null,null,null,null,null,null,null,0,null,null,null,null,null,null,null,null,null,0,0]
[null,null,null,null,null,null,null,null,0,null,null,null,null,null,null,null,null,null,0,0]
[null,null,null,null,null,null,null,null,0,null,null,null,null,null,null,null,null,null,0,0]
[null,null,null,null,null,null,null,null,0,null,null,null,null,null,null,null,null,null,0,0]
[null,null,null,null,null,null,null,null,0,null,null,null,null,null,null,null,null,null,0,0]
[null,null,null,null,null,null,null,null,0,null,null,null,null,null,null,null,null,null,0,0]
[null,null,null,null,null,null,null,null,0,null,null,null,null,null,null,null,null,null,0,0]
[null,null,null,null,null,null,null,null,0,null,null,null,null,null,null,null,null,null,0,0]
[null,null,null,null,null,null,null,null,0,null,null,null,null,null,null,null,null,null,0,0]
[null,null,null,null,null,null,null,null,0,null,null,null,null,null,null,null,null,null,0,0]
[null,null,null,null,null,null,null,null,0,null,null,null,null,null,null,null,null,null,0,0]
[null,null,null,null,null,null,null,null,0,null,null,null,null,null,null,null,null,null,0,0]
[null,null,null,null,null,null,null,null,0,null,null,null,null,null,null,null,null,null,0,0]
[null,null,null,null,null,null,null,null,0,null,null,null,null,null,null,null,null,null,0,0]
[null,null,null,null,null,null,null,null,0,null,null,null,null,null,null,null,null,null,0,0]
[null,null,null,null,null,null,null,null,0,null,null,null,null,null,null,null,null,null,0,0]
[null,null,null,null,null,null,null,null,0,null,null,null,null,null,null,null,null,null,0,0]
[null,null,null,null,null,null,null,null,0,null,null,null,null,null,null,null,null,null,0,0]
[null,null,null,null,null,null,null,null,0,null,null,null,null,null,null,null,null,null,{"$f":"I906-SUM(J906:R906)","v":0},{"$f":"SUM(J906:S906)","v":0}]
[null,null,null,null,null,null,null,null,0,null,null,null,null,null,null,null,null,null,0,0]
[null,null,null,null,null,null,null,null,0,null,null,null,null,null,null,null,null,null,0,0]
[null,null,null,null,null,null,null,null,0,null,null,null,null,null,null,null,null,null,0,0]
[null,null,null,null,null,null,null,null,0,null,null,null,null,null,null,null,null,null,0,0]
[null,null,null,null,null,null,null,null,0,null,null,null,null,null,null,null,null,null,0,0]
[null,null,null,null,null,null,null,null,0,null,null,null,null,null,null,null,null,null,0,0]
[null,null,null,null,null,null,null,null,0,null,null,null,null,null,null,null,null,null,0,0]
[null,null,null,null,null,null,null,null,0,null,null,null,null,null,null,null,null,null,0,0]
[null,null,null,null,null,null,null,null,{"$f":"SUM(F915:H915)","v":0},null,null,null,null,null,null,null,null,null,0,0]
[null,null,null,null,null,null,null,null,0,null,null,null,null,null,null,null,null,null,0,0]
[null,null,null,null,null,null,null,null,0,null,null,null,null,null,null,null,null,null,0,0]
[null,null,null,null,null,null,null,null,0,null,null,null,null,null,null,null,null,null,0,0]
[null,null,null,null,null,null,null,null,0,null,null,null,null,null,null,null,null,null,0,0]
[null,null,null,null,null,null,null,null,0,null,null,null,null,null,null,null,null,null,0,0]
[null,null,null,null,null,null,null,null,0,null,null,null,null,null,null,null,null,null,0,0]
[null,null,null,null,null,null,null,null,0,null,null,null,null,null,null,null,null,null,0,0]
[null,null,null,null,null,null,null,null,0,null,null,null,null,null,null,null,null,null,0,0]
[null,null,null,null,null,null,null,null,0,null,null,null,null,null,null,null,null,null,0,0]
[null,null,null,null,null,null,null,null,0,null,null,null,null,null,null,null,null,null,0,0]
[null,null,null,null,null,null,null,null,0,null,null,null,null,null,null,null,null,null,0,0]
[null,null,null,null,null,null,null,null,0,null,null,null,null,null,null,null,null,null,0,0]
[null,null,null,null,null,null,null,null,0,null,null,null,null,null,null,null,null,null,0,0]
[null,null,null,null,null,null,null,null,0,null,null,null,null,null,null,null,null,null,0,0]
[null,null,null,null,null,null,null,null,0,null,null,null,null,null,null,null,null,null,0,0]
[null,null,null,null,null,null,null,null,0,null,null,null,null,null,null,null,null,null,0,0]
[null,null,null,null,null,null,null,null,0,null,null,null,null,null,null,null,null,null,0,0]
[null,null,null,null,null,null,null,null,0,null,null,null,null,null,null,null,null,null,0,0]
[null,null,null,null,null,null,null,null,0,null,null,null,null,null,null,null,null,null,0,0]
[null,null,null,null,null,null,null,null,0,null,null,null,null,null,null,null,null,null,0,0]
[null,null,null,null,null,null,null,null,0,null,null,null,null,null,null,null,null,null,0,0]
[null,null,null,null,null,null,null,null,0,null,null,null,null,null,null,null,null,null,0,0]
[null,null,null,null,null,null,null,null,0,null,null,null,null,null,null,null,null,null,0,0]
[null,null,null,null,null,null,null,null,0,null,null,null,null,null,null,null,null,null,0,0]
[null,null,null,null,null,null,null,null,0,null,null,null,null,null,null,null,null,null,0,0]
[null,null,null,null,null,null,null,null,0,null,null,null,null,null,null,null,null,null,0,0]
[null,null,null,null,null,null,null,null,0,null,null,null,null,null,null,null,null,null,0,0]
[null,null,null,null,null,null,null,null,0,null,null,null,null,null,null,null,null,null,0,0]
[null,null,null,null,null,null,null,null,0,null,null,null,null,null,null,null,null,null,0,0]
[null,null,null,null,null,null,null,null,0,null,null,null,null,null,null,null,null,null,0,0]
[null,null,null,null,null,null,null,null,0,null,null,null,null,null,null,null,null,null,0,0]
[null,null,null,null,null,null,null,null,0,null,null,null,null,null,null,null,null,null,0,0]
[null,null,null,null,null,null,null,null,0,null,null,null,null,null,null,null,null,null,0,0]
[null,null,null,null,null,null,null,null,0,null,null,null,null,null,null,null,null,null,0,0]
[null,null,null,null,null,null,null,null,0,null,null,null,null,null,null,null,null,null,0,0]
[null,null,null,null,null,null,null,null,0,null,null,null,null,null,null,null,null,null,0,0]
[null,null,null,null,null,null,null,null,0,null,null,null,null,null,null,null,null,null,0,0]
[null,null,null,null,null,null,null,null,0,null,null,null,null,null,null,null,null,null,0,0]
[null,null,null,null,null,null,null,null,0,null,null,null,null,null,null,null,null,null,0,0]
[null,null,null,null,null,null,null,null,0,null,null,null,null,null,null,null,null,null,0,0]
[null,null,null,null,null,null,null,null,0,null,null,null,null,null,null,null,null,null,0,0]
[null,null,null,null,null,null,null,null,0,null,null,null,null,null,null,null,null,null,0,0]
[null,null,null,null,null,null,null,null,0,null,null,null,null,null,null,null,null,null,0,0]
[null,null,null,null,null,null,null,null,0,null,null,null,null,null,null,null,null,null,0,0]
[null,null,null,null,null,null,null,null,0,null,null,null,null,null,null,null,null,null,0,0]
[null,null,null,null,null,null,null,null,0,null,null,null,null,null,null,null,null,null,0,0]
[null,null,null,null,null,null,null,null,0,null,null,null,null,null,null,null,null,null,0,0]
[null,null,null,null,null,null,null,null,0,null,null,null,null,null,null,null,null,null,0,0]
[null,null,null,null,null,null,null,null,0,null,null,null,null,null,null,null,null,null,0,0]
[null,null,null,null,null,null,null,null,0,null,null,null,null,null,null,null,null,null,0,0]
[null,null,null,null,null,null,null,null,0,null,null,null,null,null,null,null,null,null,0,0]
[null,null,null,null,null,null,null,null,0,null,null,null,null,null,null,null,null,null,0,0]
[null,null,null,null,null,null,null,null,0,null,null,null,null,null,null,null,null,null,0,0]
[null,null,null,null,null,null,null,null,0,null,null,null,null,null,null,null,null,null,0,0]
[null,null,null,null,null,null,null,null,0,null,null,null,null,null,null,null,null,null,{"$f":"I970-SUM(J970:R970)","v":0},{"$f":"SUM(J970:S970)","v":0}]
[null,null,null,null,null,null,null,null,0,null,null,null,null,null,null,null,null,null,0,0]
[null,null,null,null,null,null,null,null,0,null,null,null,null,null,null,null,null,null,0,0]
[null,null,null,null,null,null,null,null,0,null,null,null,null,null,null,null,null,null,0,0]
[null,null,null,null,null,null,null,null,0,null,null,null,null,null,null,null,null,null,0,0]
[null,null,null,null,null,null,null,null,0,null,null,null,null,null,null,null,null,null,0,0]
[null,null,null,null,null,null,null,null,0,null,null,null,null,null,null,null,null,null,0,0]
[null,null,null,null,null,null,null,null,0,null,null,null,null,null,null,null,null,null,0,0]
[null,null,null,null,null,null,null,null,0,null,null,null,null,null,null,null,null,null,0,0]
[null,null,null,null,null,null,null,null,{"$f":"SUM(F979:H979)","v":0},null,null,null,null,null,null,null,null,null,0,0]
[null,null,null,null,null,null,null,null,0,null,null,null,null,null,null,null,null,null,0,0]
[null,null,null,null,null,null,null,null,0,null,null,null,null,null,null,null,null,null,0,0]
[null,null,null,null,null,null,null,null,0,null,null,null,null,null,null,null,null,null,0,0]
[null,null,null,null,null,null,null,null,0,null,null,null,null,null,null,null,null,null,0,0]
[null,null,null,null,null,null,null,null,0,null,null,null,null,null,null,null,null,null,0,0]
[null,null,null,null,null,null,null,null,0,null,null,null,null,null,null,null,null,null,0,0]
[null,null,null,null,null,null,null,null,0,null,null,null,null,null,null,null,null,null,0,0]
[null,null,null,null,null,null,null,null,0,null,null,null,null,null,null,null,null,null,0,0]
[null,null,null,null,null,null,null,null,0,null,null,null,null,null,null,null,null,null,0,0]
[null,null,null,null,null,null,null,null,0,null,null,null,null,null,null,null,null,null,0,0]
[null,null,null,null,null,null,null,null,0,null,null,null,null,null,null,null,null,null,0,0]
[null,null,null,null,null,null,null,null,0,null,null,null,null,null,null,null,null,null,0,0]
[null,null,null,null,null,null,null,null,0,null,null,null,null,null,null,null,null,null,0,0]
[null,null,null,null,null,null,null,null,0,null,null,null,null,null,null,null,null,null,0,0]
[null,null,null,null,null,null,null,null,0,null,null,null,null,null,null,null,null,null,0,0]
[null,null,null,null,null,null,null,null,0,null,null,null,null,null,null,null,null,null,0,0]
[null,null,null,null,null,null,null,null,0,null,null,null,null,null,null,null,null,null,0,0]
[null,null,null,null,null,null,null,null,0,null,null,null,null,null,null,null,null,null,0,0]
[null,null,null,null,null,null,null,null,0,null,null,null,null,null,null,null,null,null,0,0]
[null,null,null,null,null,null,null,null,0,null,null,null,null,null,null,null,null,null,0,0]
[null,null,null,null,null,null,null,null,0,null,null,null,null,null,null,null,null,null,0,0]
[null,null,null,null,null,null,null,null,0,null,null,null,null,null,null,null,null,null,0,0]
[null,null,null,null,null,null,null,null,0,null,null,null,null,null,null,null,null,null,0,0]
[null,null,null,null,null,null,null,null,0,null,null,null,null,null,null,null,null,null,0,0]
[null,null,null,null,null,null,null,null,0,null,null,null,null,null,null,null,null,null,0,0]
[null,null,null,null,null,null,null,null,0,null,null,null,null,null,null,null,null,null,0,0]
[null,null,null,null,null,null,null,null,0,null,null,null,null,null,null,null,null,null,0,0]
[null,null,null,null,null,null,null,null,0,null,null,null,null,null,null,null,null,null,0,0]
[null,null,null,null,null,null,null,null,0,null,null,null,null,null,null,null,null,null,0,0]
[null,null,null,null,null,null,null,null,0,null,null,null,null,null,null,null,null,null,0,{"$f":"SUM(J1009:S1009)","v":0}]
[null,null,null,null,null,null,null,null,0,null,null,null,null,null,null,null,null,null,0,{"$f":"SUM(J1010:S1010)","v":0}]
[null,null,null,null,null,null,null,null,0,null,null,null,null,null,null,null,null,null,0,0]
[null,null,null,null,null,null,null,null,0,null,null,null,null,null,null,null,null,null,0,0]
[null,null,null,null,null,null,null,null,0,null,null,null,null,null,null,null,null,null,0,0]
[null,null,null,null,null,null,null,null,0,null,null,null,null,null,null,null,null,null,0,0]
[null,null,null,null,null,null,null,null,0,null,null,null,null,null,null,null,null,null,0,0]
[null,null,null,null,null,null,null,null,0,null,null,null,null,null,null,null,null,null,0,0]
[null,null,null,null,null,null,null,null,0,null,null,null,null,null,null,null,null,null,0,0]
[null,null,null,null,null,null,null,null,0,null,null,null,null,null,null,null,null,null,0,0]
[null,null,null,null,null,null,null,null,0,null,null,null,null,null,null,null,null,null,0,0]
[null,null,null,null,null,null,null,null,0,null,null,null,null,null,null,null,null,null,0,0]
[null,null,null,null,null,null,null,null,0,null,null,null,null,null,null,null,null,null,0,0]
[null,null,null,null,null,null,null,null,0,null,null,null,null,null,null,null,null,null,0,0]
[null,null,null,null,null,null,null,null,0,null,null,null,null,null,null,null,null,null,0,0]
[null,null,null,null,null,null,null,null,0,null,null,null,null,null,null,null,null,null,0,0]
[null,null,null,null,null,null,null,null,0,null,null,null,null,null,null,null,null,null,0,0]
[null,null,null,null,null,null,null,null,0,null,null,null,null,null,null,null,null,null,0,0]
[null,null,null,null,null,null,null,null,0,null,null,null,null,null,null,null,null,null,0,0]
[null,null,null,null,null,null,null,null,0,null,null,null,null,null,null,null,null,null,0,0]
[null,null,null,null,null,null,null,null,0,null,null,null,null,null,null,null,null,null,0,0]
[null,null,null,null,null,null,null,null,0,null,null,null,null,null,null,null,null,null,0,0]
[null,null,null,null,null,null,null,null,0,null,null,null,null,null,null,null,null,null,0,0]
[null,null,null,null,null,null,null,null,0,null,null,null,null,null,null,null,null,null,0,0]
[null,null,null,null,null,null,null,null,0,null,null,null,null,null,null,null,null,null,0,0]
[null,null,null,null,null,null,null,null,0,null,null,null,null,null,null,null,null,null,{"$f":"I1034-SUM(J1034:R1034)","v":0},0]
[null,null,null,null,null,null,null,null,0,null,null,null,null,null,null,null,null,null,0,0]
[null,null,null,null,null,null,null,null,0,null,null,null,null,null,null,null,null,null,0,0]
[null,null,null,null,null,null,null,null,0,null,null,null,null,null,null,null,null,null,0,0]
[null,null,null,null,null,null,null,null,0,null,null,null,null,null,null,null,null,null,0,0]
[null,null,null,null,null,null,null,null,0,null,null,null,null,null,null,null,null,null,0,0]
[null,null,null,null,null,null,null,null,0,null,null,null,null,null,null,null,null,null,0,0]
[null,null,null,null,null,null,null,null,0,null,null,null,null,null,null,null,null,null,0,0]
[null,null,null,null,null,null,null,null,0,null,null,null,null,null,null,null,null,null,0,0]
[null,null,null,null,null,null,null,null,{"$f":"SUM(F1043:H1043)","v":0},null,null,null,null,null,null,null,null,null,0,0]
[null,null,null,null,null,null,null,null,0,null,null,null,null,null,null,null,null,null,0,0]
[null,null,null,null,null,null,null,null,0,null,null,null,null,null,null,null,null,null,0,0]
[null,null,null,null,null,null,null,null,0,null,null,null,null,null,null,null,null,null,0,0]
[null,null,null,null,null,null,null,null,0,null,null,null,null,null,null,null,null,null,0,0]
[null,null,null,null,null,null,null,null,0,null,null,null,null,null,null,null,null,null,0,0]
[null,null,null,null,null,null,null,null,0,null,null,null,null,null,null,null,null,null,0,0]
[null,null,null,null,null,null,null,null,0,null,null,null,null,null,null,null,null,null,0,0]
[null,null,null,null,null,null,null,null,0,null,null,null,null,null,null,null,null,null,0,0]
[null,null,null,null,null,null,null,null,0,null,null,null,null,null,null,null,null,null,0,0]
[null,null,null,null,null,null,null,null,0,null,null,null,null,null,null,null,null,null,0,0]
[null,null,null,null,null,null,null,null,0,null,null,null,null,null,null,null,null,null,0,0]
[null,null,null,null,null,null,null,null,0,null,null,null,null,null,null,null,null,null,0,0]
[null,null,null,null,null,null,null,null,0,null,null,null,null,null,null,null,null,null,0,0]
[null,null,null,null,null,null,null,null,0,null,null,null,null,null,null,null,null,null,0,0]
[null,null,null,null,null,null,null,null,0,null,null,null,null,null,null,null,null,null,0,0]
[null,null,null,null,null,null,null,null,0,null,null,null,null,null,null,null,null,null,0,0]
[null,null,null,null,null,null,null,null,0,null,null,null,null,null,null,null,null,null,0,0]
[null,null,null,null,null,null,null,null,0,null,null,null,null,null,null,null,null,null,0,0]
[null,null,null,null,null,null,null,null,0,null,null,null,null,null,null,null,null,null,0,0]
[null,null,null,null,null,null,null,null,0,null,null,null,null,null,null,null,null,null,0,0]
[null,null,null,null,null,null,null,null,0,null,null,null,null,null,null,null,null,null,0,0]
[null,null,null,null,null,null,null,null,0,null,null,null,null,null,null,null,null,null,0,0]
[null,null,null,null,null,null,null,null,0,null,null,null,null,null,null,null,null,null,0,0]
[null,null,null,null,null,null,null,null,0,null,null,null,null,null,null,null,null,null,0,0]
[null,null,null,null,null,null,null,null,0,null,null,null,null,null,null,null,null,null,0,0]
[null,null,null,null,null,null,null,null,0,null,null,null,null,null,null,null,null,null,0,0]
[null,null,null,null,null,null,null,null,0,null,null,null,null,null,null,null,null,null,0,0]
[null,null,null,null,null,null,null,null,0,null,null,null,null,null,null,null,null,null,0,0]
[null,null,null,null,null,null,null,null,0,null,null,null,null,null,null,null,null,null,0,0]
[null,null,null,null,null,null,null,null,0,null,null,null,null,null,null,null,null,null,0,0]
[null,null,null,null,null,null,null,null,0,null,null,null,null,null,null,null,null,null,0,{"$f":"SUM(J1074:S1074)","v":0}]
[null,null,null,null,null,null,null,null,0,null,null,null,null,null,null,null,null,null,0,0]
[null,null,null,null,null,null,null,null,0,null,null,null,null,null,null,null,null,null,0,0]
[null,null,null,null,null,null,null,null,0,null,null,null,null,null,null,null,null,null,0,0]
[null,null,null,null,null,null,null,null,0,null,null,null,null,null,null,null,null,null,0,0]
[null,null,null,null,null,null,null,null,0,null,null,null,null,null,null,null,null,null,0,0]
[null,null,null,null,null,null,null,null,0,null,null,null,null,null,null,null,null,null,0,0]
[null,null,null,null,null,null,null,null,0,null,null,null,null,null,null,null,null,null,0,0]
[null,null,null,null,null,null,null,null,0,null,null,null,null,null,null,null,null,null,0,0]
[null,null,null,null,null,null,null,null,0,null,null,null,null,null,null,null,null,null,0,0]
[null,null,null,null,null,null,null,null,0,null,null,null,null,null,null,null,null,null,0,0]
[null,null,null,null,null,null,null,null,0,null,null,null,null,null,null,null,null,null,0,0]
[null,null,null,null,null,null,null,null,0,null,null,null,null,null,null,null,null,null,0,0]
[null,null,null,null,null,null,null,null,0,null,null,null,null,null,null,null,null,null,0,0]
[null,null,null,null,null,null,null,null,0,null,null,null,null,null,null,null,null,null,0,0]
[null,null,null,null,null,null,null,null,0,null,null,null,null,null,null,null,null,null,0,0]
[null,null,null,null,null,null,null,null,0,null,null,null,null,null,null,null,null,null,0,0]
[null,null,null,null,null,null,null,null,0,null,null,null,null,null,null,null,null,null,0,0]
[null,null,null,null,null,null,null,null,0,null,null,null,null,null,null,null,null,null,0,0]
[null,null,null,null,null,null,null,null,0,null,null,null,null,null,null,null,null,null,0,0]
[null,null,null,null,null,null,null,null,0,null,null,null,null,null,null,null,null,null,0,0]
[null,null,null,null,null,null,null,null,0,null,null,null,null,null,null,null,null,null,0,0]
[null,null,null,null,null,null,null,null,0,null,null,null,null,null,null,null,null,null,0,0]
[null,null,null,null,null,null,null,null,0,null,null,null,null,null,null,null,null,null,0,0]
[null,null,null,null,null,null,null,null,0,null,null,null,null,null,null,null,null,null,{"$f":"I1098-SUM(J1098:R1098)","v":0},0]
[null,null,null,null,null,null,null,null,0,null,null,null,null,null,null,null,null,null,0,0]
[null,null,null,null,null,null,null,null,0,null,null,null,null,null,null,null,null,null,0,0]
[null,null,null,null,null,null,null,null,0,null,null,null,null,null,null,null,null,null,0,0]
[null,null,null,null,null,null,null,null,0,null,null,null,null,null,null,null,null,null,0,0]
[null,null,null,null,null,null,null,null,0,null,null,null,null,null,null,null,null,null,0,0]
[null,null,null,null,null,null,null,null,0,null,null,null,null,null,null,null,null,null,0,0]
[null,null,null,null,null,null,null,null,0,null,null,null,null,null,null,null,null,null,0,0]
[null,null,null,null,null,null,null,null,0,null,null,null,null,null,null,null,null,null,0,0]
[null,null,null,null,null,null,null,null,{"$f":"SUM(F1107:H1107)","v":0},null,null,null,null,null,null,null,null,null,0,0]
[null,null,null,null,null,null,null,null,0,null,null,null,null,null,null,null,null,null,0,0]
[null,null,null,null,null,null,null,null,0,null,null,null,null,null,null,null,null,null,0,0]
[null,null,null,null,null,null,null,null,0,null,null,null,null,null,null,null,null,null,0,0]
[null,null,null,null,null,null,null,null,0,null,null,null,null,null,null,null,null,null,0,0]
[null,null,null,null,null,null,null,null,0,null,null,null,null,null,null,null,null,null,0,0]
[null,null,null,null,null,null,null,null,0,null,null,null,null,null,null,null,null,null,0,0]
[null,null,null,null,null,null,null,null,0,null,null,null,null,null,null,null,null,null,0,0]
[null,null,null,null,null,null,null,null,0,null,null,null,null,null,null,null,null,null,0,0]
[null,null,null,null,null,null,null,null,0,null,null,null,null,null,null,null,null,null,0,0]
[null,null,null,null,null,null,null,null,0,null,null,null,null,null,null,null,null,null,0,0]
[null,null,null,null,null,null,null,null,0,null,null,null,null,null,null,null,null,null,0,0]
[null,null,null,null,null,null,null,null,0,null,null,null,null,null,null,null,null,null,0,0]
[null,null,null,null,null,null,null,null,0,null,null,null,null,null,null,null,null,null,0,0]
[null,null,null,null,null,null,null,null,0,null,null,null,null,null,null,null,null,null,0,0]
[null,null,null,null,null,null,null,null,0,null,null,null,null,null,null,null,null,null,0,0]
[null,null,null,null,null,null,null,null,0,null,null,null,null,null,null,null,null,null,0,0]
[null,null,null,null,null,null,null,null,0,null,null,null,null,null,null,null,null,null,0,0]
[null,null,null,null,null,null,null,null,0,null,null,null,null,null,null,null,null,null,0,0]
[null,null,null,null,null,null,null,null,0,null,null,null,null,null,null,null,null,null,0,0]
[null,null,null,null,null,null,null,null,0,null,null,null,null,null,null,null,null,null,0,0]
[null,null,null,null,null,null,null,null,0,null,null,null,null,null,null,null,null,null,0,0]
[null,null,null,null,null,null,null,null,0,null,null,null,null,null,null,null,null,null,0,0]
[null,null,null,null,null,null,null,null,0,null,null,null,null,null,null,null,null,null,0,0]
[null,null,null,null,null,null,null,null,0,null,null,null,null,null,null,null,null,null,0,0]
[null,null,null,null,null,null,null,null,0,null,null,null,null,null,null,null,null,null,0,0]
[null,null,null,null,null,null,null,null,0,null,null,null,null,null,null,null,null,null,0,0]
[null,null,null,null,null,null,null,null,0,null,null,null,null,null,null,null,null,null,0,0]
[null,null,null,null,null,null,null,null,0,null,null,null,null,null,null,null,null,null,0,0]
[null,null,null,null,null,null,null,null,0,null,null,null,null,null,null,null,null,null,0,0]
[null,null,null,null,null,null,null,null,0,null,null,null,null,null,null,null,null,null,0,0]
[null,null,null,null,null,null,null,null,0,null,null,null,null,null,null,null,null,null,0,{"$f":"SUM(J1138:S1138)","v":0}]
[null,null,null,null,null,null,null,null,0,null,null,null,null,null,null,null,null,null,0,0]
[null,null,null,null,null,null,null,null,0,null,null,null,null,null,null,null,null,null,0,0]
[null,null,null,null,null,null,null,null,0,null,null,null,null,null,null,null,null,null,0,0]
[null,null,null,null,null,null,null,null,0,null,null,null,null,null,null,null,null,null,0,0]
[null,null,null,null,null,null,null,null,0,null,null,null,null,null,null,null,null,null,0,0]
[null,null,null,null,null,null,null,null,0,null,null,null,null,null,null,null,null,null,0,0]
[null,null,null,null,null,null,null,null,0,null,null,null,null,null,null,null,null,null,0,0]
[null,null,null,null,null,null,null,null,0,null,null,null,null,null,null,null,null,null,0,0]
[null,null,null,null,null,null,null,null,0,null,null,null,null,null,null,null,null,null,0,0]
[null,null,null,null,null,null,null,null,0,null,null,null,null,null,null,null,null,null,0,0]
[null,null,null,null,null,null,null,null,0,null,null,null,null,null,null,null,null,null,0,0]
[null,null,null,null,null,null,null,null,0,null,null,null,null,null,null,null,null,null,0,0]
[null,null,null,null,null,null,null,null,0,null,null,null,null,null,null,null,null,null,0,0]
[null,null,null,null,null,null,null,null,0,null,null,null,null,null,null,null,null,null,0,0]
[null,null,null,null,null,null,null,null,0,null,null,null,null,null,null,null,null,null,0,0]
[null,null,null,null,null,null,null,null,0,null,null,null,null,null,null,null,null,null,0,0]
[null,null,null,null,null,null,null,null,0,null,null,null,null,null,null,null,null,null,0,0]
[null,null,null,null,null,null,null,null,0,null,null,null,null,null,null,null,null,null,0,0]
[null,null,null,null,null,null,null,null,0,null,null,null,null,null,null,null,null,null,0,0]
[null,null,null,null,null,null,null,null,0,null,null,null,null,null,null,null,null,null,0,0]
[null,null,null,null,null,null,null,null,0,null,null,null,null,null,null,null,null,null,0,0]
[null,null,null,null,null,null,null,null,0,null,null,null,null,null,null,null,null,null,0,0]
[null,null,null,null,null,null,null,null,0,null,null,null,null,null,null,null,null,null,0,0]
[null,null,null,null,null,null,null,null,0,null,null,null,null,null,null,null,null,null,{"$f":"I1162-SUM(J1162:R1162)","v":0},0]
[null,null,null,null,null,null,null,null,0,null,null,null,null,null,null,null,null,null,0,0]
[null,null,null,null,null,null,null,null,0,null,null,null,null,null,null,null,null,null,0,0]
[null,null,null,null,null,null,null,null,0,null,null,null,null,null,null,null,null,null,0,0]
[null,null,null,null,null,null,null,null,0,null,null,null,null,null,null,null,null,null,0,0]
[null,null,null,null,null,null,null,null,0,null,null,null,null,null,null,null,null,null,0,0]
[null,null,null,null,null,null,null,null,0,null,null,null,null,null,null,null,null,null,0,0]
[null,null,null,null,null,null,null,null,0,null,null,null,null,null,null,null,null,null,0,0]
[null,null,null,null,null,null,null,null,0,null,null,null,null,null,null,null,null,null,0,0]
[null,null,null,null,null,null,null,null,{"$f":"SUM(F1171:H1171)","v":0},null,null,null,null,null,null,null,null,null,0,0]
[null,null,null,null,null,null,null,null,0,null,null,null,null,null,null,null,null,null,0,0]
[null,null,null,null,null,null,null,null,0,null,null,null,null,null,null,null,null,null,0,0]
[null,null,null,null,null,null,null,null,0,null,null,null,null,null,null,null,null,null,0,0]
[null,null,null,null,null,null,null,null,0,null,null,null,null,null,null,null,null,null,0,0]
[null,null,null,null,null,null,null,null,0,null,null,null,null,null,null,null,null,null,0,0]
[null,null,null,null,null,null,null,null,0,null,null,null,null,null,null,null,null,null,0,0]
[null,null,null,null,null,null,null,null,0,null,null,null,null,null,null,null,null,null,0,0]
[null,null,null,null,null,null,null,null,0,null,null,null,null,null,null,null,null,null,0,0]
[null,null,null,null,null,null,null,null,0,null,null,null,null,null,null,null,null,null,0,0]
[null,null,null,null,null,null,null,null,0,null,null,null,null,null,null,null,null,null,0,0]
[null,null,null,null,null,null,null,null,0,null,null,null,null,null,null,null,null,null,0,0]
[null,null,null,null,null,null,null,null,0,null,null,null,null,null,null,null,null,null,0,0]
[null,null,null,null,null,null,null,null,0,null,null,null,null,null,null,null,null,null,0,0]
[null,null,null,null,null,null,null,null,0,null,null,null,null,null,null,null,null,null,0,0]
[null,null,null,null,null,null,null,null,0,null,null,null,null,null,null,null,null,null,0,0]
[null,null,null,null,null,null,null,null,0,null,null,null,null,null,null,null,null,null,0,0]
[null,null,null,null,null,null,null,null,0,null,null,null,null,null,null,null,null,null,0,0]
[null,null,null,null,null,null,null,null,0,null,null,null,null,null,null,null,null,null,0,0]
[null,null,null,null,null,null,null,null,0,null,null,null,null,null,null,null,null,null,0,0]
[null,null,null,null,null,null,null,null,0,null,null,null,null,null,null,null,null,null,0,0]
[null,null,null,null,null,null,null,null,0,null,null,null,null,null,null,null,null,null,0,0]
[null,null,null,null,null,null,null,null,0,null,null,null,null,null,null,null,null,null,0,0]
[null,null,null,null,null,null,null,null,0,null,null,null,null,null,null,null,null,null,0,0]
[null,null,null,null,null,null,null,null,0,null,null,null,null,null,null,null,null,null,0,0]
[null,null,null,null,null,null,null,null,0,null,null,null,null,null,null,null,null,null,0,0]
[null,null,null,null,null,null,null,null,0,null,null,null,null,null,null,null,null,null,0,0]
[null,null,null,null,null,null,null,null,0,null,null,null,null,null,null,null,null,null,0,0]
[null,null,null,null,null,null,null,null,0,null,null,null,null,null,null,null,null,null,0,0]
[null,null,null,null,null,null,null,null,0,null,null,null,null,null,null,null,null,null,0,0]
[null,null,null,null,null,null,null,null,0,null,null,null,null,null,null,null,null,null,0,0]
[null,null,null,null,null,null,null,null,0,null,null,null,null,null,null,null,null,null,0,{"$f":"SUM(J1202:S1202)","v":0}]
[null,null,null,null,null,null,null,null,0,null,null,null,null,null,null,null,null,null,0,0]
[null,null,null,null,null,null,null,null,0,null,null,null,null,null,null,null,null,null,0,0]
[null,null,null,null,null,null,null,null,0,null,null,null,null,null,null,null,null,null,0,0]
[null,null,null,null,null,null,null,null,0,null,null,null,null,null,null,null,null,null,0,0]
[null,null,null,null,null,null,null,null,0,null,null,null,null,null,null,null,null,null,0,0]
[null,null,null,null,null,null,null,null,0,null,null,null,null,null,null,null,null,null,0,0]
[null,null,null,null,null,null,null,null,0,null,null,null,null,null,null,null,null,null,0,0]
[null,null,null,null,null,null,null,null,0,null,null,null,null,null,null,null,null,null,0,0]
[null,null,null,null,null,null,null,null,0,null,null,null,null,null,null,null,null,null,0,0]
[null,null,null,null,null,null,null,null,0,null,null,null,null,null,null,null,null,null,0,0]
[null,null,null,null,null,null,null,null,0,null,null,null,null,null,null,null,null,null,0,0]
[null,null,null,null,null,null,null,null,0,null,null,null,null,null,null,null,null,null,0,0]
[null,null,null,null,null,null,null,null,0,null,null,null,null,null,null,null,null,null,0,0]
[null,null,null,null,null,null,null,null,0,null,null,null,null,null,null,null,null,null,0,0]
[null,null,null,null,null,null,null,null,0,null,null,null,null,null,null,null,null,null,0,0]
[null,null,null,null,null,null,null,null,0,null,null,null,null,null,null,null,null,null,0,0]
[null,null,null,null,null,null,null,null,0,null,null,null,null,null,null,null,null,null,0,0]
[null,null,null,null,null,null,null,null,0,null,null,null,null,null,null,null,null,null,0,0]
[null,null,null,null,null,null,null,null,0,null,null,null,null,null,null,null,null,null,0,0]
[null,null,null,null,null,null,null,null,0,null,null,null,null,null,null,null,null,null,0,0]
[null,null,null,null,null,null,null,null,0,null,null,null,null,null,null,null,null,null,0,0]
[null,null,null,null,null,null,null,null,0,null,null,null,null,null,null,null,null,null,0,0]
[null,null,null,null,null,null,null,null,0,null,null,null,null,null,null,null,null,null,0,0]
[null,null,null,null,null,null,null,null,0,null,null,null,null,null,null,null,null,null,{"$f":"I1226-SUM(J1226:R1226)","v":0},0]
[null,null,null,null,null,null,null,null,0,null,null,null,null,null,null,null,null,null,0,0]
[null,null,null,null,null,null,null,null,0,null,null,null,null,null,null,null,null,null,0,0]
[null,null,null,null,null,null,null,null,0,null,null,null,null,null,null,null,null,null,0,0]
[null,null,null,null,null,null,null,null,0,null,null,null,null,null,null,null,null,null,0,0]
[null,null,null,null,null,null,null,null,0,null,null,null,null,null,null,null,null,null,0,0]
[null,null,null,null,null,null,null,null,0,null,null,null,null,null,null,null,null,null,0,0]
[null,null,null,null,null,null,null,null,0,null,null,null,null,null,null,null,null,null,0,0]
[null,null,null,null,null,null,null,null,0,null,null,null,null,null,null,null,null,null,0,0]
[null,null,null,null,null,null,null,null,{"$f":"SUM(F1235:H1235)","v":0},null,null,null,null,null,null,null,null,null,0,0]
[null,null,null,null,null,null,null,null,0,null,null,null,null,null,null,null,null,null,0,0]
[null,null,null,null,null,null,null,null,0,null,null,null,null,null,null,null,null,null,0,0]
[null,null,null,null,null,null,null,null,0,null,null,null,null,null,null,null,null,null,0,0]
[null,null,null,null,null,null,null,null,0,null,null,null,null,null,null,null,null,null,0,0]
[null,null,null,null,null,null,null,null,0,null,null,null,null,null,null,null,null,null,0,0]
[null,null,null,null,null,null,null,null,0,null,null,null,null,null,null,null,null,null,0,0]
[null,null,null,null,null,null,null,null,0,null,null,null,null,null,null,null,null,null,0,0]
[null,null,null,null,null,null,null,null,0,null,null,null,null,null,null,null,null,null,0,0]
[null,null,null,null,null,null,null,null,0,null,null,null,null,null,null,null,null,null,0,0]
[null,null,null,null,null,null,null,null,0,null,null,null,null,null,null,null,null,null,0,0]
[null,null,null,null,null,null,null,null,0,null,null,null,null,null,null,null,null,null,0,0]
[null,null,null,null,null,null,null,null,0,null,null,null,null,null,null,null,null,null,0,0]
[null,null,null,null,null,null,null,null,0,null,null,null,null,null,null,null,null,null,0,0]
[null,null,null,null,null,null,null,null,0,null,null,null,null,null,null,null,null,null,0,0]
[null,null,null,null,null,null,null,null,0,null,null,null,null,null,null,null,null,null,0,0]
[null,null,null,null,null,null,null,null,0,null,null,null,null,null,null,null,null,null,0,0]
[null,null,null,null,null,null,null,null,0,null,null,null,null,null,null,null,null,null,0,0]
[null,null,null,null,null,null,null,null,0,null,null,null,null,null,null,null,null,null,0,0]
[null,null,null,null,null,null,null,null,0,null,null,null,null,null,null,null,null,null,0,0]
[null,null,null,null,null,null,null,null,0,null,null,null,null,null,null,null,null,null,0,0]
[null,null,null,null,null,null,null,null,0,null,null,null,null,null,null,null,null,null,0,0]
[null,null,null,null,null,null,null,null,0,null,null,null,null,null,null,null,null,null,0,0]
[null,null,null,null,null,null,null,null,0,null,null,null,null,null,null,null,null,null,0,0]
[null,null,null,null,null,null,null,null,0,null,null,null,null,null,null,null,null,null,0,0]
[null,null,null,null,null,null,null,null,0,null,null,null,null,null,null,null,null,null,0,0]
[null,null,null,null,null,null,null,null,0,null,null,null,null,null,null,null,null,null,0,0]
[null,null,null,null,null,null,null,null,0,null,null,null,null,null,null,null,null,null,0,0]
[null,null,null,null,null,null,null,null,0,null,null,null,null,null,null,null,null,null,0,0]
[null,null,null,null,null,null,null,null,0,null,null,null,null,null,null,null,null,null,0,0]
[null,null,null,null,null,null,null,null,0,null,null,null,null,null,null,null,null,null,0,0]
[null,null,null,null,null,null,null,null,0,null,null,null,null,null,null,null,null,null,0,{"$f":"SUM(J1266:S1266)","v":0}]
[null,null,null,null,null,null,null,null,0,null,null,null,null,null,null,null,null,null,0,0]
[null,null,null,null,null,null,null,null,0,null,null,null,null,null,null,null,null,null,0,0]
[null,null,null,null,null,null,null,null,0,null,null,null,null,null,null,null,null,null,0,0]
[null,null,null,null,null,null,null,null,0,null,null,null,null,null,null,null,null,null,0,0]
[null,null,null,null,null,null,null,null,0,null,null,null,null,null,null,null,null,null,0,0]
[null,null,null,null,null,null,null,null,0,null,null,null,null,null,null,null,null,null,0,0]
[null,null,null,null,null,null,null,null,0,null,null,null,null,null,null,null,null,null,0,0]
[null,null,null,null,null,null,null,null,0,null,null,null,null,null,null,null,null,null,0,0]
[null,null,null,null,null,null,null,null,0,null,null,null,null,null,null,null,null,null,0,0]
[null,null,null,null,null,null,null,null,0,null,null,null,null,null,null,null,null,null,0,0]
[null,null,null,null,null,null,null,null,0,null,null,null,null,null,null,null,null,null,0,0]
[null,null,null,null,null,null,null,null,0,null,null,null,null,null,null,null,null,null,0,0]
[null,null,null,null,null,null,null,null,0,null,null,null,null,null,null,null,null,null,0,0]
[null,null,null,null,null,null,null,null,0,null,null,null,null,null,null,null,null,null,0,0]
[null,null,null,null,null,null,null,null,0,null,null,null,null,null,null,null,null,null,0,0]
[null,null,null,null,null,null,null,null,0,null,null,null,null,null,null,null,null,null,0,0]
[null,null,null,null,null,null,null,null,0,null,null,null,null,null,null,null,null,null,0,0]
[null,null,null,null,null,null,null,null,0,null,null,null,null,null,null,null,null,null,0,0]
[null,null,null,null,null,null,null,null,0,null,null,null,null,null,null,null,null,null,0,0]
[null,null,null,null,null,null,null,null,0,null,null,null,null,null,null,null,null,null,0,0]
[null,null,null,null,null,null,null,null,0,null,null,null,null,null,null,null,null,null,0,0]
[null,null,null,null,null,null,null,null,0,null,null,null,null,null,null,null,null,null,0,0]
[null,null,null,null,null,null,null,null,0,null,null,null,null,null,null,null,null,null,0,0]
[null,null,null,null,null,null,null,null,0,null,null,null,null,null,null,null,null,null,{"$f":"I1290-SUM(J1290:R1290)","v":0},0]
[null,null,null,null,null,null,null,null,0,null,null,null,null,null,null,null,null,null,0,0]
[null,null,null,null,null,null,null,null,0,null,null,null,null,null,null,null,null,null,0,0]
[null,null,null,null,null,null,null,null,0,null,null,null,null,null,null,null,null,null,0,0]
[null,null,null,null,null,null,null,null,0,null,null,null,null,null,null,null,null,null,0,0]
[null,null,null,null,null,null,null,null,0,null,null,null,null,null,null,null,null,null,0,0]
[null,null,null,null,null,null,null,null,0,null,null,null,null,null,null,null,null,null,0,0]
[null,null,null,null,null,null,null,null,0,null,null,null,null,null,null,null,null,null,0,0]
[null,null,null,null,null,null,null,null,0,null,null,null,null,null,null,null,null,null,0,0]
[null,null,null,null,null,null,null,null,{"$f":"SUM(F1299:H1299)","v":0},null,null,null,null,null,null,null,null,null,0,0]
[null,null,null,null,null,null,null,null,0,null,null,null,null,null,null,null,null,null,0,0]
[null,null,null,null,null,null,null,null,0,null,null,null,null,null,null,null,null,null,0,0]
[null,null,null,null,null,null,null,null,0,null,null,null,null,null,null,null,null,null,0,0]
[null,null,null,null,null,null,null,null,0,null,null,null,null,null,null,null,null,null,0,0]
[null,null,null,null,null,null,null,null,0,null,null,null,null,null,null,null,null,null,0,0]
[null,null,null,null,null,null,null,null,0,null,null,null,null,null,null,null,null,null,0,0]
[null,null,null,null,null,null,null,null,0,null,null,null,null,null,null,null,null,null,0,0]
[null,null,null,null,null,null,null,null,0,null,null,null,null,null,null,null,null,null,0,0]
[null,null,null,null,null,null,null,null,0,null,null,null,null,null,null,null,null,null,0,0]
[null,null,null,null,null,null,null,null,0,null,null,null,null,null,null,null,null,null,0,0]
[null,null,null,null,null,null,null,null,0,null,null,null,null,null,null,null,null,null,0,0]
[null,null,null,null,null,null,null,null,0,null,null,null,null,null,null,null,null,null,0,0]
[null,null,null,null,null,null,null,null,0,null,null,null,null,null,null,null,null,null,0,0]
[null,null,null,null,null,null,null,null,0,null,null,null,null,null,null,null,null,null,0,0]
[null,null,null,null,null,null,null,null,0,null,null,null,null,null,null,null,null,null,0,0]
[null,null,null,null,null,null,null,null,0,null,null,null,null,null,null,null,null,null,0,0]
[null,null,null,null,null,null,null,null,0,null,null,null,null,null,null,null,null,null,0,0]
[null,null,null,null,null,null,null,null,0,null,null,null,null,null,null,null,null,null,0,0]
[null,null,null,null,null,null,null,null,0,null,null,null,null,null,null,null,null,null,0,0]
[null,null,null,null,null,null,null,null,0,null,null,null,null,null,null,null,null,null,0,0]
[null,null,null,null,null,null,null,null,0,null,null,null,null,null,null,null,null,null,0,0]
[null,null,null,null,null,null,null,null,0,null,null,null,null,null,null,null,null,null,0,0]
[null,null,null,null,null,null,null,null,0,null,null,null,null,null,null,null,null,null,0,0]
[null,null,null,null,null,null,null,null,0,null,null,null,null,null,null,null,null,null,0,0]
[null,null,null,null,null,null,null,null,0,null,null,null,null,null,null,null,null,null,0,0]
[null,null,null,null,null,null,null,null,0,null,null,null,null,null,null,null,null,null,0,0]
[null,null,null,null,null,null,null,null,0,null,null,null,null,null,null,null,null,null,0,0]
[null,null,null,null,null,null,null,null,0,null,null,null,null,null,null,null,null,null,0,0]
[null,null,null,null,null,null,null,null,0,null,null,null,null,null,null,null,null,null,0,0]
[null,null,null,null,null,null,null,null,0,null,null,null,null,null,null,null,null,null,0,0]
[null,null,null,null,null,null,null,null,0,null,null,null,null,null,null,null,null,null,0,{"$f":"SUM(J1330:S1330)","v":0}]
[null,null,null,null,null,null,null,null,0,null,null,null,null,null,null,null,null,null,0,0]
[null,null,null,null,null,null,null,null,0,null,null,null,null,null,null,null,null,null,0,0]
[null,null,null,null,null,null,null,null,0,null,null,null,null,null,null,null,null,null,0,0]
[null,null,null,null,null,null,null,null,0,null,null,null,null,null,null,null,null,null,0,0]
[null,null,null,null,null,null,null,null,0,null,null,null,null,null,null,null,null,null,0,0]
[null,null,null,null,null,null,null,null,0,null,null,null,null,null,null,null,null,null,0,0]
[null,null,null,null,null,null,null,null,0,null,null,null,null,null,null,null,null,null,0,0]
[null,null,null,null,null,null,null,null,0,null,null,null,null,null,null,null,null,null,0,0]
[null,null,null,null,null,null,null,null,0,null,null,null,null,null,null,null,null,null,0,0]
[null,null,null,null,null,null,null,null,0,null,null,null,null,null,null,null,null,null,0,0]
[null,null,null,null,null,null,null,null,0,null,null,null,null,null,null,null,null,null,0,0]
[null,null,null,null,null,null,null,null,0,null,null,null,null,null,null,null,null,null,0,0]
[null,null,null,null,null,null,null,null,0,null,null,null,null,null,null,null,null,null,0,0]
[null,null,null,null,null,null,null,null,0,null,null,null,null,null,null,null,null,null,0,0]
[null,null,null,null,null,null,null,null,0,null,null,null,null,null,null,null,null,null,0,0]
[null,null,null,null,null,null,null,null,0,null,null,null,null,null,null,null,null,null,0,0]
[null,null,null,null,null,null,null,null,0,null,null,null,null,null,null,null,null,null,0,0]
[null,null,null,null,null,null,null,null,0,null,null,null,null,null,null,null,null,null,0,0]
[null,null,null,null,null,null,null,null,0,null,null,null,null,null,null,null,null,null,0,0]
[null,null,null,null,null,null,null,null,0,null,null,null,null,null,null,null,null,null,0,0]
[null,null,null,null,null,null,null,null,0,null,null,null,null,null,null,null,null,null,0,0]
[null,null,null,null,null,null,null,null,0,null,null,null,null,null,null,null,null,null,0,0]
[null,null,null,null,null,null,null,null,0,null,null,null,null,null,null,null,null,null,0,0]
[null,null,null,null,null,null,null,null,0,null,null,null,null,null,null,null,null,null,{"$f":"I1354-SUM(J1354:R1354)","v":0},0]
[null,null,null,null,null,null,null,null,0,null,null,null,null,null,null,null,null,null,0,0]
[null,null,null,null,null,null,null,null,0,null,null,null,null,null,null,null,null,null,0,0]
[null,null,null,null,null,null,null,null,0,null,null,null,null,null,null,null,null,null,0,0]
[null,null,null,null,null,null,null,null,0,null,null,null,null,null,null,null,null,null,0,0]
[null,null,null,null,null,null,null,null,0,null,null,null,null,null,null,null,null,null,0,0]
[null,null,null,null,null,null,null,null,0,null,null,null,null,null,null,null,null,null,0,0]
[null,null,null,null,null,null,null,null,0,null,null,null,null,null,null,null,null,null,0,0]
[null,null,null,null,null,null,null,null,0,null,null,null,null,null,null,null,null,null,0,0]
[null,null,null,null,null,null,null,null,{"$f":"SUM(F1363:H1363)","v":0},null,null,null,null,null,null,null,null,null,0,0]
[null,null,null,null,null,null,null,null,0,null,null,null,null,null,null,null,null,null,0,0]
[null,null,null,null,null,null,null,null,0,null,null,null,null,null,null,null,null,null,0,0]
[null,null,null,null,null,null,null,null,0,null,null,null,null,null,null,null,null,null,0,0]
[null,null,null,null,null,null,null,null,0,null,null,null,null,null,null,null,null,null,0,0]
[null,null,null,null,null,null,null,null,0,null,null,null,null,null,null,null,null,null,0,0]
[null,null,null,null,null,null,null,null,0,null,null,null,null,null,null,null,null,null,0,0]
[null,null,null,null,null,null,null,null,0,null,null,null,null,null,null,null,null,null,0,0]
[null,null,null,null,null,null,null,null,0,null,null,null,null,null,null,null,null,null,0,0]
[null,null,null,null,null,null,null,null,0,null,null,null,null,null,null,null,null,null,0,0]
[null,null,null,null,null,null,null,null,0,null,null,null,null,null,null,null,null,null,0,0]
[null,null,null,null,null,null,null,null,0,null,null,null,null,null,null,null,null,null,0,0]
[null,null,null,null,null,null,null,null,0,null,null,null,null,null,null,null,null,null,0,0]
[null,null,null,null,null,null,null,null,0,null,null,null,null,null,null,null,null,null,0,0]
[null,null,null,null,null,null,null,null,0,null,null,null,null,null,null,null,null,null,0,0]
[null,null,null,null,null,null,null,null,0,null,null,null,null,null,null,null,null,null,0,0]
[null,null,null,null,null,null,null,null,0,null,null,null,null,null,null,null,null,null,0,0]
[null,null,null,null,null,null,null,null,0,null,null,null,null,null,null,null,null,null,0,0]
[null,null,null,null,null,null,null,null,0,null,null,null,null,null,null,null,null,null,0,0]
[null,null,null,null,null,null,null,null,0,null,null,null,null,null,null,null,null,null,0,0]
[null,null,null,null,null,null,null,null,0,null,null,null,null,null,null,null,null,null,0,0]
[null,null,null,null,null,null,null,null,0,null,null,null,null,null,null,null,null,null,0,0]
[null,null,null,null,null,null,null,null,0,null,null,null,null,null,null,null,null,null,0,0]
[null,null,null,null,null,null,null,null,0,null,null,null,null,null,null,null,null,null,0,0]
[null,null,null,null,null,null,null,null,0,null,null,null,null,null,null,null,null,null,0,0]
[null,null,null,null,null,null,null,null,0,null,null,null,null,null,null,null,null,null,0,0]
[null,null,null,null,null,null,null,null,0,null,null,null,null,null,null,null,null,null,0,0]
[null,null,null,null,null,null,null,null,0,null,null,null,null,null,null,null,null,null,0,0]
[null,null,null,null,null,null,null,null,0,null,null,null,null,null,null,null,null,null,0,0]
[null,null,null,null,null,null,null,null,0,null,null,null,null,null,null,null,null,null,0,0]
[null,null,null,null,null,null,null,null,0,null,null,null,null,null,null,null,null,null,0,0]
[null,null,null,null,null,null,null,null,0,null,null,null,null,null,null,null,null,null,0,{"$f":"SUM(J1394:S1394)","v":0}]
[null,null,null,null,null,null,null,null,0,null,null,null,null,null,null,null,null,null,0,0]
[null,null,null,null,null,null,null,null,0,null,null,null,null,null,null,null,null,null,0,0]
[null,null,null,null,null,null,null,null,0,null,null,null,null,null,null,null,null,null,0,0]
[null,null,null,null,null,null,null,null,0,null,null,null,null,null,null,null,null,null,0,0]
[null,null,null,null,null,null,null,null,0,null,null,null,null,null,null,null,null,null,0,0]
[null,null,null,null,null,null,null,null,0,null,null,null,null,null,null,null,null,null,0,0]
[null,null,null,null,null,null,null,null,0,null,null,null,null,null,null,null,null,null,0,0]
[null,null,null,null,null,null,null,null,0,null,null,null,null,null,null,null,null,null,0,0]
[null,null,null,null,null,null,null,null,0,null,null,null,null,null,null,null,null,null,0,0]
[null,null,null,null,null,null,null,null,0,null,null,null,null,null,null,null,null,null,0,0]
[null,null,null,null,null,null,null,null,0,null,null,null,null,null,null,null,null,null,0,0]
[null,null,null,null,null,null,null,null,0,null,null,null,null,null,null,null,null,null,0,0]
[null,null,null,null,null,null,null,null,0,null,null,null,null,null,null,null,null,null,0,0]
[null,null,null,null,null,null,null,null,0,null,null,null,null,null,null,null,null,null,0,0]
[null,null,null,null,null,null,null,null,0,null,null,null,null,null,null,null,null,null,0,0]
[null,null,null,null,null,null,null,null,0,null,null,null,null,null,null,null,null,null,0,0]
[null,null,null,null,null,null,null,null,0,null,null,null,null,null,null,null,null,null,0,0]
[null,null,null,null,null,null,null,null,0,null,null,null,null,null,null,null,null,null,0,0]
[null,null,null,null,null,null,null,null,0,null,null,null,null,null,null,null,null,null,0,0]
[null,null,null,null,null,null,null,null,0,null,null,null,null,null,null,null,null,null,0,0]
[null,null,null,null,null,null,null,null,0,null,null,null,null,null,null,null,null,null,0,0]
[null,null,null,null,null,null,null,null,0,null,null,null,null,null,null,null,null,null,0,0]
[null,null,null,null,null,null,null,null,0,null,null,null,null,null,null,null,null,null,0,0]
[null,null,null,null,null,null,null,null,0,null,null,null,null,null,null,null,null,null,{"$f":"I1418-SUM(J1418:R1418)","v":0},0]
[null,null,null,null,null,null,null,null,0,null,null,null,null,null,null,null,null,null,0,0]
[null,null,null,null,null,null,null,null,0,null,null,null,null,null,null,null,null,null,0,0]
[null,null,null,null,null,null,null,null,0,null,null,null,null,null,null,null,null,null,0,0]
[null,null,null,null,null,null,null,null,0,null,null,null,null,null,null,null,null,null,0,0]
[null,null,null,null,null,null,null,null,0,null,null,null,null,null,null,null,null,null,0,0]
[null,null,null,null,null,null,null,null,0,null,null,null,null,null,null,null,null,null,0,0]
[null,null,null,null,null,null,null,null,0,null,null,null,null,null,null,null,null,null,0,0]
[null,null,null,null,null,null,null,null,0,null,null,null,null,null,null,null,null,null,0,0]
[null,null,null,null,null,null,null,null,{"$f":"SUM(F1427:H1427)","v":0},null,null,null,null,null,null,null,null,null,0,0]
[null,null,null,null,null,null,null,null,0,null,null,null,null,null,null,null,null,null,0,0]
[null,null,null,null,null,null,null,null,0,null,null,null,null,null,null,null,null,null,0,0]
[null,null,null,null,null,null,null,null,0,null,null,null,null,null,null,null,null,null,0,0]
[null,null,null,null,null,null,null,null,0,null,null,null,null,null,null,null,null,null,0,0]
[null,null,null,null,null,null,null,null,0,null,null,null,null,null,null,null,null,null,0,0]
[null,null,null,null,null,null,null,null,0,null,null,null,null,null,null,null,null,null,0,0]
[null,null,null,null,null,null,null,null,0,null,null,null,null,null,null,null,null,null,0,0]
[null,null,null,null,null,null,null,null,0,null,null,null,null,null,null,null,null,null,0,0]
[null,null,null,null,null,null,null,null,0,null,null,null,null,null,null,null,null,null,0,0]
[null,null,null,null,null,null,null,null,0,null,null,null,null,null,null,null,null,null,0,0]
[null,null,null,null,null,null,null,null,0,null,null,null,null,null,null,null,null,null,0,0]
[null,null,null,null,null,null,null,null,0,null,null,null,null,null,null,null,null,null,0,0]
[null,null,null,null,null,null,null,null,0,null,null,null,null,null,null,null,null,null,0,0]
[null,null,null,null,null,null,null,null,0,null,null,null,null,null,null,null,null,null,0,0]
[null,null,null,null,null,null,null,null,0,null,null,null,null,null,null,null,null,null,0,0]
[null,null,null,null,null,null,null,null,0,null,null,null,null,null,null,null,null,null,0,0]
[null,null,null,null,null,null,null,null,0,null,null,null,null,null,null,null,null,null,0,0]
[null,null,null,null,null,null,null,null,0,null,null,null,null,null,null,null,null,null,0,0]
[null,null,null,null,null,null,null,null,0,null,null,null,null,null,null,null,null,null,0,0]
[null,null,null,null,null,null,null,null,0,null,null,null,null,null,null,null,null,null,0,0]
[null,null,null,null,null,null,null,null,0,null,null,null,null,null,null,null,null,null,0,0]
[null,null,null,null,null,null,null,null,0,null,null,null,null,null,null,null,null,null,0,0]
[null,null,null,null,null,null,null,null,0,null,null,null,null,null,null,null,null,null,0,0]
[null,null,null,null,null,null,null,null,0,null,null,null,null,null,null,null,null,null,0,0]
[null,null,null,null,null,null,null,null,0,null,null,null,null,null,null,null,null,null,0,0]
[null,null,null,null,null,null,null,null,0,null,null,null,null,null,null,null,null,null,0,0]
[null,null,null,null,null,null,null,null,0,null,null,null,null,null,null,null,null,null,0,0]
[null,null,null,null,null,null,null,null,0,null,null,null,null,null,null,null,null,null,0,0]
[null,null,null,null,null,null,null,null,0,null,null,null,null,null,null,null,null,null,0,0]
[null,null,null,null,null,null,null,null,0,null,null,null,null,null,null,null,null,null,0,0]
[null,null,null,null,null,null,null,null,0,null,null,null,null,null,null,null,null,null,0,{"$f":"SUM(J1458:S1458)","v":0}]
[null,null,null,null,null,null,null,null,0,null,null,null,null,null,null,null,null,null,0,0]
[null,null,null,null,null,null,null,null,0,null,null,null,null,null,null,null,null,null,0,0]
[null,null,null,null,null,null,null,null,0,null,null,null,null,null,null,null,null,null,0,0]
[null,null,null,null,null,null,null,null,0,null,null,null,null,null,null,null,null,null,0,0]
[null,null,null,null,null,null,null,null,0,null,null,null,null,null,null,null,null,null,0,0]
[null,null,null,null,null,null,null,null,0,null,null,null,null,null,null,null,null,null,0,0]
[null,null,null,null,null,null,null,null,0,null,null,null,null,null,null,null,null,null,0,0]
[null,null,null,null,null,null,null,null,0,null,null,null,null,null,null,null,null,null,0,0]
[null,null,null,null,null,null,null,null,0,null,null,null,null,null,null,null,null,null,0,0]
[null,null,null,null,null,null,null,null,0,null,null,null,null,null,null,null,null,null,0,0]
[null,null,null,null,null,null,null,null,0,null,null,null,null,null,null,null,null,null,0,0]
[null,null,null,null,null,null,null,null,0,null,null,null,null,null,null,null,null,null,0,0]
[null,null,null,null,null,null,null,null,0,null,null,null,null,null,null,null,null,null,0,0]
[null,null,null,null,null,null,null,null,0,null,null,null,null,null,null,null,null,null,0,0]
[null,null,null,null,null,null,null,null,0,null,null,null,null,null,null,null,null,null,0,0]
[null,null,null,null,null,null,null,null,0,null,null,null,null,null,null,null,null,null,0,0]
[null,null,null,null,null,null,null,null,0,null,null,null,null,null,null,null,null,null,0,0]
[null,null,null,null,null,null,null,null,0,null,null,null,null,null,null,null,null,null,0,0]
[null,null,null,null,null,null,null,null,0,null,null,null,null,null,null,null,null,null,0,0]
[null,null,null,null,null,null,null,null,0,null,null,null,null,null,null,null,null,null,0,0]
[null,null,null,null,null,null,null,null,0,null,null,null,null,null,null,null,null,null,0,0]
[null,null,null,null,null,null,null,null,0,null,null,null,null,null,null,null,null,null,0,0]
[null,null,null,null,null,null,null,null,0,null,null,null,null,null,null,null,null,null,0,0]
[null,null,null,null,null,null,null,null,0,null,null,null,null,null,null,null,null,null,{"$f":"I1482-SUM(J1482:R1482)","v":0},0]
[null,null,null,null,null,null,null,null,0,null,null,null,null,null,null,null,null,null,0,0]
[null,null,null,null,null,null,null,null,0,null,null,null,null,null,null,null,null,null,0,0]
[null,null,null,null,null,null,null,null,0,null,null,null,null,null,null,null,null,null,0,0]
[null,null,null,null,null,null,null,null,0,null,null,null,null,null,null,null,null,null,0,0]
[null,null,null,null,null,null,null,null,0,null,null,null,null,null,null,null,null,null,0,0]
[null,null,null,null,null,null,null,null,0,null,null,null,null,null,null,null,null,null,0,0]
[null,null,null,null,null,null,null,null,0,null,null,null,null,null,null,null,null,null,0,0]
[null,null,null,null,null,null,null,null,0,null,null,null,null,null,null,null,null,null,0,0]
[null,null,null,null,null,null,null,null,{"$f":"SUM(F1491:H1491)","v":0},null,null,null,null,null,null,null,null,null,0,0]
[null,null,null,null,null,null,null,null,0,null,null,null,null,null,null,null,null,null,0,0]
[null,null,null,null,null,null,null,null,0,null,null,null,null,null,null,null,null,null,0,0]
[null,null,null,null,null,null,null,null,0,null,null,null,null,null,null,null,null,null,0,0]
[null,null,null,null,null,null,null,null,0,null,null,null,null,null,null,null,null,null,0,0]
[null,null,null,null,null,null,null,null,0,null,null,null,null,null,null,null,null,null,0,0]
[null,null,null,null,null,null,null,null,0,null,null,null,null,null,null,null,null,null,0,0]
[null,null,null,null,null,null,null,null,0,null,null,null,null,null,null,null,null,null,0,0]
[null,null,null,null,null,null,null,null,0,null,null,null,null,null,null,null,null,null,0,0]
[null,null,null,null,null,null,null,null,0,null,null,null,null,null,null,null,null,null,0,0]
[null,null,null,null,null,null,null,null,0,null,null,null,null,null,null,null,null,null,0,0]
[null,null,null,null,null,null,null,null,0,null,null,null,null,null,null,null,null,null,0,0]
[null,null,null,null,null,null,null,null,0,null,null,null,null,null,null,null,null,null,0,0]
[null,null,null,null,null,null,null,null,0,null,null,null,null,null,null,null,null,null,0,0]
[null,null,null,null,null,null,null,null,0,null,null,null,null,null,null,null,null,null,0,0]
[null,null,null,null,null,null,null,null,0,null,null,null,null,null,null,null,null,null,0,0]
[null,null,null,null,null,null,null,null,0,null,null,null,null,null,null,null,null,null,0,0]
[null,null,null,null,null,null,null,null,0,null,null,null,null,null,null,null,null,null,0,0]
[null,null,null,null,null,null,null,null,0,null,null,null,null,null,null,null,null,null,0,0]
[null,null,null,null,null,null,null,null,0,null,null,null,null,null,null,null,null,null,0,0]
[null,null,null,null,null,null,null,null,0,null,null,null,null,null,null,null,null,null,0,0]
[null,null,null,null,null,null,null,null,0,null,null,null,null,null,null,null,null,null,0,0]
[null,null,null,null,null,null,null,null,0,null,null,null,null,null,null,null,null,null,0,0]
[null,null,null,null,null,null,null,null,0,null,null,null,null,null,null,null,null,null,0,0]
[null,null,null,null,null,null,null,null,0,null,null,null,null,null,null,null,null,null,0,0]
[null,null,null,null,null,null,null,null,0,null,null,null,null,null,null,null,null,null,0,0]
[null,null,null,null,null,null,null,null,0,null,null,null,null,null,null,null,null,null,0,0]
[null,null,null,null,null,null,null,null,0,null,null,null,null,null,null,null,null,null,0,0]
[null,null,null,null,null,null,null,null,0,null,null,null,null,null,null,null,null,null,0,0]
[null,null,null,null,null,null,null,null,0,null,null,null,null,null,null,null,null,null,0,0]
[null,null,null,null,null,null,null,null,0,null,null,null,null,null,null,null,null,null,0,0]
[null,null,null,null,null,null,null,null,0,null,null,null,null,null,null,null,null,null,0,{"$f":"SUM(J1522:S1522)","v":0}]
[null,null,null,null,null,null,null,null,0,null,null,null,null,null,null,null,null,null,0,0]
[null,null,null,null,null,null,null,null,0,null,null,null,null,null,null,null,null,null,0,0]
[null,null,null,null,null,null,null,null,0,null,null,null,null,null,null,null,null,null,0,0]
[null,null,null,null,null,null,null,null,0,null,null,null,null,null,null,null,null,null,0,0]
[null,null,null,null,null,null,null,null,0,null,null,null,null,null,null,null,null,null,0,0]
[null,null,null,null,null,null,null,null,0,null,null,null,null,null,null,null,null,null,0,0]
[null,null,null,null,null,null,null,null,0,null,null,null,null,null,null,null,null,null,0,0]
[null,null,null,null,null,null,null,null,0,null,null,null,null,null,null,null,null,null,0,0]
[null,null,null,null,null,null,null,null,0,null,null,null,null,null,null,null,null,null,0,0]
[null,null,null,null,null,null,null,null,0,null,null,null,null,null,null,null,null,null,0,0]
[null,null,null,null,null,null,null,null,0,null,null,null,null,null,null,null,null,null,0,0]
[null,null,null,null,null,null,null,null,0,null,null,null,null,null,null,null,null,null,0,0]
[null,null,null,null,null,null,null,null,0,null,null,null,null,null,null,null,null,null,0,0]
[null,null,null,null,null,null,null,null,0,null,null,null,null,null,null,null,null,null,0,0]
[null,null,null,null,null,null,null,null,0,null,null,null,null,null,null,null,null,null,0,0]
[null,null,null,null,null,null,null,null,0,null,null,null,null,null,null,null,null,null,0,0]
[null,null,null,null,null,null,null,null,0,null,null,null,null,null,null,null,null,null,0,0]
[null,null,null,null,null,null,null,null,0,null,null,null,null,null,null,null,null,null,0,0]
[null,null,null,null,null,null,null,null,0,null,null,null,null,null,null,null,null,null,0,0]
[null,null,null,null,null,null,null,null,0,null,null,null,null,null,null,null,null,null,0,0]
[null,null,null,null,null,null,null,null,0,null,null,null,null,null,null,null,null,null,0,0]
[null,null,null,null,null,null,null,null,0,null,null,null,null,null,null,null,null,null,0,0]
[null,null,null,null,null,null,null,null,0,null,null,null,null,null,null,null,null,null,0,0]
[null,null,null,null,null,null,null,null,0,null,null,null,null,null,null,null,null,null,{"$f":"I1546-SUM(J1546:R1546)","v":0},0]
[null,null,null,null,null,null,null,null,0,null,null,null,null,null,null,null,null,null,0,0]
[null,null,null,null,null,null,null,null,0,null,null,null,null,null,null,null,null,null,0,0]
[null,null,null,null,null,null,null,null,0,null,null,null,null,null,null,null,null,null,0,0]
[null,null,null,null,null,null,null,null,0,null,null,null,null,null,null,null,null,null,0,0]
[null,null,null,null,null,null,null,null,0,null,null,null,null,null,null,null,null,null,0,0]
[null,null,null,null,null,null,null,null,0,null,null,null,null,null,null,null,null,null,0,0]
[null,null,null,null,null,null,null,null,0,null,null,null,null,null,null,null,null,null,0,0]
[null,null,null,null,null,null,null,null,0,null,null,null,null,null,null,null,null,null,0,0]
[null,null,null,null,null,null,null,null,{"$f":"SUM(F1555:H1555)","v":0},null,null,null,null,null,null,null,null,null,0,0]
[null,null,null,null,null,null,null,null,0,null,null,null,null,null,null,null,null,null,0,0]
[null,null,null,null,null,null,null,null,0,null,null,null,null,null,null,null,null,null,0,0]
[null,null,null,null,null,null,null,null,0,null,null,null,null,null,null,null,null,null,0,0]
[null,null,null,null,null,null,null,null,0,null,null,null,null,null,null,null,null,null,0,0]
[null,null,null,null,null,null,null,null,0,null,null,null,null,null,null,null,null,null,0,0]
[null,null,null,null,null,null,null,null,0,null,null,null,null,null,null,null,null,null,0,0]
[null,null,null,null,null,null,null,null,0,null,null,null,null,null,null,null,null,null,0,0]
[null,null,null,null,null,null,null,null,0,null,null,null,null,null,null,null,null,null,0,0]
[null,null,null,null,null,null,null,null,0,null,null,null,null,null,null,null,null,null,0,0]
[null,null,null,null,null,null,null,null,0,null,null,null,null,null,null,null,null,null,0,0]
[null,null,null,null,null,null,null,null,0,null,null,null,null,null,null,null,null,null,0,0]
[null,null,null,null,null,null,null,null,0,null,null,null,null,null,null,null,null,null,0,0]
[null,null,null,null,null,null,null,null,0,null,null,null,null,null,null,null,null,null,0,0]
[null,null,null,null,null,null,null,null,0,null,null,null,null,null,null,null,null,null,0,0]
[null,null,null,null,null,null,null,null,0,null,null,null,null,null,null,null,null,null,0,0]
[null,null,null,null,null,null,null,null,0,null,null,null,null,null,null,null,null,null,0,0]
[null,null,null,null,null,null,null,null,0,null,null,null,null,null,null,null,null,null,0,0]
[null,null,null,null,null,null,null,null,0,null,null,null,null,null,null,null,null,null,0,0]
[null,null,null,null,null,null,null,null,0,null,null,null,null,null,null,null,null,null,0,0]
[null,null,null,null,null,null,null,null,0,null,null,null,null,null,null,null,null,null,0,0]
[null,null,null,null,null,null,null,null,0,null,null,null,null,null,null,null,null,null,0,0]
[null,null,null,null,null,null,null,null,0,null,null,null,null,null,null,null,null,null,0,0]
[null,null,null,null,null,null,null,null,0,null,null,null,null,null,null,null,null,null,0,0]
[null,null,null,null,null,null,null,null,0,null,null,null,null,null,null,null,null,null,0,0]
[null,null,null,null,null,null,null,null,0,null,null,null,null,null,null,null,null,null,0,0]
[null,null,null,null,null,null,null,null,0,null,null,null,null,null,null,null,null,null,0,0]
[null,null,null,null,null,null,null,null,0,null,null,null,null,null,null,null,null,null,0,0]
[null,null,null,null,null,null,null,null,0,null,null,null,null,null,null,null,null,null,0,0]
[null,null,null,null,null,null,null,null,0,null,null,null,null,null,null,null,null,null,0,0]
[null,null,null,null,null,null,null,null,0,null,null,null,null,null,null,null,null,null,0,0]
[null,null,null,null,null,null,null,null,0,null,null,null,null,null,null,null,null,null,0,{"$f":"SUM(J1586:S1586)","v":0}]
[null,null,null,null,null,null,null,null,0,null,null,null,null,null,null,null,null,null,0,0]
[null,null,null,null,null,null,null,null,0,null,null,null,null,null,null,null,null,null,0,0]
[null,null,null,null,null,null,null,null,0,null,null,null,null,null,null,null,null,null,0,0]
[null,null,null,null,null,null,null,null,0,null,null,null,null,null,null,null,null,null,0,0]
[null,null,null,null,null,null,null,null,0,null,null,null,null,null,null,null,null,null,0,0]
[null,null,null,null,null,null,null,null,0,null,null,null,null,null,null,null,null,null,0,0]
[null,null,null,null,null,null,null,null,0,null,null,null,null,null,null,null,null,null,0,0]
[null,null,null,null,null,null,null,null,0,null,null,null,null,null,null,null,null,null,0,0]
[null,null,null,null,null,null,null,null,0,null,null,null,null,null,null,null,null,null,0,0]
[null,null,null,null,null,null,null,null,0,null,null,null,null,null,null,null,null,null,0,0]
[null,null,null,null,null,null,null,null,0,null,null,null,null,null,null,null,null,null,0,0]
[null,null,null,null,null,null,null,null,0,null,null,null,null,null,null,null,null,null,0,0]
[null,null,null,null,null,null,null,null,0,null,null,null,null,null,null,null,null,null,0,0]
[null,null,null,null,null,null,null,null,0,null,null,null,null,null,null,null,null,null,0,0]
[null,null,null,null,null,null,null,null,0,null,null,null,null,null,null,null,null,null,0,0]
[null,null,null,null,null,null,null,null,0,null,null,null,null,null,null,null,null,null,0,0]
[null,null,null,null,null,null,null,null,0,null,null,null,null,null,null,null,null,null,0,0]
[null,null,null,null,null,null,null,null,0,null,null,null,null,null,null,null,null,null,0,0]
[null,null,null,null,null,null,null,null,0,null,null,null,null,null,null,null,null,null,0,0]
[null,null,null,null,null,null,null,null,0,null,null,null,null,null,null,null,null,null,0,0]
[null,null,null,null,null,null,null,null,0,null,null,null,null,null,null,null,null,null,0,0]
[null,null,null,null,null,null,null,null,0,null,null,null,null,null,null,null,null,null,0,0]
[null,null,null,null,null,null,null,null,0,null,null,null,null,null,null,null,null,null,0,0]
[null,null,null,null,null,null,null,null,0,null,null,null,null,null,null,null,null,null,{"$f":"I1610-SUM(J1610:R1610)","v":0},0]
[null,null,null,null,null,null,null,null,0,null,null,null,null,null,null,null,null,null,0,0]
[null,null,null,null,null,null,null,null,0,null,null,null,null,null,null,null,null,null,0,0]
[null,null,null,null,null,null,null,null,0,null,null,null,null,null,null,null,null,null,0,0]
[null,null,null,null,null,null,null,null,0,null,null,null,null,null,null,null,null,null,0,0]
[null,null,null,null,null,null,null,null,0,null,null,null,null,null,null,null,null,null,0,0]
[null,null,null,null,null,null,null,null,0,null,null,null,null,null,null,null,null,null,0,0]
[null,null,null,null,null,null,null,null,0,null,null,null,null,null,null,null,null,null,0,0]
[null,null,null,null,null,null,null,null,0,null,null,null,null,null,null,null,null,null,0,0]
[null,null,null,null,null,null,null,null,{"$f":"SUM(F1619:H1619)","v":0},null,null,null,null,null,null,null,null,null,0,0]
[null,null,null,null,null,null,null,null,0,null,null,null,null,null,null,null,null,null,0,0]
[null,null,null,null,null,null,null,null,0,null,null,null,null,null,null,null,null,null,0,0]
[null,null,null,null,null,null,null,null,0,null,null,null,null,null,null,null,null,null,0,0]
[null,null,null,null,null,null,null,null,0,null,null,null,null,null,null,null,null,null,0,0]
[null,null,null,null,null,null,null,null,0,null,null,null,null,null,null,null,null,null,0,0]
[null,null,null,null,null,null,null,null,0,null,null,null,null,null,null,null,null,null,0,0]
[null,null,null,null,null,null,null,null,0,null,null,null,null,null,null,null,null,null,0,0]
[null,null,null,null,null,null,null,null,0,null,null,null,null,null,null,null,null,null,0,0]
[null,null,null,null,null,null,null,null,0,null,null,null,null,null,null,null,null,null,0,0]
[null,null,null,null,null,null,null,null,0,null,null,null,null,null,null,null,null,null,0,0]
[null,null,null,null,null,null,null,null,0,null,null,null,null,null,null,null,null,null,0,0]
[null,null,null,null,null,null,null,null,0,null,null,null,null,null,null,null,null,null,0,0]
[null,null,null,null,null,null,null,null,0,null,null,null,null,null,null,null,null,null,0,0]
[null,null,null,null,null,null,null,null,0,null,null,null,null,null,null,null,null,null,0,0]
[null,null,null,null,null,null,null,null,0,null,null,null,null,null,null,null,null,null,0,0]
[null,null,null,null,null,null,null,null,0,null,null,null,null,null,null,null,null,null,0,0]
[null,null,null,null,null,null,null,null,0,null,null,null,null,null,null,null,null,null,0,0]
[null,null,null,null,null,null,null,null,0,null,null,null,null,null,null,null,null,null,0,0]
[null,null,null,null,null,null,null,null,0,null,null,null,null,null,null,null,null,null,0,0]
[null,null,null,null,null,null,null,null,0,null,null,null,null,null,null,null,null,null,0,0]
[null,null,null,null,null,null,null,null,0,null,null,null,null,null,null,null,null,null,0,0]
[null,null,null,null,null,null,null,null,0,null,null,null,null,null,null,null,null,null,0,0]
[null,null,null,null,null,null,null,null,0,null,null,null,null,null,null,null,null,null,0,0]
[null,null,null,null,null,null,null,null,0,null,null,null,null,null,null,null,null,null,0,0]
[null,null,null,null,null,null,null,null,0,null,null,null,null,null,null,null,null,null,0,0]
[null,null,null,null,null,null,null,null,0,null,null,null,null,null,null,null,null,null,0,0]
[null,null,null,null,null,null,null,null,0,null,null,null,null,null,null,null,null,null,0,0]
[null,null,null,null,null,null,null,null,0,null,null,null,null,null,null,null,null,null,0,0]
[null,null,null,null,null,null,null,null,0,null,null,null,null,null,null,null,null,null,0,0]
[null,null,null,null,null,null,null,null,0,null,null,null,null,null,null,null,null,null,0,0]
[null,null,null,null,null,null,null,null,0,null,null,null,null,null,null,null,null,null,0,{"$f":"SUM(J1650:S1650)","v":0}]
[null,null,null,null,null,null,null,null,0,null,null,null,null,null,null,null,null,null,0,0]
[null,null,null,null,null,null,null,null,0,null,null,null,null,null,null,null,null,null,0,0]
[null,null,null,null,null,null,null,null,0,null,null,null,null,null,null,null,null,null,0,0]
[null,null,null,null,null,null,null,null,0,null,null,null,null,null,null,null,null,null,0,0]
[null,null,null,null,null,null,null,null,0,null,null,null,null,null,null,null,null,null,0,0]
[null,null,null,null,null,null,null,null,0,null,null,null,null,null,null,null,null,null,0,0]
[null,null,null,null,null,null,null,null,0,null,null,null,null,null,null,null,null,null,0,0]
[null,null,null,null,null,null,null,null,0,null,null,null,null,null,null,null,null,null,0,0]
[null,null,null,null,null,null,null,null,0,null,null,null,null,null,null,null,null,null,0,0]
[null,null,null,null,null,null,null,null,0,null,null,null,null,null,null,null,null,null,0,0]
[null,null,null,null,null,null,null,null,0,null,null,null,null,null,null,null,null,null,0,0]
[null,null,null,null,null,null,null,null,0,null,null,null,null,null,null,null,null,null,0,0]
[null,null,null,null,null,null,null,null,0,null,null,null,null,null,null,null,null,null,0,0]
[null,null,null,null,null,null,null,null,0,null,null,null,null,null,null,null,null,null,0,0]
[null,null,null,null,null,null,null,null,0,null,null,null,null,null,null,null,null,null,0,0]
[null,null,null,null,null,null,null,null,0,null,null,null,null,null,null,null,null,null,0,0]
[null,null,null,null,null,null,null,null,0,null,null,null,null,null,null,null,null,null,0,0]
[null,null,null,null,null,null,null,null,0,null,null,null,null,null,null,null,null,null,0,0]
[null,null,null,null,null,null,null,null,0,null,null,null,null,null,null,null,null,null,0,0]
[null,null,null,null,null,null,null,null,0,null,null,null,null,null,null,null,null,null,0,0]
[null,null,null,null,null,null,null,null,0,null,null,null,null,null,null,null,null,null,0,0]
[null,null,null,null,null,null,null,null,0,null,null,null,null,null,null,null,null,null,0,0]
[null,null,null,null,null,null,null,null,0,null,null,null,null,null,null,null,null,null,0,0]
[null,null,null,null,null,null,null,null,0,null,null,null,null,null,null,null,null,null,{"$f":"I1674-SUM(J1674:R1674)","v":0},0]
[null,null,null,null,null,null,null,null,0,null,null,null,null,null,null,null,null,null,0,0]
[null,null,null,null,null,null,null,null,0,null,null,null,null,null,null,null,null,null,0,0]
[null,null,null,null,null,null,null,null,0,null,null,null,null,null,null,null,null,null,0,0]
[null,null,null,null,null,null,null,null,0,null,null,null,null,null,null,null,null,null,0,0]
[null,null,null,null,null,null,null,null,0,null,null,null,null,null,null,null,null,null,0,0]
[null,null,null,null,null,null,null,null,0,null,null,null,null,null,null,null,null,null,0,0]
[null,null,null,null,null,null,null,null,0,null,null,null,null,null,null,null,null,null,0,0]
[null,null,null,null,null,null,null,null,0,null,null,null,null,null,null,null,null,null,0,0]
[null,null,null,null,null,null,null,null,{"$f":"SUM(F1683:H1683)","v":0},null,null,null,null,null,null,null,null,null,0,0]
[null,null,null,null,null,null,null,null,0,null,null,null,null,null,null,null,null,null,0,0]
[null,null,null,null,null,null,null,null,0,null,null,null,null,null,null,null,null,null,0,0]
[null,null,null,null,null,null,null,null,0,null,null,null,null,null,null,null,null,null,0,0]
[null,null,null,null,null,null,null,null,0,null,null,null,null,null,null,null,null,null,0,0]
[null,null,null,null,null,null,null,null,0,null,null,null,null,null,null,null,null,null,0,0]
[null,null,null,null,null,null,null,null,0,null,null,null,null,null,null,null,null,null,0,0]
[null,null,null,null,null,null,null,null,0,null,null,null,null,null,null,null,null,null,0,0]
[null,null,null,null,null,null,null,null,0,null,null,null,null,null,null,null,null,null,0,0]
[null,null,null,null,null,null,null,null,0,null,null,null,null,null,null,null,null,null,0,0]
[null,null,null,null,null,null,null,null,0,null,null,null,null,null,null,null,null,null,0,0]
[null,null,null,null,null,null,null,null,0,null,null,null,null,null,null,null,null,null,0,0]
[null,null,null,null,null,null,null,null,0,null,null,null,null,null,null,null,null,null,0,0]
[null,null,null,null,null,null,null,null,0,null,null,null,null,null,null,null,null,null,0,0]
[null,null,null,null,null,null,null,null,0,null,null,null,null,null,null,null,null,null,0,0]
[null,null,null,null,null,null,null,null,0,null,null,null,null,null,null,null,null,null,0,0]
[null,null,null,null,null,null,null,null,0,null,null,null,null,null,null,null,null,null,0,0]
[null,null,null,null,null,null,null,null,0,null,null,null,null,null,null,null,null,null,0,0]
[null,null,null,null,null,null,null,null,0,null,null,null,null,null,null,null,null,null,0,0]
[null,null,null,null,null,null,null,null,0,null,null,null,null,null,null,null,null,null,0,0]
[null,null,null,null,null,null,null,null,0,null,null,null,null,null,null,null,null,null,0,0]
[null,null,null,null,null,null,null,null,0,null,null,null,null,null,null,null,null,null,0,0]
[null,null,null,null,null,null,null,null,0,null,null,null,null,null,null,null,null,null,0,0]
[null,null,null,null,null,null,null,null,0,null,null,null,null,null,null,null,null,null,0,0]
[null,null,null,null,null,null,null,null,0,null,null,null,null,null,null,null,null,null,0,0]
[null,null,null,null,null,null,null,null,0,null,null,null,null,null,null,null,null,null,0,0]
[null,null,null,null,null,null,null,null,0,null,null,null,null,null,null,null,null,null,0,0]
[null,null,null,null,null,null,null,null,0,null,null,null,null,null,null,null,null,null,0,0]
[null,null,null,null,null,null,null,null,0,null,null,null,null,null,null,null,null,null,0,0]
[null,null,null,null,null,null,null,null,0,null,null,null,null,null,null,null,null,null,0,0]
[null,null,null,null,null,null,null,null,0,null,null,null,null,null,null,null,null,null,0,0]
[null,null,null,null,null,null,null,null,0,null,null,null,null,null,null,null,null,null,0,{"$f":"SUM(J1714:S1714)","v":0}]
[null,null,null,null,null,null,null,null,0,null,null,null,null,null,null,null,null,null,0,0]
[null,null,null,null,null,null,null,null,0,null,null,null,null,null,null,null,null,null,0,0]
[null,null,null,null,null,null,null,null,0,null,null,null,null,null,null,null,null,null,0,0]
[null,null,null,null,null,null,null,null,0,null,null,null,null,null,null,null,null,null,0,0]
[null,null,null,null,null,null,null,null,0,null,null,null,null,null,null,null,null,null,0,0]
[null,null,null,null,null,null,null,null,0,null,null,null,null,null,null,null,null,null,0,0]
[null,null,null,null,null,null,null,null,0,null,null,null,null,null,null,null,null,null,0,0]
[null,null,null,null,null,null,null,null,0,null,null,null,null,null,null,null,null,null,0,0]
[null,null,null,null,null,null,null,null,0,null,null,null,null,null,null,null,null,null,0,0]
[null,null,null,null,null,null,null,null,0,null,null,null,null,null,null,null,null,null,0,0]
[null,null,null,null,null,null,null,null,0,null,null,null,null,null,null,null,null,null,0,0]
[null,null,null,null,null,null,null,null,0,null,null,null,null,null,null,null,null,null,0,0]
[null,null,null,null,null,null,null,null,0,null,null,null,null,null,null,null,null,null,0,0]
[null,null,null,null,null,null,null,null,0,null,null,null,null,null,null,null,null,null,0,0]
[null,null,null,null,null,null,null,null,0,null,null,null,null,null,null,null,null,null,0,0]
[null,null,null,null,null,null,null,null,0,null,null,null,null,null,null,null,null,null,0,0]
[null,null,null,null,null,null,null,null,0,null,null,null,null,null,null,null,null,null,0,0]
[null,null,null,null,null,null,null,null,0,null,null,null,null,null,null,null,null,null,0,0]
[null,null,null,null,null,null,null,null,0,null,null,null,null,null,null,null,null,null,0,0]
[null,null,null,null,null,null,null,null,0,null,null,null,null,null,null,null,null,null,0,0]
[null,null,null,null,null,null,null,null,0,null,null,null,null,null,null,null,null,null,0,0]
[null,null,null,null,null,null,null,null,0,null,null,null,null,null,null,null,null,null,0,0]
[null,null,null,null,null,null,null,null,0,null,null,null,null,null,null,null,null,null,0,0]
[null,null,null,null,null,null,null,null,0,null,null,null,null,null,null,null,null,null,{"$f":"I1738-SUM(J1738:R1738)","v":0},0]
[null,null,null,null,null,null,null,null,0,null,null,null,null,null,null,null,null,null,0,0]
[null,null,null,null,null,null,null,null,0,null,null,null,null,null,null,null,null,null,0,0]
[null,null,null,null,null,null,null,null,0,null,null,null,null,null,null,null,null,null,0,0]
[null,null,null,null,null,null,null,null,0,null,null,null,null,null,null,null,null,null,0,0]
[null,null,null,null,null,null,null,null,0,null,null,null,null,null,null,null,null,null,0,0]
[null,null,null,null,null,null,null,null,0,null,null,null,null,null,null,null,null,null,0,0]
[null,null,null,null,null,null,null,null,0,null,null,null,null,null,null,null,null,null,0,0]
[null,null,null,null,null,null,null,null,0,null,null,null,null,null,null,null,null,null,0,0]
[null,null,null,null,null,null,null,null,{"$f":"SUM(F1747:H1747)","v":0},null,null,null,null,null,null,null,null,null,0,0]
[null,null,null,null,null,null,null,null,0,null,null,null,null,null,null,null,null,null,0,0]
[null,null,null,null,null,null,null,null,0,null,null,null,null,null,null,null,null,null,0,0]
[null,null,null,null,null,null,null,null,0,null,null,null,null,null,null,null,null,null,0,0]
[null,null,null,null,null,null,null,null,0,null,null,null,null,null,null,null,null,null,0,0]
[null,null,null,null,null,null,null,null,0,null,null,null,null,null,null,null,null,null,0,0]
[null,null,null,null,null,null,null,null,0,null,null,null,null,null,null,null,null,null,0,0]
[null,null,null,null,null,null,null,null,0,null,null,null,null,null,null,null,null,null,0,0]
[null,null,null,null,null,null,null,null,0,null,null,null,null,null,null,null,null,null,0,0]
[null,null,null,null,null,null,null,null,0,null,null,null,null,null,null,null,null,null,0,0]
[null,null,null,null,null,null,null,null,0,null,null,null,null,null,null,null,null,null,0,0]
[null,null,null,null,null,null,null,null,0,null,null,null,null,null,null,null,null,null,0,0]
[null,null,null,null,null,null,null,null,0,null,null,null,null,null,null,null,null,null,0,0]
[null,null,null,null,null,null,null,null,0,null,null,null,null,null,null,null,null,null,0,0]
[null,null,null,null,null,null,null,null,0,null,null,null,null,null,null,null,null,null,0,0]
[null,null,null,null,null,null,null,null,0,null,null,null,null,null,null,null,null,null,0,0]
[null,null,null,null,null,null,null,null,0,null,null,null,null,null,null,null,null,null,0,0]
[null,null,null,null,null,null,null,null,0,null,null,null,null,null,null,null,null,null,0,0]
[null,null,null,null,null,null,null,null,0,null,null,null,null,null,null,null,null,null,0,0]
[null,null,null,null,null,null,null,null,0,null,null,null,null,null,null,null,null,null,0,0]
[null,null,null,null,null,null,null,null,0,null,null,null,null,null,null,null,null,null,0,0]
[null,null,null,null,null,null,null,null,0,null,null,null,null,null,null,null,null,null,0,0]
[null,null,null,null,null,null,null,null,0,null,null,null,null,null,null,null,null,null,0,0]
[null,null,null,null,null,null,null,null,0,null,null,null,null,null,null,null,null,null,0,0]
[null,null,null,null,null,null,null,null,0,null,null,null,null,null,null,null,null,null,0,0]
[null,null,null,null,null,null,null,null,0,null,null,null,null,null,null,null,null,null,0,0]
[null,null,null,null,null,null,null,null,0,null,null,null,null,null,null,null,null,null,0,0]
[null,null,null,null,null,null,null,null,0,null,null,null,null,null,null,null,null,null,0,0]
[null,null,null,null,null,null,null,null,0,null,null,null,null,null,null,null,null,null,0,0]
[null,null,null,null,null,null,null,null,0,null,null,null,null,null,null,null,null,null,0,0]
[null,null,null,null,null,null,null,null,0,null,null,null,null,null,null,null,null,null,0,0]
[null,null,null,null,null,null,null,null,0,null,null,null,null,null,null,null,null,null,0,{"$f":"SUM(J1778:S1778)","v":0}]
[null,null,null,null,null,null,null,null,0,null,null,null,null,null,null,null,null,null,0,0]
[null,null,null,null,null,null,null,null,0,null,null,null,null,null,null,null,null,null,0,0]
[null,null,null,null,null,null,null,null,0,null,null,null,null,null,null,null,null,null,0,0]
[null,null,null,null,null,null,null,null,0,null,null,null,null,null,null,null,null,null,0,0]
[null,null,null,null,null,null,null,null,0,null,null,null,null,null,null,null,null,null,0,0]
[null,null,null,null,null,null,null,null,0,null,null,null,null,null,null,null,null,null,0,0]
[null,null,null,null,null,null,null,null,0,null,null,null,null,null,null,null,null,null,0,0]
[null,null,null,null,null,null,null,null,0,null,null,null,null,null,null,null,null,null,0,0]
[null,null,null,null,null,null,null,null,0,null,null,null,null,null,null,null,null,null,0,0]
[null,null,null,null,null,null,null,null,0,null,null,null,null,null,null,null,null,null,0,0]
[null,null,null,null,null,null,null,null,0,null,null,null,null,null,null,null,null,null,0,0]
[null,null,null,null,null,null,null,null,0,null,null,null,null,null,null,null,null,null,0,0]
[null,null,null,null,null,null,null,null,0,null,null,null,null,null,null,null,null,null,0,0]
[null,null,null,null,null,null,null,null,0,null,null,null,null,null,null,null,null,null,0,0]
[null,null,null,null,null,null,null,null,0,null,null,null,null,null,null,null,null,null,0,0]
[null,null,null,null,null,null,null,null,0,null,null,null,null,null,null,null,null,null,0,0]
[null,null,null,null,null,null,null,null,0,null,null,null,null,null,null,null,null,null,0,0]
[null,null,null,null,null,null,null,null,0,null,null,null,null,null,null,null,null,null,0,0]
[null,null,null,null,null,null,null,null,0,null,null,null,null,null,null,null,null,null,0,0]
[null,null,null,null,null,null,null,null,0,null,null,null,null,null,null,null,null,null,0,0]
[null,null,null,null,null,null,null,null,0,null,null,null,null,null,null,null,null,null,0,0]
[null,null,null,null,null,null,null,null,0,null,null,null,null,null,null,null,null,null,0,0]
[null,null,null,null,null,null,null,null,0,null,null,null,null,null,null,null,null,null,0,0]
[null,null,null,null,null,null,null,null,0,null,null,null,null,null,null,null,null,null,{"$f":"I1802-SUM(J1802:R1802)","v":0},0]
[null,null,null,null,null,null,null,null,0,null,null,null,null,null,null,null,null,null,0,0]
[null,null,null,null,null,null,null,null,0,null,null,null,null,null,null,null,null,null,0,0]
[null,null,null,null,null,null,null,null,0,null,null,null,null,null,null,null,null,null,0,0]
[null,null,null,null,null,null,null,null,0,null,null,null,null,null,null,null,null,null,0,0]
[null,null,null,null,null,null,null,null,0,null,null,null,null,null,null,null,null,null,0,0]
[null,null,null,null,null,null,null,null,0,null,null,null,null,null,null,null,null,null,0,0]
[null,null,null,null,null,null,null,null,0,null,null,null,null,null,null,null,null,null,0,0]
[null,null,null,null,null,null,null,null,0,null,null,null,null,null,null,null,null,null,0,0]
[null,null,null,null,null,null,null,null,{"$f":"SUM(F1811:H1811)","v":0},null,null,null,null,null,null,null,null,null,0,0]
[null,null,null,null,null,null,null,null,0,null,null,null,null,null,null,null,null,null,0,0]
[null,null,null,null,null,null,null,null,0,null,null,null,null,null,null,null,null,null,0,0]
[null,null,null,null,null,null,null,null,0,null,null,null,null,null,null,null,null,null,0,0]
[null,null,null,null,null,null,null,null,0,null,null,null,null,null,null,null,null,null,0,0]
[null,null,null,null,null,null,null,null,0,null,null,null,null,null,null,null,null,null,0,0]
[null,null,null,null,null,null,null,null,0,null,null,null,null,null,null,null,null,null,0,0]
[null,null,null,null,null,null,null,null,0,null,null,null,null,null,null,null,null,null,0,0]
[null,null,null,null,null,null,null,null,0,null,null,null,null,null,null,null,null,null,0,0]
[null,null,null,null,null,null,null,null,0,null,null,null,null,null,null,null,null,null,0,0]
[null,null,null,null,null,null,null,null,0,null,null,null,null,null,null,null,null,null,0,0]
[null,null,null,null,null,null,null,null,0,null,null,null,null,null,null,null,null,null,0,0]
[null,null,null,null,null,null,null,null,0,null,null,null,null,null,null,null,null,null,0,0]
[null,null,null,null,null,null,null,null,0,null,null,null,null,null,null,null,null,null,0,0]
[null,null,null,null,null,null,null,null,0,null,null,null,null,null,null,null,null,null,0,0]
[null,null,null,null,null,null,null,null,0,null,null,null,null,null,null,null,null,null,0,0]
[null,null,null,null,null,null,null,null,0,null,null,null,null,null,null,null,null,null,0,0]
[null,null,null,null,null,null,null,null,0,null,null,null,null,null,null,null,null,null,0,0]
[null,null,null,null,null,null,null,null,0,null,null,null,null,null,null,null,null,null,0,0]
[null,null,null,null,null,null,null,null,0,null,null,null,null,null,null,null,null,null,0,0]
[null,null,null,null,null,null,null,null,0,null,null,null,null,null,null,null,null,null,0,0]
[null,null,null,null,null,null,null,null,0,null,null,null,null,null,null,null,null,null,0,0]
[null,null,null,null,null,null,null,null,0,null,null,null,null,null,null,null,null,null,0,0]
[null,null,null,null,null,null,null,null,0,null,null,null,null,null,null,null,null,null,0,0]
[null,null,null,null,null,null,null,null,0,null,null,null,null,null,null,null,null,null,0,0]
[null,null,null,null,null,null,null,null,0,null,null,null,null,null,null,null,null,null,0,0]
[null,null,null,null,null,null,null,null,0,null,null,null,null,null,null,null,null,null,0,0]
[null,null,null,null,null,null,null,null,0,null,null,null,null,null,null,null,null,null,0,0]
[null,null,null,null,null,null,null,null,0,null,null,null,null,null,null,null,null,null,0,0]
[null,null,null,null,null,null,null,null,0,null,null,null,null,null,null,null,null,null,0,0]
[null,null,null,null,null,null,null,null,0,null,null,null,null,null,null,null,null,null,0,0]
[null,null,null,null,null,null,null,null,0,null,null,null,null,null,null,null,null,null,0,{"$f":"SUM(J1842:S1842)","v":0}]
[null,null,null,null,null,null,null,null,0,null,null,null,null,null,null,null,null,null,0,0]
[null,null,null,null,null,null,null,null,0,null,null,null,null,null,null,null,null,null,0,0]
[null,null,null,null,null,null,null,null,0,null,null,null,null,null,null,null,null,null,0,0]
[null,null,null,null,null,null,null,null,0,null,null,null,null,null,null,null,null,null,0,0]
[null,null,null,null,null,null,null,null,0,null,null,null,null,null,null,null,null,null,0,0]
[null,null,null,null,null,null,null,null,0,null,null,null,null,null,null,null,null,null,0,0]
[null,null,null,null,null,null,null,null,0,null,null,null,null,null,null,null,null,null,0,0]
[null,null,null,null,null,null,null,null,0,null,null,null,null,null,null,null,null,null,0,0]
[null,null,null,null,null,null,null,null,0,null,null,null,null,null,null,null,null,null,0,0]
[null,null,null,null,null,null,null,null,0,null,null,null,null,null,null,null,null,null,0,0]
[null,null,null,null,null,null,null,null,0,null,null,null,null,null,null,null,null,null,0,0]
[null,null,null,null,null,null,null,null,0,null,null,null,null,null,null,null,null,null,0,0]
[null,null,null,null,null,null,null,null,0,null,null,null,null,null,null,null,null,null,0,0]
[null,null,null,null,null,null,null,null,0,null,null,null,null,null,null,null,null,null,0,0]
[null,null,null,null,null,null,null,null,0,null,null,null,null,null,null,null,null,null,0,0]
[null,null,null,null,null,null,null,null,0,null,null,null,null,null,null,null,null,null,0,0]
[null,null,null,null,null,null,null,null,0,null,null,null,null,null,null,null,null,null,0,0]
[null,null,null,null,null,null,null,null,0,null,null,null,null,null,null,null,null,null,0,0]
[null,null,null,null,null,null,null,null,0,null,null,null,null,null,null,null,null,null,0,0]
[null,null,null,null,null,null,null,null,0,null,null,null,null,null,null,null,null,null,0,0]
[null,null,null,null,null,null,null,null,0,null,null,null,null,null,null,null,null,null,0,0]
[null,null,null,null,null,null,null,null,0,null,null,null,null,null,null,null,null,null,0,0]
[null,null,null,null,null,null,null,null,0,null,null,null,null,null,null,null,null,null,0,0]
[null,null,null,null,null,null,null,null,0,null,null,null,null,null,null,null,null,null,{"$f":"I1866-SUM(J1866:R1866)","v":0},0]
[null,null,null,null,null,null,null,null,0,null,null,null,null,null,null,null,null,null,0,0]
[null,null,null,null,null,null,null,null,0,null,null,null,null,null,null,null,null,null,0,0]
[null,null,null,null,null,null,null,null,0,null,null,null,null,null,null,null,null,null,0,0]
[null,null,null,null,null,null,null,null,0,null,null,null,null,null,null,null,null,null,0,0]
[null,null,null,null,null,null,null,null,0,null,null,null,null,null,null,null,null,null,0,0]
[null,null,null,null,null,null,null,null,0,null,null,null,null,null,null,null,null,null,0,0]
[null,null,null,null,null,null,null,null,0,null,null,null,null,null,null,null,null,null,0,0]
[null,null,null,null,null,null,null,null,0,null,null,null,null,null,null,null,null,null,0,0]
[null,null,null,null,null,null,null,null,{"$f":"SUM(F1875:H1875)","v":0},null,null,null,null,null,null,null,null,null,0,0]
[null,null,null,null,null,null,null,null,0,null,null,null,null,null,null,null,null,null,0,0]
[null,null,null,null,null,null,null,null,0,null,null,null,null,null,null,null,null,null,0,0]
[null,null,null,null,null,null,null,null,0,null,null,null,null,null,null,null,null,null,0,0]
[null,null,null,null,null,null,null,null,0,null,null,null,null,null,null,null,null,null,0,0]
[null,null,null,null,null,null,null,null,0,null,null,null,null,null,null,null,null,null,0,0]
[null,null,null,null,null,null,null,null,0,null,null,null,null,null,null,null,null,null,0,0]
[null,null,null,null,null,null,null,null,0,null,null,null,null,null,null,null,null,null,0,0]
[null,null,null,null,null,null,null,null,0,null,null,null,null,null,null,null,null,null,0,0]
[null,null,null,null,null,null,null,null,0,null,null,null,null,null,null,null,null,null,0,0]
[null,null,null,null,null,null,null,null,0,null,null,null,null,null,null,null,null,null,0,0]
[null,null,null,null,null,null,null,null,0,null,null,null,null,null,null,null,null,null,0,0]
[null,null,null,null,null,null,null,null,0,null,null,null,null,null,null,null,null,null,0,0]
[null,null,null,null,null,null,null,null,0,null,null,null,null,null,null,null,null,null,0,0]
[null,null,null,null,null,null,null,null,0,null,null,null,null,null,null,null,null,null,0,0]
[null,null,null,null,null,null,null,null,0,null,null,null,null,null,null,null,null,null,0,0]
[null,null,null,null,null,null,null,null,0,null,null,null,null,null,null,null,null,null,0,0]
[null,null,null,null,null,null,null,null,0,null,null,null,null,null,null,null,null,null,0,0]
[null,null,null,null,null,null,null,null,0,null,null,null,null,null,null,null,null,null,0,0]
[null,null,null,null,null,null,null,null,0,null,null,null,null,null,null,null,null,null,0,0]
[null,null,null,null,null,null,null,null,0,null,null,null,null,null,null,null,null,null,0,0]
[null,null,null,null,null,null,null,null,0,null,null,null,null,null,null,null,null,null,0,0]
[null,null,null,null,null,null,null,null,0,null,null,null,null,null,null,null,null,null,0,0]
[null,null,null,null,null,null,null,null,0,null,null,null,null,null,null,null,null,null,0,0]
[null,null,null,null,null,null,null,null,0,null,null,null,null,null,null,null,null,null,0,0]
[null,null,null,null,null,null,null,null,0,null,null,null,null,null,null,null,null,null,0,0]
[null,null,null,null,null,null,null,null,0,null,null,null,null,null,null,null,null,null,0,0]
[null,null,null,null,null,null,null,null,0,null,null,null,null,null,null,null,null,null,0,0]
[null,null,null,null,null,null,null,null,0,null,null,null,null,null,null,null,null,null,0,0]
[null,null,null,null,null,null,null,null,0,null,null,null,null,null,null,null,null,null,0,0]
[null,null,null,null,null,null,null,null,0,null,null,null,null,null,null,null,null,null,0,0]
[null,null,null,null,null,null,null,null,0,null,null,null,null,null,null,null,null,null,0,{"$f":"SUM(J1906:S1906)","v":0}]
[null,null,null,null,null,null,null,null,0,null,null,null,null,null,null,null,null,null,0,0]
[null,null,null,null,null,null,null,null,0,null,null,null,null,null,null,null,null,null,0,0]
[null,null,null,null,null,null,null,null,0,null,null,null,null,null,null,null,null,null,0,0]
[null,null,null,null,null,null,null,null,0,null,null,null,null,null,null,null,null,null,0,0]
[null,null,null,null,null,null,null,null,0,null,null,null,null,null,null,null,null,null,0,0]
[null,null,null,null,null,null,null,null,0,null,null,null,null,null,null,null,null,null,0,0]
[null,null,null,null,null,null,null,null,0,null,null,null,null,null,null,null,null,null,0,0]
[null,null,null,null,null,null,null,null,0,null,null,null,null,null,null,null,null,null,0,0]
[null,null,null,null,null,null,null,null,0,null,null,null,null,null,null,null,null,null,0,0]
[null,null,null,null,null,null,null,null,0,null,null,null,null,null,null,null,null,null,0,0]
[null,null,null,null,null,null,null,null,0,null,null,null,null,null,null,null,null,null,0,0]
[null,null,null,null,null,null,null,null,0,null,null,null,null,null,null,null,null,null,0,0]
[null,null,null,null,null,null,null,null,0,null,null,null,null,null,null,null,null,null,0,0]
[null,null,null,null,null,null,null,null,0,null,null,null,null,null,null,null,null,null,0,0]
[null,null,null,null,null,null,null,null,0,null,null,null,null,null,null,null,null,null,0,0]
[null,null,null,null,null,null,null,null,0,null,null,null,null,null,null,null,null,null,0,0]
[null,null,null,null,null,null,null,null,0,null,null,null,null,null,null,null,null,null,0,0]
[null,null,null,null,null,null,null,null,0,null,null,null,null,null,null,null,null,null,0,0]
[null,null,null,null,null,null,null,null,0,null,null,null,null,null,null,null,null,null,0,0]
[null,null,null,null,null,null,null,null,0,null,null,null,null,null,null,null,null,null,0,0]
[null,null,null,null,null,null,null,null,0,null,null,null,null,null,null,null,null,null,0,0]
[null,null,null,null,null,null,null,null,0,null,null,null,null,null,null,null,null,null,0,0]
[null,null,null,null,null,null,null,null,0,null,null,null,null,null,null,null,null,null,0,0]
[null,null,null,null,null,null,null,null,0,null,null,null,null,null,null,null,null,null,{"$f":"I1930-SUM(J1930:R1930)","v":0},0]
[null,null,null,null,null,null,null,null,0,null,null,null,null,null,null,null,null,null,0,0]
[null,null,null,null,null,null,null,null,0,null,null,null,null,null,null,null,null,null,0,0]
[null,null,null,null,null,null,null,null,0,null,null,null,null,null,null,null,null,null,0,0]
[null,null,null,null,null,null,null,null,0,null,null,null,null,null,null,null,null,null,0,0]
[null,null,null,null,null,null,null,null,0,null,null,null,null,null,null,null,null,null,0,0]
[null,null,null,null,null,null,null,null,0,null,null,null,null,null,null,null,null,null,0,0]
[null,null,null,null,null,null,null,null,0,null,null,null,null,null,null,null,null,null,0,0]
[null,null,null,null,null,null,null,null,0,null,null,null,null,null,null,null,null,null,0,0]
[null,null,null,null,null,null,null,null,{"$f":"SUM(F1939:H1939)","v":0},null,null,null,null,null,null,null,null,null,0,0]
[null,null,null,null,null,null,null,null,0,null,null,null,null,null,null,null,null,null,0,0]
[null,null,null,null,null,null,null,null,0,null,null,null,null,null,null,null,null,null,0,0]
[null,null,null,null,null,null,null,null,0,null,null,null,null,null,null,null,null,null,0,0]
[null,null,null,null,null,null,null,null,0,null,null,null,null,null,null,null,null,null,0,0]
[null,null,null,null,null,null,null,null,0,null,null,null,null,null,null,null,null,null,0,0]
[null,null,null,null,null,null,null,null,0,null,null,null,null,null,null,null,null,null,0,0]
[null,null,null,null,null,null,null,null,0,null,null,null,null,null,null,null,null,null,0,0]
[null,null,null,null,null,null,null,null,0,null,null,null,null,null,null,null,null,null,0,0]
[null,null,null,null,null,null,null,null,0,null,null,null,null,null,null,null,null,null,0,0]
[null,null,null,null,null,null,null,null,0,null,null,null,null,null,null,null,null,null,0,0]
[null,null,null,null,null,null,null,null,0,null,null,null,null,null,null,null,null,null,0,0]
[null,null,null,null,null,null,null,null,0,null,null,null,null,null,null,null,null,null,0,0]
[null,null,null,null,null,null,null,null,0,null,null,null,null,null,null,null,null,null,0,0]
[null,null,null,null,null,null,null,null,0,null,null,null,null,null,null,null,null,null,0,0]
[null,null,null,null,null,null,null,null,0,null,null,null,null,null,null,null,null,null,0,0]
[null,null,null,null,null,null,null,null,0,null,null,null,null,null,null,null,null,null,0,0]
[null,null,null,null,null,null,null,null,0,null,null,null,null,null,null,null,null,null,0,0]
[null,null,null,null,null,null,null,null,0,null,null,null,null,null,null,null,null,null,0,0]
[null,null,null,null,null,null,null,null,0,null,null,null,null,null,null,null,null,null,0,0]
[null,null,null,null,null,null,null,null,0,null,null,null,null,null,null,null,null,null,0,0]
[null,null,null,null,null,null,null,null,0,null,null,null,null,null,null,null,null,null,0,0]
[null,null,null,null,null,null,null,null,0,null,null,null,null,null,null,null,null,null,0,0]
[null,null,null,null,null,null,null,null,0,null,null,null,null,null,null,null,null,null,0,0]
[null,null,null,null,null,null,null,null,0,null,null,null,null,null,null,null,null,null,0,0]
[null,null,null,null,null,null,null,null,0,null,null,null,null,null,null,null,null,null,0,0]
[null,null,null,null,null,null,null,null,0,null,null,null,null,null,null,null,null,null,0,0]
[null,null,null,null,null,null,null,null,0,null,null,null,null,null,null,null,null,null,0,0]
[null,null,null,null,null,null,null,null,0,null,null,null,null,null,null,null,null,null,0,0]
[null,null,null,null,null,null,null,null,0,null,null,null,null,null,null,null,null,null,0,0]
[null,null,null,null,null,null,null,null,0,null,null,null,null,null,null,null,null,null,0,0]
[null,null,null,null,null,null,null,null,0,null,null,null,null,null,null,null,null,null,0,{"$f":"SUM(J1970:S1970)","v":0}]
[null,null,null,null,null,null,null,null,0,null,null,null,null,null,null,null,null,null,0,0]
[null,null,null,null,null,null,null,null,0,null,null,null,null,null,null,null,null,null,0,0]
[null,null,null,null,null,null,null,null,0,null,null,null,null,null,null,null,null,null,0,0]
[null,null,null,null,null,null,null,null,0,null,null,null,null,null,null,null,null,null,0,0]
[null,null,null,null,null,null,null,null,0,null,null,null,null,null,null,null,null,null,0,0]
[null,null,null,null,null,null,null,null,0,null,null,null,null,null,null,null,null,null,0,0]
[null,null,null,null,null,null,null,null,0,null,null,null,null,null,null,null,null,null,0,0]
[null,null,null,null,null,null,null,null,0,null,null,null,null,null,null,null,null,null,0,0]
[null,null,null,null,null,null,null,null,0,null,null,null,null,null,null,null,null,null,0,0]
[null,null,null,null,null,null,null,null,0,null,null,null,null,null,null,null,null,null,0,0]
[null,null,null,null,null,null,null,null,0,null,null,null,null,null,null,null,null,null,0,0]
[null,null,null,null,null,null,null,null,0,null,null,null,null,null,null,null,null,null,0,0]
[null,null,null,null,null,null,null,null,0,null,null,null,null,null,null,null,null,null,0,0]
[null,null,null,null,null,null,null,null,0,null,null,null,null,null,null,null,null,null,0,0]
[null,null,null,null,null,null,null,null,0,null,null,null,null,null,null,null,null,null,0,0]
[null,null,null,null,null,null,null,null,0,null,null,null,null,null,null,null,null,null,0,0]
[null,null,null,null,null,null,null,null,0,null,null,null,null,null,null,null,null,null,0,0]
[null,null,null,null,null,null,null,null,0,null,null,null,null,null,null,null,null,null,0,0]
[null,null,null,null,null,null,null,null,0,null,null,null,null,null,null,null,null,null,0,0]
[null,null,null,null,null,null,null,null,0,null,null,null,null,null,null,null,null,null,0,0]
[null,null,null,null,null,null,null,null,0,null,null,null,null,null,null,null,null,null,0,0]
[null,null,null,null,null,null,null,null,0,null,null,null,null,null,null,null,null,null,0,0]
[null,null,null,null,null,null,null,null,0,null,null,null,null,null,null,null,null,null,0,0]
[null,null,null,null,null,null,null,null,0,null,null,null,null,null,null,null,null,null,{"$f":"I1994-SUM(J1994:R1994)","v":0},0]
[null,null,null,null,null,null,null,null,0,null,null,null,null,null,null,null,null,null,0,0]
[null,null,null,null,null,null,null,null,0,null,null,null,null,null,null,null,null,null,0,0]
[null,null,null,null,null,null,null,null,0,null,null,null,null,null,null,null,null,null,0,0]
[null,null,null,null,null,null,null,null,0,null,null,null,null,null,null,null,null,null,0,0]
[null,null,null,null,null,null,null,null,0,null,null,null,null,null,null,null,null,null,0,0]
[null,null,null,null,null,null,null,null,0,null,null,null,null,null,null,null,null,null,0,0]

{"sheet":"Annexes","index":4,"n_rows":116,"n_cols":5,"rows_kept":116,"cut":false,"hidden":false,"merged":[[76,1,80,1],[81,1,115,1],[99,2,115,2],[97,2,98,2],[86,2,96,2],[81,2,85,2],[76,2,80,2],[73,1,73,18],[14,1,14,18],[51,1,51,18],[6,1,6,18],[2,1,2,18],[63,1,63,18]]}
["   API REFERENTIEL SIRENE"]
[]
[null,"Via l'API SIRENE, le N°SIREN de l'entité permettra de récupérer les informations suivantes : \n          - Raison sociale\n          - Adresse / Complément d'adresse\n          - Code postal / Ville\n          - Catégorie juridique"]
[]
["   NATURE ET TYPE DU DISPOSITIF"]
[]
[null,"Les dispositifs se répartissent en 6 natures de dispositifs (en bleu ci-dessous). Pour chaque nature de dispositif, un certain nombre de types de dispositif est associé (en gris ci-dessous).\n*A noter pour le Premier accueil : il n'y a ni places, ni mesures, ni prestations. Le SIAO n’est pas orienteur vers ces dispositifs. Les utilisateurs ne peuvent que formuler des demandes ou \ndéclarer des accompagnements. "]
[]
[]
[]
["   MODALITES D'ACCOMPAGNEMENT"]
[]
[null,"FAMILLES D'ACCOMPAGNEMENT"]
[]
[null,"L'offre d'accompagnements des dispositifs se découpe en 7 familles d'accompagnement, décrites ci-dessous. \nA noter que si un dispositif a au moins un Travailleur social affecté, au moins l'une des trois premières familles doit être cochée."]
[]
[null,"1. Accompagnements à l'accès au logement"]
[]
[null,"2. Accompagnements au maintien dans le logement"]
[]
[null,"3. Diagnostics et évaluations approfondies"]
[]
[null,"4. Accompagnements à l'accès aux droits et libertés et à la participation"]
[null,null,"Accompagnements pour la connaissance des droits sociaux"]
[null,null,"Accompagnements à l'ouverture des droits sociaux (réalisation des démarches administratives) et à l'exercice des possibilités de recours"]
[null,null,"Accompagnements à l'accès aux informations relatives à son accompagnement, à la participation de la personne à la conception et à la mise en oeuvre de son projet d'accompagnement"]
[null,null,"Accompagnements à l'accès à l'information sur les droits fondamentaux et les libertés individuelles, les protections particulières légales et contractuelles et les voies de recours"]
[null,null,"Accompagnements à la gestion de ses ressources"]
[]
[null,"5. Accompagnements vers l'emploi"]
[null,null,"Accompagnements à l'accès à l'information relative à l'emploi, l'insertion et la formation professionnelles"]
[null,null,"Accompagnements à l'ouverture et au renouvellement des droits relatifs à la perte d'emploi, l'insertion et la réinsertion professionnelle"]
[null,null,"Accompagnements vers un parcours par l'insertion économique"]
[null,null,"Accompagnements vers la formation professionnelle et l'orientation d'un emploi"]
[]
[null,"6. Accompagnements vers la santé et l'estime de soi"]
[null,null,"Accompagnements à l'accès à l'information sur les prestations de soins relatives à la santé somatique et psychique"]
[null,null,"Accompagnements à l'appropriation des comportements favorables à sa santé et à l'expression de ses besoins pour son bien-être physique et mental"]
[null,null,"Accompagnements aux droits médico-sanitaires et aux soins"]
[null,null,"Accompagnements à la compréhension et à l'acceptation des comportements liés à la santé mentale et aux addictions et à leur prise en charge adaptée"]
[]
[null,"7. Accompagnements à la vie sociale et à citoyenneté"]
[null,null,"Accompagnements pour la participation aux activités sociales et de loisir"]
[null,null,"Accompagnements à la vie de quartier"]
[null,null,"Accompagnements à la propriété responsable d'un animal"]
[null,null,"Accompagnements à l'exercice de la citoyenneté et à la représentation de ses pairs"]
[null,null,"Accompagnements à la vie familiale et à la parentalité"]
[null,null,"Accompagnements en matière d'apprentissage"]
[]
[null,"ACCOMPAGNEMENTS SPECIFIQUES (CHRS UNIQUEMENT)"]
[]
[null,"L'offre d'accompagnements spécifiques des CHRS se découpe en 4 types d'accompagnement spécifiques, décrits ci-dessous. \nCes types d'accompagnements s'appliquent pour les CHRS bénéficiant d'un financement complémentaire dédié à l'un de ces accompagnements spécifiques."]
[]
[null,"1. Accompagnements pour traitement de situations juridiques complexes en droit pénal, familial et en droit des étrangers"]
[]
[null,"2. Accompagnements individualisés pour construire un parcours accéléré de retour ou d'accès à l'emploi"]
[]
[null,"3. Accompagnements à la résolution des besoins complexes en matière de santé et d'estime de soi"]
[]
[null,"4. Accompagnements à l'expression des personnes par l'action citoyenne, la pratique sportive ou d'activités artistiques"]
[]
["   DEPARTEMENTS POUVANT INTERVENIR SUR UN DISPOSITIF"]
[]
[null,"Dans certains cas, notamment en région Île-de-France, différents départements peuvent être amenés à intervenir sur un même dispositif.\nVous trouverez ci-dessous la liste des 3 natures de départements différents pouvant exister pour un dispositif :"]
[]
[null,"1. DDETS / UD DRIHL de localisation du dispositif : département déduit du code postal du dispositif"]
[]
[null,"2. DDETS / UD DRIHL du service de l'Etat à l'origine du financement"]
[]
[null,"3. DDETS / UD DRIHL du/des SIAO pouvant orienter sur ce dispositif "]
[]
["   DESCRIPTION DES TYPES DE FINANCEMENT P177"]
[]
[null,"Afin de saisir une ligne de financement d'un dispositif, veuillez suivre les étapes suivantes : \n1. Sélectionner le type de financement : P177 ou Autre\n2. Si le financement est de type P177, sélectionner le type de financement P177 dans la liste ci-dessous (cf. libellé du financement correspondant)\n3. Si le financement est Autres, renseigner un nom de financement.  \nIMPORTANT A NOTER : \n4. Les places co-financées « P177 + autre », sont à inclure sans distinction dans le financement P177. Par exemple : un CCAS verse une contribution financière à un centre d’hébergement financé par le P177 ; une agence immobilière sociale perçoit une subvention du Conseil départemental pour soutenir globalement son activité, etc.).\n5. Pour les dispositifs qui disposent de places financées par l’Etat et de places – distinctes – financées par un co-financeur, toutes orientées par le SIAO ou que vous souhaitez toutes voir apparaître dans le SI SIAO : il convient de renseigner les informations à la fois pour « Financement P177 » et financement « Autre ». Par exemple : un CCAS finance à une association 10 places dans une structure d’hébergement où l’Etat finance par ailleurs 30 places (qui ne sont pas les mêmes), et le CCAS confie l’orientation sur ses places au SIAO.\n6. Pour les cas particuliers des dispositifs 100% financés hors 177, sélectionner le type Autre, saisir le nom du financement. Par exemple : si vous souhaitez renseigner dans le SI SIAO un LAM ou LHSS financé par l’ARS, ou un accueil de jour ne recevant pas de subvention du P177, etc.) ou un dispositif du DNA financé par le P303."]
[]
[null,"Action","Catégorie","Libellé du financement","Code "]
[null,"Prévention de l'exclusion","Prévention \nAccès au droit","Gens du voyage: action sociale","0177-01-02-11-30"]
[null,null,null,"Gens du voyage: ALT2","0177-01-02-11-40"]
[null,null,null,"Actions de résorption des bidonvilles","0177-01-02-11-41"]
[null,null,null,"Actions de prévention des expulsions locatives","0177-01-02-11-42"]
[null,null,null,"Autres dépenses de prévention de l'exclusion","0177-01-02-11-50"]
[null,"Hébergement et Logement adapté","Veille sociale","Veille sociale - Accueils de jour","0177-01-03-12-03"]
[null,null,null,"Veille sociale - Maraudes/Equipes mobiles","0177-01-03-12-04"]
[null,null,null,"Veille sociale - SIAO","0177-01-03-12-05"]
[null,null,null,"Veille sociale - OMA","0177-01-03-12-07"]
[null,null,null,"Veille sociale - Autres dépenses","0177-01-03-12-08"]
[null,null,"Hébergement urgence","Hébergement hors CHRS - Structure (diffus ou regroupé) / Dépenses accompagnement","0177-01-04-12-06\n0177-01-04-12-08"]
[null,null,null,"Nuitées hôtel","0177-01-04-12-12"]
[null,null,null,"Accompagnement et presta pour ménages à l'hôtel","0177-01-04-12-13"]
[null,null,null,"Hébergement hors CHRS - RHVS","0177-01-04-12-14"]
[null,null,null,"Hébergement hors CHRS - HU autres bâtiments","0177-01-04-12-15"]
[null,null,null,"Hébergement hors CHRS - FVV - AAP 21-22-23","0177-01-04-12-16"]
[null,null,null,"Hébergement hors CHRS -  FSM","0177-01-04-12-17"]
[null,null,null,"Hébergement hors CHRS - Grands marginaux","0177-01-04-12-18"]
[null,null,null,"Hébergement hors CHRS - OMA","0177-01-04-12-19"]
[null,null,null,"SAS Desserrement IDF","0177-01-04-12-20"]
[null,null,null,"Autres dépenses liées à l'hébergement","0177-01-04-12-30"]
[null,null,"CHRS","CHRS - Dépenses d'hébergement / Dépenses d'accompagnement","0177-01-05-12-10\n0177-01-05-12-13"]
[null,null,null,"CHRS - autres dépenses","0177-01-05-12-14"]
[null,null,"Logement adapté","Résidence sociale aide à gestion locative sociale","0177-01-06-12-12"]
[null,null,null,"Pensions de famille et résidences d'accueil","0177-01-06-12-13"]
[null,null,null,"Allocation de logement temporaire (ALT1)","0177-01-06-12-15"]
[null,null,null,"ALT1 - FVV - AAP 21-22-23","0177-01-06-12-19"]
[null,null,null,"IML - mandat de gestion","0177-01-06-12-41"]
[null,null,null,"IML - sous-location","0177-01-06-12-42"]
[null,null,null,"IML - Plus","0177-01-06-12-43"]
[null,null,null,"Territoires de mise en œuvre accélérée du Logement d'abord ","0177-01-06-12-44"]
[null,null,null,"Un Chez-soi d'abord","0177-01-06-12-45"]
[null,null,null,"Accompagnement social des réfugiés statutaires","0177-01-06-12-50"]
[null,null,null,"Accompagnement social Accès au logement","0177-01-06-12-51"]
[null,null,null,"CEJ Jeunes en Rupture Accès au logement","0177-01-06-12-52"]
[null,null,null,"Autres dépenses liées au logement adapté","0177-01-06-12-60"]
[null,null,null,"Ukraine IML","0177-01-06-12-70"]
[null,null,null,"Ukraine Accompagnement social HC-HG","0177-01-06-12-71"]
[null,null,null,"Ukraine Modulaires","0177-01-06-12-72"]
[null,null,null,"UKR Aide exceptionnelle Accueillants","0177-01-06-12-73"]

{"sheet":"Listes déroulantes","index":5,"n_rows":163,"n_cols":19,"rows_kept":163,"cut":false,"hidden":true,"merged":[]}
["Oui/Non",null,"Onglet Entités",null,"Onglet Dispositifs"]
["Oui",null,null,null,"Nature / Type disp"]
["Non",null,"Régime juridique employeur",null,"IML","Résidence_sociale","Hébergement","Veille_sociale","Mesures_accompagnement","Premier_accueil",null,null,"Configuration physique",null,null,"Fourniture de repas",null,null,"Equipements"]
[" ",null,"Droit public",null,"Location - Sous location","Pension de famille","CHRS","Maraude","AVDL","DNA / AGIR",null,null,"Regroupé",null,null,"Moins de 50%",null,null,"Cuisine collective accessible aux usagers"]
[null,null,"Droit privé",null,"Mandat de gestion","Résidence d'accueil","Centre d’hébergement Hors CHRS","Accueil de jour","PEX","Secteur (CCAS ou Département)",null,null,"Diffus",null,null,"50% et plus",null,null,"Salle de confidentialité/d'entretien"]
[null,null,null,null,"Un Chez Soi d'Abord","FJT","Hôtel","Halte de nuit","FSL-ASLL","Santé",null,null,"Diffus & Regroupé",null,null,null,null,null,"Salle polyvalente"]
[null,null,null,null,null,"FTM","RHVS","SAO","PASH","SPIP",null,null,null,null,null,null,null,null,"Chenil"]
[null,null,null,null,null,"Résidence sociale classique","Hébergement médico-social (LAM, LHSS, autre)","Aide alimentaire","HLM (CHRS)","Emploi (Réseau pour l'emploi)",null,null,"Configuration du parc ",null,null,"Confection interne",null,null,"Equipement sportif"]
[null,null,null,null,null,null,"Autres (gymnases, écoles, etc)",null,"Accompagnement Emploi (Emile, Premières heures en chantier (PHC), Convergence (CVG), Coach)","Autre (dont bénévoles)",null,null,"Parc privé ",null,null,"Structure externe",null,null,"Espace extérieur collectif et accessible"]
[null,null,null,null,null,null,null,null,"Autre (LDA)",null,null,null,"Parc social",null,null,null,null,null,"Equipement de sécurité"]
[null,null,null,null,null,null,null,null,null,null,null,null,"Parc privé et social",null,null,null,null,null,"Lit bébé / Lit parapluie"]
[null,null,null,null,null,null,null,null,null,null,null,null,null,null,null,null,null,null,"Equipement informatique"]
[null,null,null,null,null,null,null,null,null,null,null,null,"Etiquette DPE",null,null,null,null,null,"Sanitaires partagés"]
[null,null,null,null,null,null,null,null,null,null,null,null,"A",null,null,null,null,null,"Aucun"]
[null,null,null,null,null,null,null,null,null,null,null,null,"B"]
[null,null,null,null,"Territoire couvert","SIAO orienteur","Service financeur","Conventions collectives",null,null,null,null,"C"]
[null,null,"Onglet financement",null,"National",null,"DRIHL Siège",null,null,null,null,null,"D"]
[null,null,null,null,"01 - Ain - Bourg-en-bresse","SIAO 01","DDETS 01","CCN 51 - IDCC 0029",null,null,null,null,"E"]
[null,null,"Type de financement",null,"02 - Aisne - Laon","SIAO 02","DDETS 02","CCN 66 (dont \"accords CHRS\") - IDCC 0413",null,null,null,null,"F"]
[null,null,"P177",null,"03 - Allier - Moulins","SIAO 03","DDETS 03","CCN Habitat Logement Accompagné (dont PACT et ARIM) - IDCC 2336",null,null,null,null,"G"]
[null,null,"Autre",null,"04 - Alpes-de-Haute-Provence - Digne-les-bains","SIAO 04","DDETS 04","CCN des acteurs du lien social et familial - IDCC 1261"]
[null,null,null,null,"05 - Hautes-alpes - Gap","SIAO 05","DDETS 05","CCN UNISSS - IDCC 0405"]
[null,null,null,null,"06 - Alpes-maritimes - Nice","SIAO 06","DDETS 06","Fonction publique hospitalière"]
[null,null,null,null,"07 - Ardèche - Privas","SIAO 07","DDETS 07","Fonction publique territoriale"]
[null,null,null,null,"08 - Ardennes - Charleville-mézières","SIAO 08","DDETS 08","Accord d'entreprise de la Croix Rouge Française - IDCC 5502"]
[null,null,null,null,"09 - Ariège - Foix","SIAO 09","DDETS 09","Accord d'entreprise d'Adoma - IDCC 5530"]
[null,null,null,null,"10 - Aube - Troyes","SIAO 10","DDETS 10","Autre convention collective nationale ou autre accord d'entreprise [champ libre pour compléter l'IDCC]"]
[null,null,null,null,"11 - Aude - Carcassonne","SIAO 11","DDETS 11","Pas de convention collective ni d'accord d'entreprise"]
[null,null,null,null,"12 - Aveyron - Rodez","SIAO 12","DDETS 12"]
[null,null,null,null,"13 - Bouches-du-Rhône - Marseille","SIAO 13","DDETS 13"]
[null,null,null,null,"14 - Calvados - Caen","SIAO 14","DDETS 14"]
[null,null,null,null,"15 - Cantal - Aurillac","SIAO 15","DDETS 15"]
[null,null,null,null,"16 - Charente - Angoulême","SIAO 16","DDETS 16"]
[null,null,null,null,"17 - Charente-maritime - La rochelle","SIAO 17","DDETS 17"]
[null,null,null,null,"18 - Cher - Bourges","SIAO 18","DDETS 18"]
[null,null,null,null,"19 - Corrèze - Tulle","SIAO 19","DDETS 19"]
[null,null,null,null,"2A - Corse-du-sud - Ajaccio","SIAO 2A","DDETS 2A"]
[null,null,null,null,"2B - Haute-Corse - Bastia","SIAO 2B","DDETS 2B"]
[null,null,null,null,"21 - Côte-d'Or - Dijon","SIAO 21","DDETS 21"]
[null,null,null,null,"22 - Côtes-d'Armor - Saint-brieuc","SIAO 22","DDETS 22"]
[null,null,null,null,"23 - Creuse - Guéret","SIAO 23","DDETS 23"]
[null,null,null,null,"24 - Dordogne - Périgueux","SIAO 24","DDETS 24"]
[null,null,null,null,"25 - Doubs - Besançon","SIAO 25","DDETS 25"]
[null,null,null,null,"26 - Drôme - Valence","SIAO 26","DDETS 26"]
[null,null,null,null,"27 - Eure - Évreux","SIAO 27","DDETS 27"]
[null,null,null,null,"28 - Eure-et-loir - Chartres","SIAO 28","DDETS 28"]
[null,null,null,null,"29 - Finistère - Quimper","SIAO 29","DDETS 29"]
[null,null,null,null,"30 - Gard - Nîmes","SIAO 30","DDETS 30"]
[null,null,null,null,"31 - Haute-garonne - Toulouse","SIAO 31","DDETS 31"]
[null,null,null,null,"32 - Gers - Auch","SIAO 32","DDETS 32"]
[null,null,null,null,"33 - Gironde - Bordeaux","SIAO 33","DDETS 33"]
[null,null,null,null,"34 - Hérault - Montpellier","SIAO 34","DDETS 34"]
[null,null,null,null,"35 - Ille-et-vilaine - Rennes","SIAO 35","DDETS 35"]
[null,null,null,null,"36 - Indre - Châteauroux","SIAO 36","DDETS 36"]
[null,null,null,null,"37 - Indre-et-loire - Tours","SIAO 37","DDETS 37"]
[null,null,null,null,"38 - Isère - Grenoble","SIAO 38","DDETS 38"]
[null,null,null,null,"39 - Jura - Lons-le-saunier","SIAO 39","DDETS 39"]
[null,null,null,null,"40 - Landes - Mont-de-marsan","SIAO 40","DDETS 40"]
[null,null,null,null,"41 - Loir-et-cher - Blois","SIAO 41","DDETS 41"]
[null,null,null,null,"42 - Loire - Saint-étienne","SIAO 42","DDETS 42"]
[null,null,null,null,"43 - Haute-loire - Le puy-en-velay","SIAO 43","DDETS 43"]
[null,null,null,null,"44 - Loire-atlantique - Nantes","SIAO 44","DDETS 44"]
[null,null,null,null,"45 - Loiret - Orléans","SIAO 45","DDETS 45"]
[null,null,null,null,"46 - Lot - Cahors","SIAO 46","DDETS 46"]
[null,null,null,null,"47 - Lot-et-garonne - Agen","SIAO 47","DDETS 47"]
[null,null,null,null,"48 - Lozère - Mende","SIAO 48","DDETS 48"]
[null,null,null,null,"49 - Maine-et-loire - Angers","SIAO 49","DDETS 49"]
[null,null,null,null,"50 - Manche - Saint-lô","SIAO 50","DDETS 50"]
[null,null,null,null,"51 - Marne - Châlons-en-champagne","SIAO 51","DDETS 51"]
[null,null,null,null,"52 - Haute-marne - Chaumont","SIAO 52","DDETS 52"]
[null,null,null,null,"53 - Mayenne - Laval","SIAO 53","DDETS 53"]
[null,null,null,null,"54 - Meurthe-et-moselle - Nancy","SIAO 54","DDETS 54"]
[null,null,null,null,"55 - Meuse - Bar-le-duc","SIAO 55","DDETS 55"]
[null,null,null,null,"56 - Morbihan - Vannes","SIAO 56","DDETS 56"]
[null,null,null,null,"57 - Moselle - Metz","SIAO 57","DDETS 57"]
[null,null,null,null,"58 - Nièvre - Nevers","SIAO 58","DDETS 58"]
[null,null,null,null,"59 - Nord - Lille","SIAO 59","DDETS 59"]
[null,null,null,null,"60 - Oise - Beauvais","SIAO 60","DDETS 60"]
[null,null,null,null,"61 - Orne - Alençon","SIAO 61","DDETS 61"]
[null,null,null,null,"62 - Pas-de-calais - Arras","SIAO 62","DDETS 62"]
[null,null,null,null,"63 - Puy-de-dôme - Clermont-ferrand","SIAO 63","DDETS 63"]
[null,null,null,null,"64 - Pyrénées-atlantiques - Pau","SIAO 64","DDETS 64"]
[null,null,null,null,"65 - Hautes-Pyrénées - Tarbes","SIAO 65","DDETS 65"]
[null,null,null,null,"66 - Pyrénées-orientales - Perpignan","SIAO 66","DDETS 66"]
[null,null,null,null,"67 - Bas-rhin - Strasbourg","SIAO 67","DDETS 67"]
[null,null,null,null,"68 - Haut-rhin - Colmar","SIAO 68","DDETS 68"]
[null,null,null,null,"69 - Rhône - Lyon","SIAO 69","DDETS 69"]
[null,null,null,null,"70 - Haute-saône - Vesoul","SIAO 70","DDETS 70"]
[null,null,null,null,"71 - Saône-et-loire - Mâcon","SIAO 71","DDETS 71"]
[null,null,null,null,"72 - Sarthe - Le mans","SIAO 72","DDETS 72"]
[null,null,null,null,"73 - Savoie - Chambéry","SIAO 73","DDETS 73"]
[null,null,null,null,"74 - Haute-savoie - Annecy","SIAO 74","DDETS 74"]
[null,null,null,null,"75 - Paris - Paris","SIAO 75","UD DRIHL 75"]
[null,null,null,null,"76 - Seine-maritime - Rouen","SIAO 76","DDETS 76"]
[null,null,null,null,"77 - Seine-et-marne - Melun","SIAO 77","DDETS 77"]
[null,null,null,null,"78 - Yvelines - Versailles","SIAO 78","DDETS 78"]
[null,null,null,null,"79 - Deux-sèvres - Niort","SIAO 79","DDETS 79"]
[null,null,null,null,"80 - Somme - Amiens","SIAO 80","DDETS 80"]
[null,null,null,null,"81 - Tarn - Albi","SIAO 81","DDETS 81"]
[null,null,null,null,"82 - Tarn-et-Garonne - Montauban","SIAO 82","DDETS 82"]
[null,null,null,null,"83 - Var - Toulon","SIAO 83","DDETS 83"]
[null,null,null,null,"84 - Vaucluse - Avignon","SIAO 84","DDETS 84"]
[null,null,null,null,"85 - Vendée - La roche-sur-yon","SIAO 85","DDETS 85"]
[null,null,null,null,"86 - Vienne - Poitiers","SIAO 86","DDETS 86"]
[null,null,null,null,"87 - Haute-vienne - Limoges","SIAO 87","DDETS 87"]
[null,null,null,null,"88 - Vosges - Épinal","SIAO 88","DDETS 88"]
[null,null,null,null,"89 - Yonne - Auxerre","SIAO 89","DDETS 89"]
[null,null,null,null,"90 - Territoire de belfort - Belfort","SIAO 90","DDETS 90"]
[null,null,null,null,"91 - Essonne - Évry","SIAO 91","DDETS 91"]
[null,null,null,null,"92 - Hauts-de-seine - Nanterre","SIAO 92","UD DRIHL 92"]
[null,null,null,null,"93 - Seine-Saint-Denis - Bobigny","SIAO 93","UD DRIHL 93"]
[null,null,null,null,"94 - Val-de-marne - Créteil","SIAO 94","UD DRIHL 94"]
[null,null,null,null,"95 - Val-d'Oise - Cergy Pontoise","SIAO 95","DDETS 95"]
[null,null,null,null,"971 - Guadeloupe - Basse-terre","SIAO 971","DDETS 971"]
[null,null,null,null,"972 - Martinique - Fort-de-france","SIAO 972","DDETS 972"]
[null,null,null,null,"973 - Guyane - Cayenne","SIAO 973","DDETS 973"]
[null,null,null,null,"974 - La réunion - Saint-denis","SIAO 974","DDETS 974"]
[null,null,null,null,"976 - Mayotte - Mamoudzou","SIAO 976","DDETS 976"]
[null,null,null,null,null,null,"DREETS Grand-Est"]
[null,null,null,null,null,null,"DREETS Nouvelle-Aquitaine"]
[null,null,null,null,null,null,"DREETS Auvergne-Rhône-Alpes"]
[null,null,null,null,null,null,"DREETS Normandie"]
[null,null,null,"Type de financement P177",null,null,"DREETS Bourgogne-Franche-Comté"]
[null,null,null,"Gens du voyage: action sociale",null,null,"DREETS Bretagne"]
[null,null,null,"Gens du voyage: ALT2",null,null,"DREETS Centre-Val-de-Loire"]
[null,null,null,"Actions de résorption des bidonvilles",null,null,"DREETS Corse"]
[null,null,null,"Actions de prévention des expulsions locatives",null,null,"DREETS Île-de-France"]
[null,null,null,"Autres dépenses de prévention de l'exclusion",null,null,"DREETS Occitanie"]
[null,null,null,"Veille sociale - Accueils de jour",null,null,"DREETS Hauts-de-France"]
[null,null,null,"Veille sociale - Maraudes/Equipes mobiles",null,null,"DREETS Pays-de-la-Loire"]
[null,null,null,"Veille sociale - SIAO",null,null,"DREETS Provence-Alpes-Côte-d'Azur"]
[null,null,null,"Veille sociale - OMA",null,null,"DGCOPOP Guyane"]
[null,null,null,"Veille sociale - Autres dépenses",null,null,"DEETS Guadeloupe"]
[null,null,null,"Hébergement hors CHRS - Structure (diffus ou regroupé) / Dépenses accompagnement",null,null,"DEETS Martinique"]
[null,null,null,"Nuitées hôtel",null,null,"DEETS Mayotte"]
[null,null,null,"Accompagnement et presta pour ménages à l'hôtel",null,null,"DEETS La Réunion"]
[null,null,null,"Hébergement hors CHRS - RHVS"]
[null,null,null,"Hébergement hors CHRS - HU autres bâtiments"]
[null,null,null,"Hébergement hors CHRS - FVV - AAP 21-22-23"]
[null,null,null,"Hébergement hors CHRS -  FSM"]
[null,null,null,"Hébergement hors CHRS - Grands marginaux"]
[null,null,null,"Hébergement hors CHRS - OMA"]
[null,null,null,"SAS Desserrement IDF"]
[null,null,null,"Autres dépenses liées à l'hébergement"]
[null,null,null,"CHRS - Dépenses d'hébergement / Dépenses d'accompagnement"]
[null,null,null,"CHRS - Autres dépenses"]
[null,null,null,"Résidence sociale aide à gestion locative sociale"]
[null,null,null,"Pensions de famille et résidences d'accueil"]
[null,null,null,"Allocation de logement temporaire (ALT1)"]
[null,null,null,"ALT1 - FVV - AAP 21-22-23"]
[null,null,null,"IML - Mandat de gestion"]
[null,null,null,"IML - Sous-location"]
[null,null,null,"IML - Plus"]
[null,null,null,"Territoires de mise en œuvre accélérée du Logement d'abord "]
[null,null,null,"Un Chez-soi d'abord"]
[null,null,null,"Accompagnement social des réfugiés statutaires"]
[null,null,null,"Accompagnement social Accès au logement"]
[null,null,null,"CEJ Jeunes en Rupture Accès au logement"]
[null,null,null,"Autres dépenses liées au logement adapté"]
[null,null,null,"Ukraine IML"]
[null,null,null,"Ukraine Accompagnement social HC-HG"]
[null,null,null,"Ukraine Modulaires"]
[null,null,null,"UKR Aide exceptionnelle Accueillants"]